{"text_format":"1","workbook":"xlsx","n_sheets":96,"sheets":["Instructions","TEMPLATE INDEX","Sheet1","Sheet2","Sheet3","Sheet4","Sheet5","Sheet6","Valid Paths","Sheet7","Sheet8","Sheet9","Sheet10","Sheet11","Sheet12","Sheet13","Sheet14","Sheet15","Sheet16","Sheet17","Sheet18","Sheet19","Sheet20","Sheet21","Sheet22","Sheet23","Sheet24","Sheet25","Sheet26","Sheet27","Sheet28","Sheet29","Sheet30","Sheet31","Sheet32","Sheet33","Sheet34","Sheet35","Sheet36","Sheet37","Sheet38","Sheet39","Sheet40","Sheet41","Sheet42","Sheet43","Sheet44","Sheet45","Sheet46","Sheet47","Sheet49","Sheet50","Sheet51","Sheet52","Sheet54","Sheet55","Sheet56","Sheet57","Sheet58","Sheet60","Sheet61","Sheet62","Sheet63","Sheet64","Sheet65","Sheet66","Sheet67","Sheet68","Sheet69","Sheet70","Sheet71","Sheet72","Sheet73","Sheet74","Sheet75","Sheet76","Sheet77","Sheet78","Sheet79","Sheet80","Sheet81","Sheet82","Sheet83","Sheet84","Sheet85","Sheet86","Sheet87","Sheet88","Sheet89","Sheet90","Sheet91","Sheet92","Sheet93","Sheet94","Sheet95","Sheet96"],"not_rendered":{"charts":0,"images":1,"macros":1,"external_links":0,"defined_names":64,"comments":0,"pivot_tables":0},"unopened":[],"bounds":{"document_bytes":16777216,"sheet_cells":100000,"rows_first":2000,"rows_last":500,"rows_between":2000,"halvings":0,"cell_chars":16384,"cell_head_chars":4096},"cells_cut":0,"cells_raw":0,"read":"whole","date_system":"1900"}

{"sheet":"Instructions","index":0,"n_rows":35,"n_cols":2,"rows_kept":35,"cut":false,"hidden":true,"merged":[]}
["Step 1.","Know your system.  It will be easier if you know your interconnection points"]
[null,"where you exchange interchange with an adjacent control area."]
[]
["Step 2.","Fill in the Valid Paths worksheet tab of this workbook shown in red."]
[null,"Definitions (see screen print on right):"]
[null,"Column A = SE.  This is the SE for the POR POD's in Column "]
[null,"B and C."]
[]
[null,"Column B = POR   This is the beginning POR for the TP's transmission sold"]
[null,"Column C = POD   This is the end POD for the TP's transmission sold"]
[null,"Column D = TP      This is the TP for the Column B & next POD path"]
[null,"[Chances are you won't need to use E through J so leave blank."]
[null,"Call Mark Hackney if you think you need to use and want help.]"]
[null,"Column E = POD1 This is the POD1 for an intermediate SE change"]
[null,"Column F = TP1 This is the TP for an intermediate SE change"]
[null,"Column G = SE1 This is the SE for the path POR-POD1"]
[null,"Column H = POD2 This is the POD2 for an intermediate SE change"]
[null,"Column I  = TP2 This is for internal notes should say Yes."]
[null,"Column J = SE2 This is the SE for the path POD1-POD2"]
[null,"Column K  = is for internal notes should say Yes."]
[null,"Column L = is for internal notes that will show in the notes are of worksheets."]
[null,"Column M = Tab name. This is the path name made from data in columns D, B and C (formula)"]
[null,"Column N = is for listing adjacent CA's at the POR"]
[null,"Column O = is for listing adjacent CA's at the POD"]
[]
["Step 3.","After completing for all the paths you wish to have a tagging example for on your"]
[null,"transmission, please press the \"Build Examples\" button in column B in "]
[null,"Valid Paths worksheet."]
[]
["Step 4.","Save for your future use."]
[]
["Step 5.","Email a copy to Ray Vojdani (AVOJDANI@wapa.gov) and"]
[null,"Mark Hackney (Mark.Hackney@aps.com).  They will compile "]
[null,"with others into the Master Tagging Examples sheet that was"]
[null,"sent to ISAS members earlier."]

{"sheet":"TEMPLATE INDEX","index":1,"n_rows":286,"n_cols":2,"rows_kept":286,"cut":false,"hidden":false,"merged":[[0,0,1,0]]}
["Sheet","Select Path below to see template"]
[null,"Click on \"Return to Control Area List\" to return to here."]
[1,"W/LAPT/3 N/AU>ARH>DJ/LAP"]
[2,"W/LAPT/3 N>S/SIDNEYW230>AULT/LAP"]
[3,"W/LAPT/3 S>N/AULT>ARCHER/LAP"]
[4,"W/LAPT/3 S>N/AULT>SIDNEYW230/LAP"]
[5,"W/LAPT/3 S>N/AULT>YELLOWTAILP/LAP"]
[6,"W/LAPT/3 S>N/YELLOWTAILP>AULT/LAP"]
[7,"W/LAPT/4B N>S/DAVEJOHNSTON>AULT/LAP"]
[8,"W/LAPT/4B N>S/DAVEJOHNSTON>SIDNEYW230/LAP"]
[9,"W/LAPT/4B N>S/STEGALLW230>AULT/LAP"]
[10,"W/LAPT/4B N>S/STEGALLW230>SIDNEYW230/LAP"]
[11,"W/LAPT/4B N>S/STEGALLW230>YELLOWTAILP/LAP"]
[12,"W/LAPT/4B N>S/YELLOWTAILP>DAVEJOHNSTON/LAP"]
[13,"W/LAPT/4B N>S/YELLOWTAILP>STEGALLW230/LAP"]
[14,"W/LAPT/4B N>S/YELLOWTAILW>AULT/LAP"]
[15,"W/LAPT/4B N>S/YELLOWTAILW>DAVEJOHNSTON/LAP"]
[16,"W/LAPT/4B N>S/YELLOWTAILW>STEGALLW230/LAP"]
[17,"W/LAPT/4B N>S/YTW>DJ>ARH>AU/LAP"]
[18,"W/LAPT/4B N>S/YTW>DJ>SGW>ARH>AU/"]
[19,"W/LAPT/4B S>N/AULT>DAVEJOHNSTON/LAP"]
[20,"W/LAPT/4B S>N/AULT>STEGALLW230/LAP"]
[21,"W/LAPT/4B S>N/AULT>YELLOWTAILW/LAP"]
[22,"W/LAPT/4B S>N/DAVEJOHNSTON>YELLOWTAILP/LAP"]
[23,"W/LAPT/4B S>N/DAVEJOHNSTON>YELLOWTAILW/LAP"]
[24,"W/LAPT/4B S>N/HAPPYJACK>DAVEJOHNSTON/LAP"]
[25,"W/LAPT/4B S>N/SIDNEYW230>STEGALLW230/LAP"]
[26,"W/LAPT/4B S>N/STEGALLW230>YELLOWTAILW/LAP"]
[27,"W/LAPT/4B/SIDNEYE230>YELLOWTAILW/LAP"]
[28,"W/LAPT/4B/SIDNEYW230>YELLOWTAILP/LAP"]
[29,"W/LAPT/4B/SIDNEYW230>YELLOWTAILW/LAP"]
[30,"W/LAPT/4B/YELLOWTAILP>SIDNEYW230/LAP"]
[31,"W/LAPT/4B/YELLOWTAILW>SIDNEYW230/LAP"]
[32,"W/LAPT/7 N>S/AU>BSAN/LAP"]
[33,"W/LAPT/7 S>N/BSAN>AU/LAP"]
[34,"W/LAPT/DC/SIDNEYE230>YELLOWTAILP/LAP"]
[35,"W/LAPT/DC/YELLOWTAILP>SIDNEYE230/LAP"]
[36,"W/LAPT/DC/YELLOWTAILW>SIDNEYE230/LAP"]
[37,"W/LAPT/DCTIE E>W/SIDNEYE230>AULT/LAP"]
[38,"W/LAPT/DCTIE E>W/SIDNEYE230>DAVEJOHNSTON/LAP"]
[39,"W/LAPT/DCTIE E>W/SIDNEYE230>SIDNEYW230/LAP"]
[40,"W/LAPT/DCTIE E>W/SIDNEYE230>STEGALLW230/LAP"]
[41,"W/LAPT/DCTIE W>E/AULT>SIDNEYE230/LAP"]
[42,"W/LAPT/DCTIE W>E/DAVEJOHNSTON>SIDNEYE230/LAP"]
[43,"W/LAPT/DCTIE W>E/SIDNEYW230>SIDNEYE230/LAP"]
[44,"W/LAPT/DCTIE W>E/STEGALLW230>SIDNEYE230/LAP"]
[45,"W/LAPT/E>E/SCSW>SCSW/LAP"]
[46,"W/LAPT/E>W/HAYDEN>BLUERIVER/LAP"]
[47,"W/LAPT/E>W/STEGALLW230>ARCHER/LAP"]
[48]
[49,"W/LAPT/N>N/MM115>DJ/LAP"]
[50,"W/LAPT/N>N/YT115>YTP/LAP"]
[51,"W/LAPT/N>N/YT115>YTW/LAP"]
[52,"W/LAPT/N>S/ARCHER>AULT/LAP"]
[53]
[54,"W/LAPT/N>S/DAVEJOHNSTON>ARCHER/LAP"]
[55,"W/LAPT/N>S/DAVEJOHNSTON>STEGALLW230/LAP"]
[56,"W/LAPT/N>S/DJ>DJ/LAP"]
[57,"W/LAPT/N>S/DJ>SGW>ARH/LAP"]
[58,"W/LAPT/N>S/MM115>SGW/LAP"]
[59]
[60,"W/LAPT/N>S/YELLOWTAILP>YELLOWTAILW/LAP"]
[61,"W/LAPT/S>N/AU115>ARH/LAP"]
[62,"W/LAPT/S>N/AU115>SGW/LAP"]
[63,"W/LAPT/S>N/SIDNEYW230>DAVEJOHNSTON/LAP"]
[64,"W/LAPT/S>N/STEGALLW230>DAVEJOHNSTON/LAP"]
[65,"W/LAPT/S>N/YELLOWTAILW>YELLOWTAILP/LAP"]
[66,"W/LAPT/S>S/AU115>AU/LAP"]
[67,"W/LAPT/TOT3N>S/HAPPYJACK>AULT/LAP"]
[68,"W/LAPT/N>S/SGW>ARH>AU/LAP"]
[69,"W/LAPT/TOT3NS/VIAARCHER/LAP"]
[70,"W/LAPT/S>N/ARH>DJ/LAP"]
[71,"W/LAPT/S>N/ARH>SGW/LAP"]
[72,"W/LAPT/E>W/SCSE>DJ/LAP"]
[73,"W/LAPT/E>W/SCSE>DJ VIA AU/LAP"]
[74,"W/LAPT/3 N/AU>DJ/LAP"]
[75,"E/LAPT/W>E/SIDNEY>LAPNITS/LAP"]
[76,"W/LAPT/TOT3S>N/NYUM>SCSW/LAP"]
[77,"W/LAPT/TOT3S>N/NYUM>SGW/LAP"]
[78,"W/LAPT/TOT3S>N/NYUM>DJ/LAP"]
[79,"W/LAPT/TOT3S>N/NYUM>ARH/LAP"]
[80,"W/LAPT/TOT3N>S/NYUM>AU/LAP"]
[81,"W/LAPT/TOT3N>S/ARH>NYUM/LAP"]
[82,"W/LAPT/TOT3N>S/SCSW>AU/LAP"]
[83,"W/LAPT/TOT3N>S/SCSW>NYUM/LAP"]
[84,"W/LAPT/TOT3N>S/AU>NYUM/LAP"]
[85,"W/LAPT/TOT3N>S/DJ>NYUM/LAP"]
[86,"W/LAPT/TOT3N>S/SGW>NYUM/LAP"]
[87,"W/LAPT/N>S/YT115>DJ/LAP"]
[88,"W/LAPT/N>S/YT115>AU/LAP"]
[89,"W/LAPT/N>S/YT115>SGW/LAP"]
[90,"W/LAPT/N>S/YT115>SCSW/LAP"]
[91,"W/LAPT/N>S/YT115>SCSE/LAP"]
[92,"W/LAPT/N>S/YT115>NYUM/LAP"]
[93,"W/LAPT/N>S/YT115>BSAN/LAP"]
[94,"W/LAPT/DCTIE W>E/AU115>SCSW/LAP"]
[95,"W/LAPT/DCTIE W>E/MM115>SCSW/LAP"]
[96,"W/LAPT/DCTIE W>E/AU115>SCSE/LAP"]
[97]
[98]
[99]
[100]
[101]
[102]
[103]
[104]
[105]
[106]
[107]
[108]
[109]
[110]
[111]
[112]
[113]
[114]
[115]
[116]
[117]
[118]
[119]
[120]
[121]
[122]
[123]
[124]
[125]
[126]
[127]
[128]
[129]
[130]
[131]
[132]
[133]
[134]
[135]
[136]
[137]
[138]
[139]
[140]
[141]
[142]
[143]
[144]
[145]
[146]
[147]
[148]
[149]
[150]
[151]
[152]
[153]
[154]
[155]
[156]
[157]
[158]
[159]
[160]
[161]
[162]
[163]
[164]
[165]
[166]
[167]
[168]
[169]
[170]
[171]
[172]
[173]
[174]
[175]
[176]
[177]
[178]
[179]
[180]
[181]
[182]
[183]
[184]
[185]
[186]
[187]
[188]
[189]
[190]
[191]
[192]
[193]
[194]
[195]
[196]
[197]
[198]
[199]
[200]
[201]
[202]
[203]
[204]
[205]
[206]
[207]
[208]
[209]
[210]
[211]
[212]
[213]
[214]
[215]
[216]
[217]
[218]
[219]
[220]
[221]
[222]
[223]
[224]
[225]
[226]
[227]
[228]
[229]
[230]
[231]
[232]
[233]
[234]
[235]
[236]
[237]
[238]
[239]
[240]
[241]
[242]
[243]
[244]
[245]
[246]
[247]
[248]
[249]
[250]
[251]
[252]
[253]
[254]
[255]
[256]
[257]
[258]
[259]
[260]
[261]
[262]
[263]
[264]
[265]
[266]
[267]
[268]
[269]
[270]
[271]
[272]
[273]
[274]
[275]
[276]
[277]
[278]
[279]
[280]
[281]
[282]
[283]
[284]

{"sheet":"Sheet1","index":2,"n_rows":17,"n_cols":9,"rows_kept":17,"cut":false,"hidden":false,"merged":[[12,3,12,4],[6,3,6,4],[1,0,1,6],[0,0,0,6]]}
["RETURN TO TEMPLATE INDEX"]
["W/LAPT/3 N/AU>ARH>DJ/LAP"]
[]
[null,null,null,null,null,null,null,null,"Must list correct Scheduling Entity"]
[null,null,null,null,"Physical Path",null,null,null,"associated with the physical path "]
["CA","TP","PSE","POR","POD","Sched Entities","Contract",null,"in the proper sequence"]
[null,null,null,null,null,null,null,null,"CA for the POR-POD "]
[null,"\"- - - - -\"","\"- - - - -\"","\"- - - - -\"","AU","\"- - - - -\""]
[null,"LAPT","\"- - - - -\"","AU","ARH","WACM"]
[null,"LAPT","\"- - - - -\"","ARH","DJ","WACM"]
[null,"\"- - - - -\"","\"- - - - -\"","DJ","\"- - - - -\"","\"- - - - -\""]
[null,"\"- - - - -\"","\"- - - - -\"","\"- - - - -\"","\"- - - - -\"","\"- - - - -\""]
[]
[]
["Legend",null,null,null,null,"If the Transmission Customer has multiple transmission"]
["\"- - - - -\" appropriate TSIN data to be filled in by Tag Agent.",null,null,null,null,"segments purchased that are combined, then each "]
[null,null,null,null,null,"segment should be shown as new TP lines in the e-tag"]

{"sheet":"Sheet2","index":3,"n_rows":17,"n_cols":9,"rows_kept":17,"cut":false,"hidden":false,"merged":[[12,3,12,4],[6,3,6,4],[1,0,1,6],[0,0,0,6]]}
["RETURN TO TEMPLATE INDEX"]
["W/LAPT/3 N>S/SIDNEYW230>AULT/LAP"]
[]
[null,null,null,null,null,null,null,null,"Must list correct Scheduling Entity"]
[null,null,null,null,"Physical Path",null,null,null,"associated with the physical path "]
["CA","TP","PSE","POR","POD","Sched Entities","Contract",null,"in the proper sequence"]
[null,null,null,null,null,null,null,null,"CA for the POR-POD "]
[null,"\"- - - - -\"","\"- - - - -\"","\"- - - - -\"","SCSW","\"- - - - -\""]
[null,"LAPT","\"- - - - -\"","SCSW","AU","WACM"]
[null,"\"- - - - -\"","\"- - - - -\"","AU","\"- - - - -\"","\"- - - - -\""]
[null,"\"- - - - -\"","\"- - - - -\"","\"- - - - -\"","\"- - - - -\"","\"- - - - -\""]
[null,"\"- - - - -\"","\"- - - - -\"","\"- - - - -\"","\"- - - - -\"","\"- - - - -\""]
[]
[]
["Legend",null,null,null,null,"If the Transmission Customer has multiple transmission"]
["\"- - - - -\" appropriate TSIN data to be filled in by Tag Agent.",null,null,null,null,"segments purchased that are combined, then each "]
[null,null,null,null,null,"segment should be shown as new TP lines in the e-tag"]

{"sheet":"Sheet3","index":4,"n_rows":17,"n_cols":9,"rows_kept":17,"cut":false,"hidden":false,"merged":[[1,0,1,6],[6,3,6,4],[12,3,12,4],[0,0,0,6]]}
["RETURN TO TEMPLATE INDEX"]
["W/LAPT/3 S>N/AULT>ARCHER/LAP"]
[]
[null,null,null,null,null,null,null,null,"Must list correct Scheduling Entity"]
[null,null,null,null,"Physical Path",null,null,null,"associated with the physical path "]
["CA","TP","PSE","POR","POD","Sched Entities","Contract",null,"in the proper sequence"]
[null,null,null,null,null,null,null,null,"CA for the POR-POD "]
[null,"\"- - - - -\"","\"- - - - -\"","\"- - - - -\"","AU","\"- - - - -\""]
[null,"LAPT","\"- - - - -\"","AU","ARH","WACM"]
[null,"\"- - - - -\"","\"- - - - -\"","ARH","\"- - - - -\"","\"- - - - -\""]
[null,"\"- - - - -\"","\"- - - - -\"","\"- - - - -\"","\"- - - - -\"","\"- - - - -\""]
[null,"\"- - - - -\"","\"- - - - -\"","\"- - - - -\"","\"- - - - -\"","\"- - - - -\""]
[]
[]
["Legend",null,null,null,null,"If the Transmission Customer has multiple transmission"]
["\"- - - - -\" appropriate TSIN data to be filled in by Tag Agent.",null,null,null,null,"segments purchased that are combined, then each "]
[null,null,null,null,null,"segment should be shown as new TP lines in the e-tag"]

{"sheet":"Sheet4","index":5,"n_rows":17,"n_cols":9,"rows_kept":17,"cut":false,"hidden":false,"merged":[[6,3,6,4],[1,0,1,6],[12,3,12,4],[0,0,0,6]]}
["RETURN TO TEMPLATE INDEX"]
["W/LAPT/3 S>N/AULT>SIDNEYW230/LAP"]
[]
[null,null,null,null,null,null,null,null,"Must list correct Scheduling Entity"]
[null,null,null,null,"Physical Path",null,null,null,"associated with the physical path "]
["CA","TP","PSE","POR","POD","Sched Entities","Contract",null,"in the proper sequence"]
[null,null,null,null,null,null,null,null,"CA for the POR-POD "]
[null,"\"- - - - -\"","\"- - - - -\"","\"- - - - -\"","AU","\"- - - - -\""]
[null,"LAPT","\"- - - - -\"","AU","SCSW","WACM"]
[null,"\"- - - - -\"","\"- - - - -\"","SCSW","\"- - - - -\"","\"- - - - -\""]
[null,"\"- - - - -\"","\"- - - - -\"","\"- - - - -\"","\"- - - - -\"","\"- - - - -\""]
[null,"\"- - - - -\"","\"- - - - -\"","\"- - - - -\"","\"- - - - -\"","\"- - - - -\""]
[]
[]
["Legend",null,null,null,null,"If the Transmission Customer has multiple transmission"]
["\"- - - - -\" appropriate TSIN data to be filled in by Tag Agent.",null,null,null,null,"segments purchased that are combined, then each "]
[null,null,null,null,null,"segment should be shown as new TP lines in the e-tag"]

{"sheet":"Sheet5","index":6,"n_rows":18,"n_cols":9,"rows_kept":18,"cut":false,"hidden":false,"merged":[[6,3,6,4],[1,0,1,6],[0,0,0,6],[14,3,14,4]]}
["RETURN TO TEMPLATE INDEX"]
["W/LAPT/3 S>N/AULT>YELLOWTAILP/LAP"]
[]
[null,null,null,null,null,null,null,null,"Must list correct Scheduling Entity"]
[null,null,null,null,"Physical Path",null,null,null,"associated with the physical path "]
["CA","TP","PSE","POR","POD","Sched Entities","Contract",null,"in the proper sequence"]
[null,null,null,null,null,null,null,null,"CA for the POR-POD "]
[null,"\"- - - - -\"","\"- - - - -\"","\"- - - - -\"","AU","\"- - - - -\""]
[null,"LAPT","\"- - - - -\"","AU","SCSW","WACM"]
[null,"LAPT","\"- - - - -\"","SCSW","SGW","WACM"]
[null,"LAPT","\"- - - - -\"","SGW","DJ","WACM"]
[null,"LAPT","\"- - - - -\"","DJ","YTW","WACM"]
[null,"LAPT","\"- - - - -\"","YTW","YTP","PACE"]
[null,"\"- - - - -\"","\"- - - - -\"","YTP",null,"\"- - - - -\""]
[]
["Legend",null,null,null,null,"If the Transmission Customer has multiple transmission"]
["\"- - - - -\" appropriate TSIN data to be filled in by Tag Agent.",null,null,null,null,"segments purchased that are combined, then each "]
[null,null,null,null,null,"segment should be shown as new TP lines in the e-tag"]

{"sheet":"Sheet6","index":7,"n_rows":18,"n_cols":9,"rows_kept":18,"cut":false,"hidden":false,"merged":[[6,3,6,4],[1,0,1,6],[13,3,13,4],[0,0,0,6]]}
["RETURN TO TEMPLATE INDEX"]
["W/LAPT/3 S>N/YELLOWTAILP>AULT/LAP"]
[]
[null,null,null,null,null,null,null,null,"Must list correct Scheduling Entity"]
[null,null,null,null,"Physical Path",null,null,null,"associated with the physical path "]
["CA","TP","PSE","POR","POD","Sched Entities","Contract",null,"in the proper sequence"]
[null,null,null,null,null,null,null,null,"CA for the POR-POD "]
[null,"\"- - - - -\"","\"- - - - -\"","\"- - - - -\"","YTW","\"- - - - -\""]
[null,"LAPT","\"- - - - -\"","YTW","DJ","WACM"]
[null,"LAPT","\"- - - - -\"","DJ","SGW","WACM"]
[null,"LAPT","\"- - - - -\"","SGW","SCSW","WACM"]
[null,"LAPT","\"- - - - -\"","SCSW","AU","WACM"]
[null,"\"- - - - -\"","\"- - - - -\"","AU","\"- - - - -\"","\"- - - - -\""]
[]
[]
["Legend",null,null,null,null,"If the Transmission Customer has multiple transmission"]
["\"- - - - -\" appropriate TSIN data to be filled in by Tag Agent.",null,null,null,null,"segments purchased that are combined, then each "]
[null,null,null,null,null,"segment should be shown as new TP lines in the e-tag"]

{"sheet":"Valid Paths","index":8,"n_rows":426,"n_cols":15,"rows_kept":426,"cut":false,"hidden":true,"merged":[]}
["SE1 for 1st leg of xmis","POR","LAST POD","1st TP","POD1","2nd TP2 on POD1/POD2","SE2 for 2nd leg of xmis","POD2","3rd TP2 on POD2/POD","SE3 for 2nd leg of xmis","Valid?","Comments",{"$f":"B1&\" TO \"&C1&\" - \"&D1","v":"POR TO LAST POD - 1st TP"},"ADJ CAs at POR","ADJ CAs at POD"]
["WALC","APACHE115","BKB","WALC",null,null,null,null,null,null,null,null,{"$f":"IF(ISBLANK(B2),\"\",LEFT(D2 & \"-\" & B2&\"to\"&C2, 31))","v":"WALC-APACHE115toBKB"}]
["WALC","APACHE115","COOLIDGE-P01","WALC",null,null,null,null,null,null,null,null,{"$f":"IF(ISBLANK(B3),\"\",LEFT(D3 & \"-\" & B3&\"to\"&C3, 31))","v":"WALC-APACHE115toCOOLIDGE-P01"}]
["WALC","APACHE115","COOLIDGE-P02","WALC",null,null,null,null,null,null,null,null,{"$f":"IF(ISBLANK(B4),\"\",LEFT(D4 & \"-\" & B4&\"to\"&C4, 31))","v":"WALC-APACHE115toCOOLIDGE-P02"}]
["WALC","APACHE115","DAVIS230","WALC",null,null,null,null,null,null,null,null,{"$f":"IF(ISBLANK(B5),\"\",LEFT(D5 & \"-\" & B5&\"to\"&C5, 31))","v":"WALC-APACHE115toDAVIS230"}]
["WALC","APACHE115","GILA161","WALC",null,null,null,null,null,null,null,null,"WALC-APACHE115toGILA161"]
["WALC","APACHE115","LIBERTY230-P01","WALC",null,null,null,null,null,null,null,null,"WALC-APACHE115toLIBERTY230-P01"]
["WALC","APACHE115","LIBERTY230-P02","WALC",null,null,null,null,null,null,null,null,"WALC-APACHE115toLIBERTY230-P02"]
["WALC","APACHE115","MARANA115","WALC",null,null,null,null,null,null,null,null,"WALC-APACHE115toMARANA115"]
["WALC","APACHE115","MARKETPLACE","WALC",null,null,null,null,null,null,null,null,"WALC-APACHE115toMARKETPLACE"]
["WALC","APACHE115","MCCONNICO230P01","WALC",null,null,null,null,null,null,null,null,"WALC-APACHE115toMCCONNICO230P01"]
["WALC","APACHE115","MCCONNICO230P02","WALC",null,null,null,null,null,null,null,null,"WALC-APACHE115toMCCONNICO230P02"]
["WALC","APACHE115","MCCONNICO230Y01","WALC",null,null,null,null,null,null,null,null,"WALC-APACHE115toMCCONNICO230Y01"]
["WALC","APACHE115","MEAD230","WALC",null,null,null,null,null,null,null,null,"WALC-APACHE115toMEAD230"]
["WALC","APACHE115","PARKER230","WALC",null,null,null,null,null,null,null,null,"WALC-APACHE115toPARKER230"]
["WALC","APACHE115","PNPKWALC230-P01","WALC",null,null,null,null,null,null,null,null,"WALC-APACHE115toPNPKWALC230-P01"]
["WALC","APACHE115","PNPKWALC230-P02","WALC",null,null,null,null,null,null,null,null,"WALC-APACHE115toPNPKWALC230-P02"]
["WALC","APACHE115","SAGUARO115","WALC",null,null,null,null,null,null,null,null,"WALC-APACHE115toSAGUARO115"]
["WALC","APACHE115","WESTWING500-Y01","WALC",null,null,null,null,null,null,null,null,"WALC-APACHE115toWESTWING500-Y01"]
["WALC","APACHE115","WESTWING500-Y02","WALC",null,null,null,null,null,null,null,null,"WALC-APACHE115toWESTWING500-Y02"]
["WALC","BKB","BLYTHE161","WALC",null,null,null,null,null,null,null,null,"WALC-BKBtoBLYTHE161"]
["WALC","BKB","DAVIS230","WALC",null,null,null,null,null,null,null,null,"WALC-BKBtoDAVIS230"]
["WALC","BKB","GILA161-P01","WALC",null,null,null,null,null,null,null,null,"WALC-BKBtoGILA161-P01"]
["WALC","BKB","GILA161-P02","WALC",null,null,null,null,null,null,null,null,"WALC-BKBtoGILA161-P02"]
["WALC","BKB","KNOB161-P01","WALC",null,null,null,null,null,null,null,null,"WALC-BKBtoKNOB161-P01"]
["WALC","BKB","KNOB161-P02","WALC",null,null,null,null,null,null,null,null,"WALC-BKBtoKNOB161-P02"]
["WALC","BKB","LIBERTY230","WALC",null,null,null,null,null,null,null,null,"WALC-BKBtoLIBERTY230"]
["WALC","BKB","MCCULLOUG230-P01","WALC",null,null,null,null,null,null,null,null,"WALC-BKBtoMCCULLOUG230-P01"]
["WALC","BKB","MCCULLOUG230-P02","WALC",null,null,null,null,null,null,null,null,"WALC-BKBtoMCCULLOUG230-P02"]
["WALC","BKB","MEAD230-P01","WALC",null,null,null,null,null,null,null,null,"WALC-BKBtoMEAD230-P01"]
["WALC","BKB","MEAD230-P02","WALC",null,null,null,null,null,null,null,null,"WALC-BKBtoMEAD230-P02"]
["WALC","BKB","MEAD500-P01","WALC",null,null,null,null,null,null,null,null,"WALC-BKBtoMEAD500-P01"]
["WALC","BKB","MEAD500-P02","WALC",null,null,null,null,null,null,null,null,"WALC-BKBtoMEAD500-P02"]
["WALC","BKB","PARKER230","WALC",null,null,null,null,null,null,null,null,"WALC-BKBtoPARKER230"]
["WALC","BKB","PNPKWALC230-P01","WALC",null,null,null,null,null,null,null,null,"WALC-BKBtoPNPKWALC230-P01"]
["WALC","BKB","PNPKWALC230-P02","WALC",null,null,null,null,null,null,null,null,"WALC-BKBtoPNPKWALC230-P02"]
["WALC","BKB","WESTWING230-Y01","WALC",null,null,null,null,null,null,null,null,"WALC-BKBtoWESTWING230-Y01"]
["WALC","BKB","WESTWING230-Y02","WALC",null,null,null,null,null,null,null,null,"WALC-BKBtoWESTWING230-Y02"]
["WALC","BKB","WESTWING500","WALC",null,null,null,null,null,null,null,null,"WALC-BKBtoWESTWING500"]
["WALC","BLACKMESA230","PARKER230","WALC",null,null,null,null,null,null,null,null,"WALC-BLACKMESA230toPARKER230"]
["WALC","BLACKMESA230","TOPOCK230","WALC",null,null,null,null,null,null,null,null,"WALC-BLACKMESA230toTOPOCK230"]
["WALC","BLYTHE161","DAVIS230","WALC",null,null,null,null,null,null,null,null,"WALC-BLYTHE161toDAVIS230"]
["WALC","BLYTHE161","GENE","WALC",null,null,null,null,null,null,null,null,"WALC-BLYTHE161toGENE"]
["WALC","BLYTHE161","LIBERTY230","WALC",null,null,null,null,null,null,null,null,"WALC-BLYTHE161toLIBERTY230"]
["WALC","BLYTHE161","MEAD230","WALC",null,null,null,null,null,null,null,null,"WALC-BLYTHE161toMEAD230"]
["WALC","BLYTHE161","PARKER230","WALC",null,null,null,null,null,null,null,null,"WALC-BLYTHE161toPARKER230"]
["WALC","BUCKEYE230","LIBERTY230","WALC",null,null,null,null,null,null,null,null,"WALC-BUCKEYE230toLIBERTY230"]
["WALC","COOLIDGE","APACHE115-P01","WALC",null,null,null,null,null,null,null,null,"WALC-COOLIDGEtoAPACHE115-P01"]
["WALC","COOLIDGE","APACHE115-P02","WALC",null,null,null,null,null,null,null,null,"WALC-COOLIDGEtoAPACHE115-P02"]
["WALC","COOLIDGE","APACHE115-P03","WALC",null,null,null,null,null,null,null,null,"WALC-COOLIDGEtoAPACHE115-P03"]
["WALC","COOLIDGE","DAVIS-P01","WALC",null,null,null,null,null,null,null,null,"WALC-COOLIDGEtoDAVIS-P01"]
["WALC","COOLIDGE","DAVIS-P02","WALC",null,null,null,null,null,null,null,null,"WALC-COOLIDGEtoDAVIS-P02"]
["WALC","COOLIDGE","FOURCORNE345","WALC",null,null,null,null,null,null,null,null,"WALC-COOLIDGEtoFOURCORNE345"]
["WALC","COOLIDGE","GLENCANYON2","WALC",null,null,null,null,null,null,null,null,"WALC-COOLIDGEtoGLENCANYON2"]
["WALC","COOLIDGE","LIBERTY230-P01","WALC",null,null,null,null,null,null,null,null,"WALC-COOLIDGEtoLIBERTY230-P01"]
["WALC","COOLIDGE","LIBERTY230-Y01","WALC",null,null,null,null,null,null,null,null,"WALC-COOLIDGEtoLIBERTY230-Y01"]
["WALC","COOLIDGE","MARKETPLACE-Y01","WALC",null,null,null,null,null,null,null,null,"WALC-COOLIDGEtoMARKETPLACE-Y01"]
["WALC","COOLIDGE","MARKETPLACE-Y02","WALC",null,null,null,null,null,null,null,null,"WALC-COOLIDGEtoMARKETPLACE-Y02"]
["WALC","COOLIDGE","MEAD230-P01","WALC",null,null,null,null,null,null,null,null,"WALC-COOLIDGEtoMEAD230-P01"]
["WALC","COOLIDGE","MEAD230-Y01","WALC",null,null,null,null,null,null,null,null,"WALC-COOLIDGEtoMEAD230-Y01"]
["WALC","COOLIDGE","PNPKWALC230-P01","WALC",null,null,null,null,null,null,null,null,"WALC-COOLIDGEtoPNPKWALC230-P01"]
["WALC","COOLIDGE","PNPKWALC230-Y01","WALC",null,null,null,null,null,null,null,null,"WALC-COOLIDGEtoPNPKWALC230-Y01"]
["WALC","COOLIDGE","SAGUARO115","WALC",null,null,null,null,null,null,null,null,"WALC-COOLIDGEtoSAGUARO115"]
["WALC","COOLIDGE","SHR2","WALC",null,null,null,null,null,null,null,null,"WALC-COOLIDGEtoSHR2"]
["WALC","COOLIDGE","SUNDANCE","WALC",null,null,null,null,null,null,null,null,"WALC-COOLIDGEtoSUNDANCE"]
["WALC","COOLIDGE","WESTWING230-Y01","WALC",null,null,null,null,null,null,null,null,"WALC-COOLIDGEtoWESTWING230-Y01"]
["WALC","COOLIDGE","WESTWING230-Y02","WALC",null,null,null,null,null,null,null,null,"WALC-COOLIDGEtoWESTWING230-Y02"]
["WALC","DAVIS230","COOLIDGE","WALC",null,null,null,null,null,null,null,null,"WALC-DAVIS230toCOOLIDGE"]
["WALC","DAVIS230","HILLTOP230","WALC",null,null,null,null,null,null,null,null,{"$f":"IF(ISBLANK(B69),\"\",LEFT(D69 & \"-\" & B69&\"to\"&C69, 31))","v":"WALC-DAVIS230toHILLTOP230"}]
["WALC","DAVIS230","MARKETPLACE","WALC",null,null,null,null,null,null,null,null,"WALC-DAVIS230toMARKETPLACE"]
["WALC","DAVIS230","MCCULLOUG230","WALC",null,null,null,null,null,null,null,null,"WALC-DAVIS230toMCCULLOUG230"]
["WALC","DAVIS230","MEAD230","WALC",null,null,null,null,null,null,null,null,"WALC-DAVIS230toMEAD230"]
["WALC","DAVIS230","PNPKWALC230-P01","WALC",null,null,null,null,null,null,null,null,"WALC-DAVIS230toPNPKWALC230-P01"]
["WALC","DAVIS230","PNPKWALC230-P02","WALC",null,null,null,null,null,null,null,null,"WALC-DAVIS230toPNPKWALC230-P02"]
["WALC","DAVIS230","TOPOCK230","WALC",null,null,null,null,null,null,null,null,"WALC-DAVIS230toTOPOCK230"]
["WALC","DAVIS230","WESTWING230","WALC",null,null,null,null,null,null,null,null,"WALC-DAVIS230toWESTWING230"]
["WALC","FOURCORNE345","GLENCANYON2","WALC",null,null,null,null,null,null,null,null,"WALC-FOURCORNE345toGLENCANYON2"]
["WALC","FOURCORNE345","MEAD230-W01","WALC",null,null,null,null,null,null,null,null,"WALC-FOURCORNE345toMEAD230-W01"]
["WALC","FOURCORNE345","MEAD230-X01","WALC",null,null,null,null,null,null,null,null,"WALC-FOURCORNE345toMEAD230-X01"]
["WALC","FOURCORNE345","MEAD230-X02","WALC",null,null,null,null,null,null,null,null,"WALC-FOURCORNE345toMEAD230-X02"]
["WALC","FOURCORNE345","PNPKWALC230","WALC",null,null,null,null,null,null,null,null,"WALC-FOURCORNE345toPNPKWALC230"]
["WALC","FOURCORNE345","SHIPROCK345","WALC",null,null,null,null,null,null,null,null,"WALC-FOURCORNE345toSHIPROCK345"]
["WALC","FOURCORNE345","SJ345","WALC",null,null,null,null,null,null,null,null,"WALC-FOURCORNE345toSJ345"]
["WALC","FOURCORNE345","TOPOCK230","WALC",null,null,null,null,null,null,null,null,"WALC-FOURCORNE345toTOPOCK230"]
["WALC","FOURCORNE345","WESTWING500","WALC",null,null,null,null,null,null,null,null,"WALC-FOURCORNE345toWESTWING500"]
["WALC","GILA161","BLYTHE161","WALC",null,null,null,null,null,null,null,null,"WALC-GILA161toBLYTHE161"]
["WALC","GILA161","GILA69","WALC",null,null,null,null,null,null,null,null,"WALC-GILA161toGILA69"]
["WALC","GILA161","KNOB161","WALC",null,null,null,null,null,null,null,null,"WALC-GILA161toKNOB161"]
["WALC","GILA161","MEAD230","WALC",null,null,null,null,null,null,null,null,"WALC-GILA161toMEAD230"]
["WALC","GILA161","PNPKWALC230","WALC",null,null,null,null,null,null,null,null,"WALC-GILA161toPNPKWALC230"]
["WALC","GILA161","WESTWING230","WALC",null,null,null,null,null,null,null,null,"WALC-GILA161toWESTWING230"]
["WALC","GILA69","NRTHGILA69","WALC",null,null,null,null,null,null,null,null,"WALC-GILA69toNRTHGILA69"]
["WALC","GLENCANYON2","MEAD230","WALC",null,null,null,null,null,null,null,null,"WALC-GLENCANYON2toMEAD230"]
["WALC","GLENCANYON2","MEAD500","WALC",null,null,null,null,null,null,null,null,"WALC-GLENCANYON2toMEAD500"]
["WALC","GLENCANYON2","PNPKWALC230","WALC",null,null,null,null,null,null,null,null,"WALC-GLENCANYON2toPNPKWALC230"]
["WALC","GLENCANYON2","SHR2","WALC",null,null,null,null,null,null,null,null,"WALC-GLENCANYON2toSHR2"]
["WALC","GLENCANYON2","SJ345","WALC",null,null,null,null,null,null,null,null,"WALC-GLENCANYON2toSJ345"]
["WALC","GLENCANYON2","WESTWING230","WALC",null,null,null,null,null,null,null,null,"WALC-GLENCANYON2toWESTWING230"]
["WALC","GLENCANYON2","WESTWING500","WALC",null,null,null,null,null,null,null,null,"WALC-GLENCANYON2toWESTWING500"]
["WALC","GRIFFITH230","GILA161","WALC",null,null,null,null,null,null,null,null,"WALC-GRIFFITH230toGILA161"]
["WALC","GRIFFITH230","GLENCANYON2","WALC",null,null,null,null,null,null,null,null,"WALC-GRIFFITH230toGLENCANYON2"]
["WALC","GRIFFITH230","LIBERTY230","WALC",null,null,null,null,null,null,null,null,"WALC-GRIFFITH230toLIBERTY230"]
["WALC","GRIFFITH230","MARKETPLACE","WALC",null,null,null,null,null,null,null,null,"WALC-GRIFFITH230toMARKETPLACE"]
["WALC","GRIFFITH230","MCCONNICO230","WALC",null,null,null,null,null,null,null,null,"WALC-GRIFFITH230toMCCONNICO230"]
["WALC","GRIFFITH230","MEAD230-I01","WALC",null,null,null,null,null,null,null,null,"WALC-GRIFFITH230toMEAD230-I01"]
["WALC","GRIFFITH230","MEAD230-P01","WALC",null,null,null,null,null,null,null,null,"WALC-GRIFFITH230toMEAD230-P01"]
["WALC","GRIFFITH230","NRTHGILA69","WALC",null,null,null,null,null,null,null,null,"WALC-GRIFFITH230toNRTHGILA69"]
["WALC","GRIFFITH230","PNPKWALC230","WALC",null,null,null,null,null,null,null,null,"WALC-GRIFFITH230toPNPKWALC230"]
["WALC","GRIFFITH230","SAGUARO115","WALC",null,null,null,null,null,null,null,null,"WALC-GRIFFITH230toSAGUARO115"]
["WALC","GRIFFITH230","STHPOINT230","WALC",null,null,null,null,null,null,null,null,"WALC-GRIFFITH230toSTHPOINT230"]
["WALC","GRIFFITH230","SUNDANCE","WALC",null,null,null,null,null,null,null,null,"WALC-GRIFFITH230toSUNDANCE"]
["WALC","GRIFFITH230","WESTWING230","WALC",null,null,null,null,null,null,null,null,"WALC-GRIFFITH230toWESTWING230"]
["WALC","GRIFFITH230","WESTWING500","WALC",null,null,null,null,null,null,null,null,"WALC-GRIFFITH230toWESTWING500"]
["WALC","HILLTOP230","MCCONNICO230","WALC",null,null,null,null,null,null,null,null,"WALC-HILLTOP230toMCCONNICO230"]
["WALC","KAY-LHV","SHR2","WALC",null,null,null,null,null,null,null,null,"WALC-KAY-LHVtoSHR2"]
["WALC","KNOB161","GILA161","WALC",null,null,null,null,null,null,null,null,"WALC-KNOB161toGILA161"]
["WALC","LIBERTY230","APACHE115","WALC",null,null,null,null,null,null,null,null,"WALC-LIBERTY230toAPACHE115"]
["WALC","LIBERTY230","BKB","WALC",null,null,null,null,null,null,null,null,"WALC-LIBERTY230toBKB"]
["WALC","LIBERTY230","BLYTHE161","WALC",null,null,null,null,null,null,null,null,"WALC-LIBERTY230toBLYTHE161"]
["WALC","LIBERTY230","BUCKEYE230","WALC",null,null,null,null,null,null,null,null,"WALC-LIBERTY230toBUCKEYE230"]
["WALC","LIBERTY230","COOLIDGE","WALC",null,null,null,null,null,null,null,null,"WALC-LIBERTY230toCOOLIDGE"]
["WALC","LIBERTY230","DAVIS230","WALC",null,null,null,null,null,null,null,null,"WALC-LIBERTY230toDAVIS230"]
["WALC","LIBERTY230","GILA161","WALC",null,null,null,null,null,null,null,null,"WALC-LIBERTY230toGILA161"]
["WALC","LIBERTY230","GLENCANYON2","WALC",null,null,null,null,null,null,null,null,"WALC-LIBERTY230toGLENCANYON2"]
["WALC","LIBERTY230","GRIFFITH230","WALC",null,null,null,null,null,null,null,null,"WALC-LIBERTY230toGRIFFITH230"]
["WALC","LIBERTY230","KNOB161","WALC",null,null,null,null,null,null,null,null,"WALC-LIBERTY230toKNOB161"]
["WALC","LIBERTY230","LONEBUTTE230","WALC",null,null,null,null,null,null,null,null,"WALC-LIBERTY230toLONEBUTTE230"]
["WALC","LIBERTY230","LUGO","WALC",null,null,null,null,null,null,null,null,"WALC-LIBERTY230toLUGO"]
["WALC","LIBERTY230","MARANA115","WALC",null,null,null,null,null,null,null,null,"WALC-LIBERTY230toMARANA115"]
["WALC","LIBERTY230","MARKETPLACE","WALC",null,null,null,null,null,null,null,null,"WALC-LIBERTY230toMARKETPLACE"]
["WALC","LIBERTY230","MEAD230-I01","WALC",null,null,null,null,null,null,null,null,"WALC-LIBERTY230toMEAD230-I01"]
["WALC","LIBERTY230","MEAD230-P01","WALC",null,null,null,null,null,null,null,null,"WALC-LIBERTY230toMEAD230-P01"]
["WALC","LIBERTY230","MEAD500","WALC",null,null,null,null,null,null,null,null,"WALC-LIBERTY230toMEAD500"]
["WALC","LIBERTY230","LONEBUTTE230","WALC",null,null,null,null,null,null,null,null,"WALC-LIBERTY230toLONEBUTTE230"]
["WALC","LIBERTY230","PARKER230","WALC",null,null,null,null,null,null,null,null,{"$f":"IF(ISBLANK(B135),\"\",LEFT(D135 & \"-\" & B135&\"to\"&C135, 31))","v":"WALC-LIBERTY230toPARKER230"}]
["WALC","LIBERTY230","PNPKWALC230","WALC",null,null,null,null,null,null,null,null,"WALC-LIBERTY230toPNPKWALC230"]
["WALC","LIBERTY230","SAGUARO115","WALC",null,null,null,null,null,null,null,null,"WALC-LIBERTY230toSAGUARO115"]
["WALC","LIBERTY230","SJ345","WALC",null,null,null,null,null,null,null,null,"WALC-LIBERTY230toSJ345"]
["WALC","LIBERTY230","SUNDANCE","WALC",null,null,null,null,null,null,null,null,"WALC-LIBERTY230toSUNDANCE"]
["WALC","LIBERTY230","TOPOCK230","WALC",null,null,null,null,null,null,null,null,"WALC-LIBERTY230toTOPOCK230"]
["WALC","LIBERTY230","WESTWING230","WALC",null,null,null,null,null,null,null,null,"WALC-LIBERTY230toWESTWING230"]
["WALC","LIBERTY230","WESTWING500","WALC",null,null,null,null,null,null,null,null,"WALC-LIBERTY230toWESTWING500"]
["WALC","LUGO","MARKETPLACE","WALC",null,null,null,null,null,null,null,null,"WALC-LUGOtoMARKETPLACE"]
["WALC","LUGO","MEAD500","WALC",null,null,null,null,null,null,null,null,"WALC-LUGOtoMEAD500"]
["WALC","MARANA115","LIBERTY230","WALC",null,null,null,null,null,null,null,null,"WALC-MARANA115toLIBERTY230"]
["WALC","MARANA115","SAGUARO115","WALC",null,null,null,null,null,null,null,null,"WALC-MARANA115toSAGUARO115"]
["WALC","MARANA115","WESTWING500","WALC",null,null,null,null,null,null,null,null,"WALC-MARANA115toWESTWING500"]
["WALC","MARKETPLACE","LUGO","WALC",null,null,null,null,null,null,null,null,"WALC-MARKETPLACEtoLUGO"]
["WALC","MARKETPLACE","MCCULLOUG230","WALC",null,null,null,null,null,null,null,null,"WALC-MARKETPLACEtoMCCULLOUG230"]
["WALC","MARKETPLACE","MEAD230","WALC",null,null,null,null,null,null,null,null,"WALC-MARKETPLACEtoMEAD230"]
["WALC","MARKETPLACE","MEAD500","WALC",null,null,null,null,null,null,null,null,"WALC-MARKETPLACEtoMEAD500"]
["WALC","MARKETPLACE","WESTWING500","WALC",null,null,null,null,null,null,null,null,"WALC-MARKETPLACEtoWESTWING500"]
["WALC","MCCONNICO230","DAVIS230","WALC",null,null,null,null,null,null,null,null,"WALC-MCCONNICO230toDAVIS230"]
["WALC","MCCONNICO230","GRIFFITH230","WALC",null,null,null,null,null,null,null,null,"WALC-MCCONNICO230toGRIFFITH230"]
["WALC","MCCONNICO230","HILLTOP230","WALC",null,null,null,null,null,null,null,null,"WALC-MCCONNICO230toHILLTOP230"]
["WALC","MCCULLOUG230","DAVIS230","WALC",null,null,null,null,null,null,null,null,"WALC-MCCULLOUG230toDAVIS230"]
["WALC","MCCULLOUG230","MARKETPLACE","WALC",null,null,null,null,null,null,null,null,"WALC-MCCULLOUG230toMARKETPLACE"]
["WALC","MCCULLOUG230","MEAD230","WALC",null,null,null,null,null,null,null,null,"WALC-MCCULLOUG230toMEAD230"]
["WALC","MCCULLOUG230","MEAD500","WALC",null,null,null,null,null,null,null,null,"WALC-MCCULLOUG230toMEAD500"]
["WALC","MEAD230","APACHE115","WALC",null,null,null,null,null,null,null,null,"WALC-MEAD230toAPACHE115"]
["WALC","MEAD230","BKB-P01","WALC",null,null,null,null,null,null,null,null,"WALC-MEAD230toBKB-P01"]
["WALC","MEAD230","BKB-Y01","WALC",null,null,null,null,null,null,null,null,"WALC-MEAD230toBKB-Y01"]
["WALC","MEAD230","BLYTHE161","WALC",null,null,null,null,null,null,null,null,"WALC-MEAD230toBLYTHE161"]
["WALC","MEAD230","DAVIS230","WALC",null,null,null,null,null,null,null,null,"WALC-MEAD230toDAVIS230"]
["WALC","MEAD230","FOURCORNE345","WALC",null,null,null,null,null,null,null,null,"WALC-MEAD230toFOURCORNE345"]
["WALC","MEAD230","GILA161","WALC",null,null,null,null,null,null,null,null,"WALC-MEAD230toGILA161"]
["WALC","MEAD230","GLENCANYON2-W01","WALC",null,null,null,null,null,null,null,null,"WALC-MEAD230toGLENCANYON2-W01"]
["WALC","MEAD230","GLENCANYON2-X01","WALC",null,null,null,null,null,null,null,null,"WALC-MEAD230toGLENCANYON2-X01"]
["WALC","MEAD230","GRIFFITH230-I01","WALC",null,null,null,null,null,null,null,null,"WALC-MEAD230toGRIFFITH230-I01"]
["WALC","MEAD230","GRIFFITH230-P01","WALC",null,null,null,null,null,null,null,null,"WALC-MEAD230toGRIFFITH230-P01"]
["WALC","MEAD230","HILLTOP230","WALC",null,null,null,null,null,null,null,null,"WALC-MEAD230toHILLTOP230"]
["WALC","MEAD230","LIBERTY230-I01","WALC",null,null,null,null,null,null,null,null,"WALC-MEAD230toLIBERTY230-I01"]
["WALC","MEAD230","LIBERTY230-P01","WALC",null,null,null,null,null,null,null,null,"WALC-MEAD230toLIBERTY230-P01"]
["WALC","MEAD230","MARKETPLACE","WALC",null,null,null,null,null,null,null,null,"WALC-MEAD230toMARKETPLACE"]
["WALC","MEAD230","MEAD500","WALC",null,null,null,null,null,null,null,null,"WALC-MEAD230toMEAD500"]
["WALC","MEAD230","PARKER230","WALC",null,null,null,null,null,null,null,null,"WALC-MEAD230toPARKER230"]
["WALC","MEAD230","PNPKWALC230-P01","WALC",null,null,null,null,null,null,null,null,"WALC-MEAD230toPNPKWALC230-P01"]
["WALC","MEAD230","PNPKWALC230-P02","WALC",null,null,null,null,null,null,null,null,"WALC-MEAD230toPNPKWALC230-P02"]
["WALC","MEAD230","SHR2","WALC",null,null,null,null,null,null,null,null,"WALC-MEAD230toSHR2"]
["WALC","MEAD230","SJ345","WALC",null,null,null,null,null,null,null,null,"WALC-MEAD230toSJ345"]
["WALC","MEAD230","TOPOCK230","WALC",null,null,null,null,null,null,null,null,"WALC-MEAD230toTOPOCK230"]
["WALC","MEAD230","WESTWING230","WALC",null,null,null,null,null,null,null,null,"WALC-MEAD230toWESTWING230"]
["WALC","MEAD230","WESTWING500","WALC",null,null,null,null,null,null,null,null,"WALC-MEAD230toWESTWING500"]
["WALC","MEAD500","FOURCORNE345","WALC",null,null,null,null,null,null,null,null,"WALC-MEAD500toFOURCORNE345"]
["WALC","MEAD500","GLENCANYON2","WALC",null,null,null,null,null,null,null,null,"WALC-MEAD500toGLENCANYON2"]
["WALC","MEAD500","MARKETPLACE","WALC",null,null,null,null,null,null,null,null,"WALC-MEAD500toMARKETPLACE"]
["WALC","MEAD500","MEAD230","WALC",null,null,null,null,null,null,null,null,"WALC-MEAD500toMEAD230"]
["WALC","MEAD500","SHR2","WALC",null,null,null,null,null,null,null,null,"WALC-MEAD500toSHR2"]
["WALC","MEAD500","WESTWING230","WALC",null,null,null,null,null,null,null,null,"WALC-MEAD500toWESTWING230"]
["WALC","MEAD500","WESTWING500","WALC",null,null,null,null,null,null,null,null,"WALC-MEAD500toWESTWING500"]
["WALC","NRTHGILA69","GILA161","WALC",null,null,null,null,null,null,null,null,"WALC-NRTHGILA69toGILA161"]
["WALC","NRTHGILA69","GILA69","WALC",null,null,null,null,null,null,null,null,"WALC-NRTHGILA69toGILA69"]
["WALC","PARKER230","APACHE115","WALC",null,null,null,null,null,null,null,null,"WALC-PARKER230toAPACHE115"]
["WALC","PARKER230","BLACKMESA230","WALC",null,null,null,null,null,null,null,null,"WALC-PARKER230toBLACKMESA230"]
["WALC","PARKER230","BLYTHE161","WALC",null,null,null,null,null,null,null,null,"WALC-PARKER230toBLYTHE161"]
["WALC","PARKER230","COOLIDGE","WALC",null,null,null,null,null,null,null,null,"WALC-PARKER230toCOOLIDGE"]
["WALC","PARKER230","DAVIS230","WALC",null,null,null,null,null,null,null,null,"WALC-PARKER230toDAVIS230"]
["WALC","PARKER230","GENE","WALC",null,null,null,null,null,null,null,null,"WALC-PARKER230toGENE"]
["WALC","PARKER230","GILA161","WALC",null,null,null,null,null,null,null,null,{"$f":"IF(ISBLANK(B199),\"\",LEFT(D199 & \"-\" & B199&\"to\"&C199, 31))","v":"WALC-PARKER230toGILA161"}]
["WALC","PARKER230","HILLTOP230","WALC",null,null,null,null,null,null,null,null,"WALC-PARKER230toHILLTOP230"]
["WALC","PARKER230","LIBERTY230","WALC",null,null,null,null,null,null,null,null,"WALC-PARKER230toLIBERTY230"]
["WALC","PARKER230","MEAD230","WALC",null,null,null,null,null,null,null,null,"WALC-PARKER230toMEAD230"]
["WALC","PARKER230","PNPKWALC230","WALC",null,null,null,null,null,null,null,null,"WALC-PARKER230toPNPKWALC230"]
["WALC","PARKER230","SAGUARO115","WALC",null,null,null,null,null,null,null,null,"WALC-PARKER230toSAGUARO115"]
["WALC","PNPKWALC230","APACHE115-P01","WALC",null,null,null,null,null,null,null,null,"WALC-PNPKWALC230toAPACHE115-P01"]
["WALC","PNPKWALC230","APACHE115-P02","WALC",null,null,null,null,null,null,null,null,"WALC-PNPKWALC230toAPACHE115-P02"]
["WALC","PNPKWALC230","BKB","WALC",null,null,null,null,null,null,null,null,"WALC-PNPKWALC230toBKB"]
["WALC","PNPKWALC230","BLACKMESA230","WALC",null,null,null,null,null,null,null,null,"WALC-PNPKWALC230toBLACKMESA230"]
["WALC","PNPKWALC230","BLYTHE161","WALC",null,null,null,null,null,null,null,null,"WALC-PNPKWALC230toBLYTHE161"]
["WALC","PNPKWALC230","COOLIDGE","WALC",null,null,null,null,null,null,null,null,"WALC-PNPKWALC230toCOOLIDGE"]
["WALC","PNPKWALC230","DAVIS230","WALC",null,null,null,null,null,null,null,null,"WALC-PNPKWALC230toDAVIS230"]
["WALC","PNPKWALC230","FOURCORNE345","WALC",null,null,null,null,null,null,null,null,"WALC-PNPKWALC230toFOURCORNE345"]
["WALC","PNPKWALC230","GILA161","WALC",null,null,null,null,null,null,null,null,"WALC-PNPKWALC230toGILA161"]
["WALC","PNPKWALC230","GLENCANYON2","WALC",null,null,null,null,null,null,null,null,"WALC-PNPKWALC230toGLENCANYON2"]
["WALC","PNPKWALC230","GRIFFITH230","WALC",null,null,null,null,null,null,null,null,"WALC-PNPKWALC230toGRIFFITH230"]
["WALC","PNPKWALC230","HILLTOP230","WALC",null,null,null,null,null,null,null,null,"WALC-PNPKWALC230toHILLTOP230"]
["WALC","PNPKWALC230","LIBERTY230","WALC",null,null,null,null,null,null,null,null,"WALC-PNPKWALC230toLIBERTY230"]
["WALC","PNPKWALC230","MCCULLOUG230","WALC",null,null,null,null,null,null,null,null,"WALC-PNPKWALC230toMCCULLOUG230"]
["WALC","PNPKWALC230","MEAD230-I01","WALC",null,null,null,null,null,null,null,null,"WALC-PNPKWALC230toMEAD230-I01"]
["WALC","PNPKWALC230","MEAD230-P01","WALC",null,null,null,null,null,null,null,null,"WALC-PNPKWALC230toMEAD230-P01"]
["WALC","PNPKWALC230","PARKER230","WALC",null,null,null,null,null,null,null,null,"WALC-PNPKWALC230toPARKER230"]
["WALC","PNPKWALC230","SAGUARO115","WALC",null,null,null,null,null,null,null,null,"WALC-PNPKWALC230toSAGUARO115"]
["WALC","PNPKWALC230","SHR2","WALC",null,null,null,null,null,null,null,null,"WALC-PNPKWALC230toSHR2"]
["WALC","PNPKWALC230","SUNDANCE","WALC",null,null,null,null,null,null,null,null,"WALC-PNPKWALC230toSUNDANCE"]
["WALC","PNPKWALC230","TOPOCK230","WALC",null,null,null,null,null,null,null,null,"WALC-PNPKWALC230toTOPOCK230"]
["WALC","PNPKWALC230","WESTWING230","WALC",null,null,null,null,null,null,null,null,"WALC-PNPKWALC230toWESTWING230"]
["WALC","PNPKWALC230","WESTWING500","WALC",null,null,null,null,null,null,null,null,"WALC-PNPKWALC230toWESTWING500"]
["WALC","SAGUARO115","APACHE115","WALC",null,null,null,null,null,null,null,null,"WALC-SAGUARO115toAPACHE115"]
["WALC","SAGUARO115","BLYTHE161","WALC",null,null,null,null,null,null,null,null,"WALC-SAGUARO115toBLYTHE161"]
["WALC","SAGUARO115","COOLIDGE","WALC",null,null,null,null,null,null,null,null,"WALC-SAGUARO115toCOOLIDGE"]
["WALC","SAGUARO115","GILA161","WALC",null,null,null,null,null,null,null,null,"WALC-SAGUARO115toGILA161"]
["WALC","SAGUARO115","MARANA115","WALC",null,null,null,null,null,null,null,null,"WALC-SAGUARO115toMARANA115"]
["WALC","SAGUARO115","PARKER230","WALC",null,null,null,null,null,null,null,null,"WALC-SAGUARO115toPARKER230"]
["WALC","SAGUARO115","SUNDANCE","WALC",null,null,null,null,null,null,null,null,"WALC-SAGUARO115toSUNDANCE"]
["WALC","SHIPROCK115","SHR2","WALC",null,null,null,null,null,null,null,null,"WALC-SHIPROCK115toSHR2"]
["WALC","SHIPROCK345","FOURCORNE345","WALC",null,null,null,null,null,null,null,null,"WALC-SHIPROCK345toFOURCORNE345"]
["WALC","SHIPROCK345","SHR2","WALC",null,null,null,null,null,null,null,null,"WALC-SHIPROCK345toSHR2"]
["WALC","SHIPROCK345","SJ345","WALC",null,null,null,null,null,null,null,null,"WALC-SHIPROCK345toSJ345"]
["WALC","SHR2","KAY-LHV","WALC",null,null,null,null,null,null,null,null,"WALC-SHR2toKAY-LHV"]
["WALC","SHR2","MEAD230","WALC",null,null,null,null,null,null,null,null,"WALC-SHR2toMEAD230"]
["WALC","SHR2","PNPKWALC230","WALC",null,null,null,null,null,null,null,null,"WALC-SHR2toPNPKWALC230"]
["WALC","SHR2","SHIPROCK115","WALC",null,null,null,null,null,null,null,null,"WALC-SHR2toSHIPROCK115"]
["WALC","SHR2","SHIPROCK345","WALC",null,null,null,null,null,null,null,null,"WALC-SHR2toSHIPROCK345"]
["WALC","SHR2","SJ345","WALC",null,null,null,null,null,null,null,null,"WALC-SHR2toSJ345"]
["WALC","SHR2","WESTWING230","WALC",null,null,null,null,null,null,null,null,"WALC-SHR2toWESTWING230"]
["WALC","SHR2","WESTWING500","WALC",null,null,null,null,null,null,null,null,"WALC-SHR2toWESTWING500"]
["WALC","SJ345","FOURCORNE345","WALC",null,null,null,null,null,null,null,null,"WALC-SJ345toFOURCORNE345"]
["WALC","SJ345","GLENCANYON2","WALC",null,null,null,null,null,null,null,null,"WALC-SJ345toGLENCANYON2"]
["WALC","SJ345","MEAD230","WALC",null,null,null,null,null,null,null,null,"WALC-SJ345toMEAD230"]
["WALC","SJ345","PARKER230","WALC",null,null,null,null,null,null,null,null,"WALC-SJ345toPARKER230"]
["WALC","SJ345","PNPKWALC230","WALC",null,null,null,null,null,null,null,null,"WALC-SJ345toPNPKWALC230"]
["WALC","SJ345","SHIPROCK115","WALC",null,null,null,null,null,null,null,null,"WALC-SJ345toSHIPROCK115"]
["WALC","SJ345","SHIPROCK345","WALC",null,null,null,null,null,null,null,null,"WALC-SJ345toSHIPROCK345"]
["WALC","SJ345","WESTWING230","WALC",null,null,null,null,null,null,null,null,"WALC-SJ345toWESTWING230"]
["WALC","STHPOINT230","DAVIS230","WALC",null,null,null,null,null,null,null,null,"WALC-STHPOINT230toDAVIS230"]
["WALC","STHPOINT230","MEAD230","WALC",null,null,null,null,null,null,null,null,"WALC-STHPOINT230toMEAD230"]
["WALC","STHPOINT230","PNPKWALC230","WALC",null,null,null,null,null,null,null,null,"WALC-STHPOINT230toPNPKWALC230"]
["WALC","STHPOINT230","TOPOCK230","WALC",null,null,null,null,null,null,null,null,"WALC-STHPOINT230toTOPOCK230"]
["WALC","SUNDANCE","APACHE115","WALC",null,null,null,null,null,null,null,null,"WALC-SUNDANCEtoAPACHE115"]
["WALC","SUNDANCE","BKB","WALC",null,null,null,null,null,null,null,null,"WALC-SUNDANCEtoBKB"]
["WALC","SUNDANCE","BLACKMESA230","WALC",null,null,null,null,null,null,null,null,"WALC-SUNDANCEtoBLACKMESA230"]
["WALC","SUNDANCE","BLYTHE161","WALC",null,null,null,null,null,null,null,null,"WALC-SUNDANCEtoBLYTHE161"]
["WALC","SUNDANCE","COOLIDGE","WALC",null,null,null,null,null,null,null,null,{"$f":"IF(ISBLANK(B263),\"\",LEFT(D263 & \"-\" & B263&\"to\"&C263, 31))","v":"WALC-SUNDANCEtoCOOLIDGE"}]
["WALC","SUNDANCE","DAVIS230","WALC",null,null,null,null,null,null,null,null,"WALC-SUNDANCEtoDAVIS230"]
["WALC","SUNDANCE","FOURCORNE345","WALC",null,null,null,null,null,null,null,null,"WALC-SUNDANCEtoFOURCORNE345"]
["WALC","SUNDANCE","GENE","WALC",null,null,null,null,null,null,null,null,"WALC-SUNDANCEtoGENE"]
["WALC","SUNDANCE","GILA161","WALC",null,null,null,null,null,null,null,null,"WALC-SUNDANCEtoGILA161"]
["WALC","SUNDANCE","GLENCANYON2","WALC",null,null,null,null,null,null,null,null,"WALC-SUNDANCEtoGLENCANYON2"]
["WALC","SUNDANCE","GLENCANYON3","WALC",null,null,null,null,null,null,null,null,"WALC-SUNDANCEtoGLENCANYON3"]
["WALC","SUNDANCE","GRIFFITH230","WALC",null,null,null,null,null,null,null,null,"WALC-SUNDANCEtoGRIFFITH230"]
["WALC","SUNDANCE","HILLTOP230","WALC",null,null,null,null,null,null,null,null,"WALC-SUNDANCEtoHILLTOP230"]
["WALC","SUNDANCE","KNOB161","WALC",null,null,null,null,null,null,null,null,"WALC-SUNDANCEtoKNOB161"]
["WALC","SUNDANCE","LIBERTY230","WALC",null,null,null,null,null,null,null,null,"WALC-SUNDANCEtoLIBERTY230"]
["WALC","SUNDANCE","LUGO","WALC",null,null,null,null,null,null,null,null,"WALC-SUNDANCEtoLUGO"]
["WALC","SUNDANCE","MARANA115","WALC",null,null,null,null,null,null,null,null,"WALC-SUNDANCEtoMARANA115"]
["WALC","SUNDANCE","MARKETPLACE","WALC",null,null,null,null,null,null,null,null,"WALC-SUNDANCEtoMARKETPLACE"]
["WALC","SUNDANCE","MCCONNICO230","WALC",null,null,null,null,null,null,null,null,"WALC-SUNDANCEtoMCCONNICO230"]
["WALC","SUNDANCE","MCCULLOUG230","WALC",null,null,null,null,null,null,null,null,"WALC-SUNDANCEtoMCCULLOUG230"]
["WALC","SUNDANCE","MEAD230","WALC",null,null,null,null,null,null,null,null,"WALC-SUNDANCEtoMEAD230"]
["WALC","SUNDANCE","NRTHGILA69","WALC",null,null,null,null,null,null,null,null,"WALC-SUNDANCEtoNRTHGILA69"]
["WALC","SUNDANCE","PARKER230","WALC",null,null,null,null,null,null,null,null,"WALC-SUNDANCEtoPARKER230"]
["WALC","SUNDANCE","PEACOCK230","WALC",null,null,null,null,null,null,null,null,"WALC-SUNDANCEtoPEACOCK230"]
["WALC","SUNDANCE","PNPKWALC230","WALC",null,null,null,null,null,null,null,null,"WALC-SUNDANCEtoPNPKWALC230"]
["WALC","SUNDANCE","SAGUARO115","WALC",null,null,null,null,null,null,null,null,"WALC-SUNDANCEtoSAGUARO115"]
["WALC","SUNDANCE","SHIPROCK115","WALC",null,null,null,null,null,null,null,null,"WALC-SUNDANCEtoSHIPROCK115"]
["WALC","SUNDANCE","SHR2","WALC",null,null,null,null,null,null,null,null,"WALC-SUNDANCEtoSHR2"]
["WALC","SUNDANCE","SJ345","WALC",null,null,null,null,null,null,null,null,"WALC-SUNDANCEtoSJ345"]
["WALC","SUNDANCE","STHPOINT230","WALC",null,null,null,null,null,null,null,null,"WALC-SUNDANCEtoSTHPOINT230"]
["WALC","SUNDANCE","TOPOCK230","WALC",null,null,null,null,null,null,null,null,"WALC-SUNDANCEtoTOPOCK230"]
["WALC","SUNDANCE","WESTWING230","WALC",null,null,null,null,null,null,null,null,"WALC-SUNDANCEtoWESTWING230"]
["WALC","SUNDANCE","WESTWING500","WALC",null,null,null,null,null,null,null,null,"WALC-SUNDANCEtoWESTWING500"]
["WALC","TOPOCK230","BKB","WALC",null,null,null,null,null,null,null,null,"WALC-TOPOCK230toBKB"]
["WALC","TOPOCK230","BLACKMESA230","WALC",null,null,null,null,null,null,null,null,"WALC-TOPOCK230toBLACKMESA230"]
["WALC","TOPOCK230","BLYTHE161","WALC",null,null,null,null,null,null,null,null,"WALC-TOPOCK230toBLYTHE161"]
["WALC","TOPOCK230","DAVIS230","WALC",null,null,null,null,null,null,null,null,"WALC-TOPOCK230toDAVIS230"]
["WALC","TOPOCK230","LIBERTY230","WALC",null,null,null,null,null,null,null,null,"WALC-TOPOCK230toLIBERTY230"]
["WALC","TOPOCK230","MARKETPLACE","WALC",null,null,null,null,null,null,null,null,"WALC-TOPOCK230toMARKETPLACE"]
["WALC","TOPOCK230","MCCULLOUG230","WALC",null,null,null,null,null,null,null,null,"WALC-TOPOCK230toMCCULLOUG230"]
["WALC","TOPOCK230","MEAD230","WALC",null,null,null,null,null,null,null,null,"WALC-TOPOCK230toMEAD230"]
["WALC","TOPOCK230","PARKER230","WALC",null,null,null,null,null,null,null,null,"WALC-TOPOCK230toPARKER230"]
["WALC","TOPOCK230","PNPKWALC230","WALC",null,null,null,null,null,null,null,null,"WALC-TOPOCK230toPNPKWALC230"]
["WALC","TOPOCK230","STHPOINT230","WALC",null,null,null,null,null,null,null,null,"WALC-TOPOCK230toSTHPOINT230"]
["WALC","TOPOCK230","WESTWING230","WALC",null,null,null,null,null,null,null,null,"WALC-TOPOCK230toWESTWING230"]
["WALC","TOPOCK230","WESTWING500","WALC",null,null,null,null,null,null,null,null,"WALC-TOPOCK230toWESTWING500"]
["WALC","WESTWING230","BLYTHE161","WALC",null,null,null,null,null,null,null,null,"WALC-WESTWING230toBLYTHE161"]
["WALC","WESTWING230","DAVIS230","WALC",null,null,null,null,null,null,null,null,"WALC-WESTWING230toDAVIS230"]
["WALC","WESTWING230","FOURCORNE345","WALC",null,null,null,null,null,null,null,null,"WALC-WESTWING230toFOURCORNE345"]
["WALC","WESTWING230","GRIFFITH230","WALC",null,null,null,null,null,null,null,null,"WALC-WESTWING230toGRIFFITH230"]
["WALC","WESTWING230","LIBERTY230","WALC",null,null,null,null,null,null,null,null,"WALC-WESTWING230toLIBERTY230"]
["WALC","WESTWING230","MEAD230","WALC",null,null,null,null,null,null,null,null,"WALC-WESTWING230toMEAD230"]
["WALC","WESTWING230","MEAD500","WALC",null,null,null,null,null,null,null,null,"WALC-WESTWING230toMEAD500"]
["WALC","WESTWING230","PNPKWALC230","WALC",null,null,null,null,null,null,null,null,"WALC-WESTWING230toPNPKWALC230"]
["WALC","WESTWING230","SJ345","WALC",null,null,null,null,null,null,null,null,"WALC-WESTWING230toSJ345"]
["WALC","WESTWING230","WESTWING500","WALC",null,null,null,null,null,null,null,null,"WALC-WESTWING230toWESTWING500"]
["WALC","WESTWING500","BKB","WALC",null,null,null,null,null,null,null,null,"WALC-WESTWING500toBKB"]
["WALC","WESTWING500","BLYTHE161-Y01","WALC",null,null,null,null,null,null,null,null,"WALC-WESTWING500toBLYTHE161-Y01"]
["WALC","WESTWING500","BLYTHE161-Y02","WALC",null,null,null,null,null,null,null,null,"WALC-WESTWING500toBLYTHE161-Y02"]
["WALC","WESTWING500","GILA161","WALC",null,null,null,null,null,null,null,null,"WALC-WESTWING500toGILA161"]
["WALC","WESTWING500","GRIFFITH230","WALC",null,null,null,null,null,null,null,null,"WALC-WESTWING500toGRIFFITH230"]
["WALC","WESTWING500","LIBERTY230","WALC",null,null,null,null,null,null,null,null,"WALC-WESTWING500toLIBERTY230"]
["WALC","WESTWING500","MARKETPLACE","WALC",null,null,null,null,null,null,null,null,"WALC-WESTWING500toMARKETPLACE"]
["WALC","WESTWING500","MEAD230","WALC",null,null,null,null,null,null,null,null,"WALC-WESTWING500toMEAD230"]
["WALC","WESTWING500","MEAD500","WALC",null,null,null,null,null,null,null,null,"WALC-WESTWING500toMEAD500"]
["WALC","WESTWING500","PNPKWALC230","WALC",null,null,null,null,null,null,null,null,"WALC-WESTWING500toPNPKWALC230"]
["WALC","WESTWING500","SHR2","WALC",null,null,null,null,null,null,null,null,"WALC-WESTWING500toSHR2"]
["WALC","WESTWING500","TOPOCK230","WALC",null,null,null,null,null,null,null,null,"WALC-WESTWING500toTOPOCK230"]
["WALC","WESTWING500","WESTWING230","WALC",null,null,null,null,null,null,null,null,{"$f":"IF(ISBLANK(B327),\"\",LEFT(D327 & \"-\" & B327&\"to\"&C327, 31))","v":"WALC-WESTWING500toWESTWING230"}]
[null,null,null,null,null,null,null,null,null,null,null,null,""]
[null,null,null,null,null,null,null,null,null,null,null,null,""]
[null,null,null,null,null,null,null,null,null,null,null,null,""]
[null,null,null,null,null,null,null,null,null,null,null,null,""]
[null,null,null,null,null,null,null,null,null,null,null,null,""]
[null,null,null,null,null,null,null,null,null,null,null,null,""]
[null,null,null,null,null,null,null,null,null,null,null,null,""]
[null,null,null,null,null,null,null,null,null,null,null,null,""]
[null,null,null,null,null,null,null,null,null,null,null,null,""]
[null,null,null,null,null,null,null,null,null,null,null,null,""]
[null,null,null,null,null,null,null,null,null,null,null,null,""]
[null,null,null,null,null,null,null,null,null,null,null,null,""]
[null,null,null,null,null,null,null,null,null,null,null,null,""]
[null,null,null,null,null,null,null,null,null,null,null,null,""]
[null,null,null,null,null,null,null,null,null,null,null,null,""]
[null,null,null,null,null,null,null,null,null,null,null,null,""]
[null,null,null,null,null,null,null,null,null,null,null,null,""]
[null,null,null,null,null,null,null,null,null,null,null,null,""]
[null,null,null,null,null,null,null,null,null,null,null,null,""]
[null,null,null,null,null,null,null,null,null,null,null,null,""]
[null,null,null,null,null,null,null,null,null,null,null,null,""]
[null,null,null,null,null,null,null,null,null,null,null,null,""]
[null,null,null,null,null,null,null,null,null,null,null,null,""]
[null,null,null,null,null,null,null,null,null,null,null,null,""]
[null,null,null,null,null,null,null,null,null,null,null,null,""]
[null,null,null,null,null,null,null,null,null,null,null,null,""]
[null,null,null,null,null,null,null,null,null,null,null,null,""]
[null,null,null,null,null,null,null,null,null,null,null,null,""]
[null,null,null,null,null,null,null,null,null,null,null,null,""]
[null,null,null,null,null,null,null,null,null,null,null,null,""]
[null,null,null,null,null,null,null,null,null,null,null,null,""]
[null,null,null,null,null,null,null,null,null,null,null,null,""]
[null,null,null,null,null,null,null,null,null,null,null,null,""]
[null,null,null,null,null,null,null,null,null,null,null,null,""]
[null,null,null,null,null,null,null,null,null,null,null,null,""]
[null,null,null,null,null,null,null,null,null,null,null,null,""]
[null,null,null,null,null,null,null,null,null,null,null,null,""]
[null,null,null,null,null,null,null,null,null,null,null,null,""]
[null,null,null,null,null,null,null,null,null,null,null,null,""]
[null,null,null,null,null,null,null,null,null,null,null,null,""]
[null,null,null,null,null,null,null,null,null,null,null,null,""]
[null,null,null,null,null,null,null,null,null,null,null,null,""]
[null,null,null,null,null,null,null,null,null,null,null,null,""]
[null,null,null,null,null,null,null,null,null,null,null,null,""]
[null,null,null,null,null,null,null,null,null,null,null,null,""]
[null,null,null,null,null,null,null,null,null,null,null,null,""]
[null,null,null,null,null,null,null,null,null,null,null,null,""]
[null,null,null,null,null,null,null,null,null,null,null,null,""]
[null,null,null,null,null,null,null,null,null,null,null,null,""]
[null,null,null,null,null,null,null,null,null,null,null,null,""]
[null,null,null,null,null,null,null,null,null,null,null,null,""]
[null,null,null,null,null,null,null,null,null,null,null,null,""]
[null,null,null,null,null,null,null,null,null,null,null,null,""]
[null,null,null,null,null,null,null,null,null,null,null,null,""]
[null,null,null,null,null,null,null,null,null,null,null,null,""]
[null,null,null,null,null,null,null,null,null,null,null,null,""]
[null,null,null,null,null,null,null,null,null,null,null,null,""]
[null,null,null,null,null,null,null,null,null,null,null,null,""]
[null,null,null,null,null,null,null,null,null,null,null,null,""]
[null,null,null,null,null,null,null,null,null,null,null,null,""]
[null,null,null,null,null,null,null,null,null,null,null,null,""]
[null,null,null,null,null,null,null,null,null,null,null,null,""]
[null,null,null,null,null,null,null,null,null,null,null,null,""]
[null,null,null,null,null,null,null,null,null,null,null,null,{"$f":"IF(ISBLANK(B391),\"\",LEFT(D391 & \"-\" & B391&\"to\"&C391, 31))","v":""}]
[null,null,null,null,null,null,null,null,null,null,null,null,""]
[null,null,null,null,null,null,null,null,null,null,null,null,""]
[null,null,null,null,null,null,null,null,null,null,null,null,""]
[null,null,null,null,null,null,null,null,null,null,null,null,""]
[null,null,null,null,null,null,null,null,null,null,null,null,""]
[null,null,null,null,null,null,null,null,null,null,null,null,""]
[null,null,null,null,null,null,null,null,null,null,null,null,""]
[null,null,null,null,null,null,null,null,null,null,null,null,""]
[null,null,null,null,null,null,null,null,null,null,null,null,""]
[null,null,null,null,null,null,null,null,null,null,null,null,""]
[null,null,null,null,null,null,null,null,null,null,null,null,""]
[null,null,null,null,null,null,null,null,null,null,null,null,{"$f":"IF(ISBLANK(B403),\"\",LEFT(D403 & \"-\" & B403&\"to\"&C403, 31))","v":""}]
[null,null,null,null,null,null,null,null,null,null,null,null,""]
[null,null,null,null,null,null,null,null,null,null,null,null,""]
[null,null,null,null,null,null,null,null,null,null,null,null,""]
[null,null,null,null,null,null,null,null,null,null,null,null,""]
[null,null,null,null,null,null,null,null,null,null,null,null,""]
[null,null,null,null,null,null,null,null,null,null,null,null,""]
[null,null,null,null,null,null,null,null,null,null,null,null,""]
[null,null,null,null,null,null,null,null,null,null,null,null,""]
[null,null,null,null,null,null,null,null,null,null,null,null,""]
[null,null,null,null,null,null,null,null,null,null,null,null,""]
[null,null,null,null,null,null,null,null,null,null,null,null,""]
[null,null,null,null,null,null,null,null,null,null,null,null,""]
[null,null,null,null,null,null,null,null,null,null,null,null,""]
[null,null,null,null,null,null,null,null,null,null,null,null,""]
[null,null,null,null,null,null,null,null,null,null,null,null,""]
[null,null,null,null,null,null,null,null,null,null,null,null,""]
[null,null,null,null,null,null,null,null,null,null,null,null,""]
[null,null,null,null,null,null,null,null,null,null,null,null,""]
[null,null,null,null,null,null,null,null,null,null,null,null,""]
[null,null,null,null,null,null,null,null,null,null,null,null,""]
[null,null,null,null,null,null,null,null,null,null,null,null,""]
[null,null,null,null,null,null,null,null,null,null,null,null,""]
[null,null,null,null,null,null,null,null,null,null,null,null,""]

{"sheet":"Sheet7","index":9,"n_rows":17,"n_cols":9,"rows_kept":17,"cut":false,"hidden":false,"merged":[[1,0,1,6],[6,3,6,4],[12,3,12,4],[0,0,0,6]]}
["RETURN TO TEMPLATE INDEX"]
["W/LAPT/4B N>S/DAVEJOHNSTON>AULT/LAP"]
[]
[null,null,null,null,null,null,null,null,"Must list correct Scheduling Entity"]
[null,null,null,null,"Physical Path",null,null,null,"associated with the physical path "]
["CA","TP","PSE","POR","POD","Sched Entities","Contract",null,"in the proper sequence"]
[null,null,null,null,null,null,null,null,"CA for the POR-POD "]
[null,"\"- - - - -\"","\"- - - - -\"","\"- - - - -\"","DJ","\"- - - - -\""]
[null,"LAPT","\"- - - - -\"","DJ","SGW","WACM"]
[null,"LAPT","\"- - - - -\"","SGW","SCSW","WACM"]
[null,"LAPT","\"- - - - -\"","SCSW","AU","WACM"]
[null,"\"- - - - -\"","\"- - - - -\"","AU","\"- - - - -\"","\"- - - - -\""]
[]
[]
["Legend",null,null,null,null,"If the Transmission Customer has multiple transmission"]
["\"- - - - -\" appropriate TSIN data to be filled in by Tag Agent.",null,null,null,null,"segments purchased that are combined, then each "]
[null,null,null,null,null,"segment should be shown as new TP lines in the e-tag"]

{"sheet":"Sheet8","index":10,"n_rows":17,"n_cols":9,"rows_kept":17,"cut":false,"hidden":false,"merged":[[1,0,1,6],[6,3,6,4],[12,3,12,4],[0,0,0,6]]}
["RETURN TO TEMPLATE INDEX"]
["W/LAPT/4B N>S/DAVEJOHNSTON>SIDNEYW230/LAP"]
[]
[null,null,null,null,null,null,null,null,"Must list correct Scheduling Entity"]
[null,null,null,null,"Physical Path",null,null,null,"associated with the physical path "]
["CA","TP","PSE","POR","POD","Sched Entities","Contract",null,"in the proper sequence"]
[null,null,null,null,null,null,null,null,"CA for the POR-POD "]
[null,"\"- - - - -\"","\"- - - - -\"","\"- - - - -\"","DJ","\"- - - - -\""]
[null,"LAPT","\"- - - - -\"","DJ","SGW","WACM"]
[null,"LAPT","\"- - - - -\"","SGW","SCSW","WACM"]
[null,"\"- - - - -\"","\"- - - - -\"","SCSW","\"- - - - -\"","\"- - - - -\""]
[null,"\"- - - - -\"","\"- - - - -\"","\"- - - - -\"","\"- - - - -\"","\"- - - - -\""]
[]
[]
["Legend",null,null,null,null,"If the Transmission Customer has multiple transmission"]
["\"- - - - -\" appropriate TSIN data to be filled in by Tag Agent.",null,null,null,null,"segments purchased that are combined, then each "]
[null,null,null,null,null,"segment should be shown as new TP lines in the e-tag"]

{"sheet":"Sheet9","index":11,"n_rows":17,"n_cols":9,"rows_kept":17,"cut":false,"hidden":false,"merged":[[1,0,1,6],[6,3,6,4],[12,3,12,4],[0,0,0,6]]}
["RETURN TO TEMPLATE INDEX"]
["W/LAPT/4B N>S/STEGALLW230>AULT/LAP"]
[]
[null,null,null,null,null,null,null,null,"Must list correct Scheduling Entity"]
[null,null,null,null,"Physical Path",null,null,null,"associated with the physical path "]
["CA","TP","PSE","POR","POD","Sched Entities","Contract",null,"in the proper sequence"]
[null,null,null,null,null,null,null,null,"CA for the POR-POD "]
[null,"\"- - - - -\"","\"- - - - -\"","\"- - - - -\"","SGW","\"- - - - -\""]
[null,"LAPT","\"- - - - -\"","SGW","SCSW","WACM"]
[null,"LAPT","\"- - - - -\"","SCSW","AU","WACM"]
[null,"\"- - - - -\"","\"- - - - -\"","AU","\"- - - - -\"","\"- - - - -\""]
[null,"\"- - - - -\"","\"- - - - -\"","\"- - - - -\"","\"- - - - -\"","\"- - - - -\""]
[]
[]
["Legend",null,null,null,null,"If the Transmission Customer has multiple transmission"]
["\"- - - - -\" appropriate TSIN data to be filled in by Tag Agent.",null,null,null,null,"segments purchased that are combined, then each "]
[null,null,null,null,null,"segment should be shown as new TP lines in the e-tag"]

{"sheet":"Sheet10","index":12,"n_rows":16,"n_cols":9,"rows_kept":16,"cut":false,"hidden":false,"merged":[[1,0,1,6],[6,3,6,4],[11,3,11,4],[0,0,0,6]]}
["RETURN TO TEMPLATE INDEX"]
["W/LAPT/4B N>S/STEGALLW230>SIDNEYW230/LAP"]
[]
[null,null,null,null,null,null,null,null,"Must list correct Scheduling Entity"]
[null,null,null,null,"Physical Path",null,null,null,"associated with the physical path "]
["CA","TP","PSE","POR","POD","Sched Entities","Contract",null,"in the proper sequence"]
[null,null,null,null,null,null,null,null,"CA for the POR-POD "]
[null,"\"- - - - -\"","\"- - - - -\"","\"- - - - -\"","SGW","\"- - - - -\""]
[null,"LAPT","\"- - - - -\"","SGW","SCSW","WACM"]
[null,"\"- - - - -\"","\"- - - - -\"","SCSW","\"- - - - -\"","\"- - - - -\""]
[null,"\"- - - - -\"","\"- - - - -\"","\"- - - - -\"","\"- - - - -\"","\"- - - - -\""]
[]
[]
["Legend",null,null,null,null,"If the Transmission Customer has multiple transmission"]
["\"- - - - -\" appropriate TSIN data to be filled in by Tag Agent.",null,null,null,null,"segments purchased that are combined, then each "]
[null,null,null,null,null,"segment should be shown as new TP lines in the e-tag"]

{"sheet":"Sheet11","index":13,"n_rows":17,"n_cols":9,"rows_kept":17,"cut":false,"hidden":false,"merged":[[1,0,1,6],[6,3,6,4],[12,3,12,4],[0,0,0,6]]}
["RETURN TO TEMPLATE INDEX"]
["W/LAPT/4B N>S/STEGALLW230>YELLOWTAILP/LAP"]
[]
[null,null,null,null,null,null,null,null,"Must list correct Scheduling Entity"]
[null,null,null,null,"Physical Path",null,null,null,"associated with the physical path "]
["CA","TP","PSE","POR","POD","Sched Entities","Contract",null,"in the proper sequence"]
[null,null,null,null,null,null,null,null,"CA for the POR-POD "]
[null,"\"- - - - -\"","\"- - - - -\"","\"- - - - -\"","SGW","\"- - - - -\""]
[null,"LAPT","\"- - - - -\"","SGW","DJ","WACM"]
[null,"LAPT","\"- - - - -\"","DJ","YTW","WACM"]
[null,"LAPT","\"- - - - -\"","YTW","YTP","PACE"]
[null,"\"- - - - -\"","\"- - - - -\"","YTP","\"- - - - -\"","\"- - - - -\""]
[]
[]
["Legend",null,null,null,null,"If the Transmission Customer has multiple transmission"]
["\"- - - - -\" appropriate TSIN data to be filled in by Tag Agent.",null,null,null,null,"segments purchased that are combined, then each "]
[null,null,null,null,null,"segment should be shown as new TP lines in the e-tag"]

{"sheet":"Sheet12","index":14,"n_rows":16,"n_cols":9,"rows_kept":16,"cut":false,"hidden":false,"merged":[[1,0,1,6],[6,3,6,4],[11,3,11,4],[0,0,0,6]]}
["RETURN TO TEMPLATE INDEX"]
["W/LAPT/4B N>S/YELLOWTAILP>DAVEJOHNSTON/LAP"]
[]
[null,null,null,null,null,null,null,null,"Must list correct Scheduling Entity"]
[null,null,null,null,"Physical Path",null,null,null,"associated with the physical path "]
["CA","TP","PSE","POR","POD","Sched Entities","Contract",null,"in the proper sequence"]
[null,null,null,null,null,null,null,null,"CA for the POR-POD "]
[null,"\"- - - - -\"","\"- - - - -\"","\"- - - - -\"","YTP","\"- - - - -\""]
[null,"LAPT","\"- - - - -\"","YTP","YTW","WACM"]
[null,"LAPT","\"- - - - -\"","YTW","DJ","WACM"]
[null,"\"- - - - -\"","\"- - - - -\"","DJ","\"- - - - -\"","\"- - - - -\""]
[]
[]
["Legend",null,null,null,null,"If the Transmission Customer has multiple transmission"]
["\"- - - - -\" appropriate TSIN data to be filled in by Tag Agent.",null,null,null,null,"segments purchased that are combined, then each "]
[null,null,null,null,null,"segment should be shown as new TP lines in the e-tag"]

{"sheet":"Sheet13","index":15,"n_rows":17,"n_cols":9,"rows_kept":17,"cut":false,"hidden":false,"merged":[[1,0,1,6],[6,3,6,4],[12,3,12,4],[0,0,0,6]]}
["RETURN TO TEMPLATE INDEX"]
["W/LAPT/4B N>S/YELLOWTAILP>STEGALLW230/LAP"]
[]
[null,null,null,null,null,null,null,null,"Must list correct Scheduling Entity"]
[null,null,null,null,"Physical Path",null,null,null,"associated with the physical path "]
["CA","TP","PSE","POR","POD","Sched Entities","Contract",null,"in the proper sequence"]
[null,null,null,null,null,null,null,null,"CA for the POR-POD "]
[null,"\"- - - - -\"","\"- - - - -\"","\"- - - - -\"","YTP","\"- - - - -\""]
[null,"LAPT","\"- - - - -\"","YTP","DJ","WACM"]
[null,"LAPT","\"- - - - -\"","DJ","SGW","WACM"]
[null,"\"- - - - -\"","\"- - - - -\"","SGW","\"- - - - -\"","\"- - - - -\""]
[null,"\"- - - - -\"","\"- - - - -\"","\"- - - - -\"","\"- - - - -\"","\"- - - - -\""]
[]
[]
["Legend",null,null,null,null,"If the Transmission Customer has multiple transmission"]
["\"- - - - -\" appropriate TSIN data to be filled in by Tag Agent.",null,null,null,null,"segments purchased that are combined, then each "]
[null,null,null,null,null,"segment should be shown as new TP lines in the e-tag"]

{"sheet":"Sheet14","index":16,"n_rows":18,"n_cols":9,"rows_kept":18,"cut":false,"hidden":false,"merged":[[1,0,1,6],[6,3,6,4],[13,3,13,4],[0,0,0,6]]}
["RETURN TO TEMPLATE INDEX"]
["W/LAPT/4B N>S/YELLOWTAILW>AULT/LAP"]
[]
[null,null,null,null,null,null,null,null,"Must list correct Scheduling Entity"]
[null,null,null,null,"Physical Path",null,null,null,"associated with the physical path "]
["CA","TP","PSE","POR","POD","Sched Entities","Contract",null,"in the proper sequence"]
[null,null,null,null,null,null,null,null,"BA for the POR-POD "]
[null,"\"- - - - -\"","\"- - - - -\"","\"- - - - -\"","YTW","\"- - - - -\""]
[null,"LAPT","\"- - - - -\"","YTW","DJ","WACM"]
[null,"LAPT","\"- - - - -\"","DJ","SGW","WACM"]
[null,"LAPT","\"- - - - -\"","SGW","SCSW","WACM"]
[null,"LAPT","\"- - - - -\"","SCSW","AU","WACM"]
[null,"\"- - - - -\"","\"- - - - -\"","AU",null,"\"- - - - -\""]
[]
[]
["Legend",null,null,null,null,"If the Transmission Customer has multiple transmission"]
["\"- - - - -\" appropriate TSIN data to be filled in by Tag Agent.",null,null,null,null,"segments purchased that are combined, then each "]
[null,null,null,null,null,"segment should be shown as new TP lines in the e-tag"]

{"sheet":"Sheet15","index":17,"n_rows":17,"n_cols":9,"rows_kept":17,"cut":false,"hidden":false,"merged":[[1,0,1,6],[6,3,6,4],[12,3,12,4],[0,0,0,6]]}
["RETURN TO TEMPLATE INDEX"]
["W/LAPT/4B N>S/YELLOWTAILW>DAVEJOHNSTON/LAP"]
[]
[null,null,null,null,null,null,null,null,"Must list correct Scheduling Entity"]
[null,null,null,null,"Physical Path",null,null,null,"associated with the physical path "]
["CA","TP","PSE","POR","POD","Sched Entities","Contract",null,"in the proper sequence"]
[null,null,null,null,null,null,null,null,"CA for the POR-POD "]
[null,"\"- - - - -\"","\"- - - - -\"","\"- - - - -\"","YTP","\"- - - - -\""]
[null,"LAPT","\"- - - - -\"","YTP","YTW","WACM"]
[null,"LAPT","\"- - - - -\"","YTW","DJ","WACM"]
[null,"\"- - - - -\"","\"- - - - -\"","DJ","\"- - - - -\"","\"- - - - -\""]
[null,"\"- - - - -\"","\"- - - - -\"","\"- - - - -\"","\"- - - - -\"","\"- - - - -\""]
[]
[]
["Legend",null,null,null,null,"If the Transmission Customer has multiple transmission"]
["\"- - - - -\" appropriate TSIN data to be filled in by Tag Agent.",null,null,null,null,"segments purchased that are combined, then each "]
[null,null,null,null,null,"segment should be shown as new TP lines in the e-tag"]

{"sheet":"Sheet16","index":18,"n_rows":18,"n_cols":9,"rows_kept":18,"cut":false,"hidden":false,"merged":[[1,0,1,6],[6,3,6,4],[13,3,13,4],[0,0,0,6]]}
["RETURN TO TEMPLATE INDEX"]
["W/LAPT/4B N>S/YELLOWTAILW>STEGALLW230/LAP"]
[]
[null,null,null,null,null,null,null,null,"Must list correct Scheduling Entity"]
[null,null,null,null,"Physical Path",null,null,null,"associated with the physical path "]
["CA","TP","PSE","POR","POD","Sched Entities","Contract",null,"in the proper sequence"]
[null,null,null,null,null,null,null,null,"BA for the POR-POD "]
[null,"\"- - - - -\"","\"- - - - -\"","\"- - - - -\"","YTP","\"- - - - -\""]
[null,"LAPT","\"- - - - -\"","YTP","YTW","WACM"]
[null,"LAPT","\"- - - - -\"","YTW","DJ","WACM"]
[null,"LAPT","\"- - - - -\"","DJ","SGW","WACM"]
[null,"\"- - - - -\"","\"- - - - -\"","SGW","\"- - - - -\"","\"- - - - -\""]
[null,"\"- - - - -\"","\"- - - - -\"","- - - - -","\"- - - - -\"","\"- - - - -\""]
[]
[]
["Legend",null,null,null,null,"If the Transmission Customer has multiple transmission"]
["\"- - - - -\" appropriate TSIN data to be filled in by Tag Agent.",null,null,null,null,"segments purchased that are combined, then each "]
[null,null,null,null,null,"segment should be shown as new TP lines in the e-tag"]

{"sheet":"Sheet17","index":19,"n_rows":18,"n_cols":9,"rows_kept":18,"cut":false,"hidden":false,"merged":[[1,0,1,6],[6,3,6,4],[13,3,13,4],[0,0,0,6]]}
["RETURN TO TEMPLATE INDEX"]
["W/LAPT/4B N>S/YTW>DJ>ARH>AU/LAP"]
[]
[null,null,null,null,null,null,null,null,"Must list correct Scheduling Entity"]
[null,null,null,null,"Physical Path",null,null,null,"associated with the physical path "]
["CA","TP","PSE","POR","POD","Sched Entities","Contract",null,"in the proper sequence"]
[null,null,null,null,null,null,null,null,"BA for the POR-POD "]
[null,"\"- - - - -\"","\"- - - - -\"","\"- - - - -\"","YTW","\"- - - - -\""]
[null,"LAPT","\"- - - - -\"","YTW","DJ","WACM"]
[null,"LAPT","\"- - - - -\"","DJ","ARH","WACM"]
[null,"LAPT","\"- - - - -\"","ARH","AU","WACM"]
[null,"\"- - - - -\"","\"- - - - -\"","AU","\"- - - - -\"","\"- - - - -\""]
[null,"\"- - - - -\"","\"- - - - -\"","\"- - - - -\"","\"- - - - -\"","\"- - - - -\""]
[]
[]
["Legend",null,null,null,null,"If the Transmission Customer has multiple transmission"]
["\"- - - - -\" appropriate TSIN data to be filled in by Tag Agent.",null,null,null,null,"segments purchased that are combined, then each "]
[null,null,null,null,null,"segment should be shown as new TP lines in the e-tag"]

{"sheet":"Sheet18","index":20,"n_rows":18,"n_cols":9,"rows_kept":18,"cut":false,"hidden":false,"merged":[[1,0,1,6],[6,3,6,4],[13,3,13,4],[0,0,0,6]]}
["RETURN TO TEMPLATE INDEX"]
["W/LAPT/4B N>S/YTW>DJ>SGW>ARH>AU/"]
[]
[null,null,null,null,null,null,null,null,"Must list correct Scheduling Entity"]
[null,null,null,null,"Physical Path",null,null,null,"associated with the physical path "]
["CA","TP","PSE","POR","POD","Sched Entities","Contract",null,"in the proper sequence"]
[null,null,null,null,null,null,null,null,"BA for the POR-POD "]
[null,"\"- - - - -\"","\"- - - - -\"","\"- - - - -\"","YTW","\"- - - - -\""]
[null,"LAPT","\"- - - - -\"","YTW","DJ","WACM"]
[null,"LAPT","\"- - - - -\"","DJ","ARH","WACM"]
[null,"LAPT","\"- - - - -\"","ARH","AU","WACM"]
[null,"\"- - - - -\"","\"- - - - -\"","AU","\"- - - - -\"","\"- - - - -\""]
[null,"\"- - - - -\"","\"- - - - -\"","\"- - - - -\"","\"- - - - -\"","\"- - - - -\""]
[]
[]
["Legend",null,null,null,null,"If the Transmission Customer has multiple transmission"]
["\"- - - - -\" appropriate TSIN data to be filled in by Tag Agent.",null,null,null,null,"segments purchased that are combined, then each "]
[null,null,null,null,null,"segment should be shown as new TP lines in the e-tag"]

{"sheet":"Sheet19","index":21,"n_rows":18,"n_cols":9,"rows_kept":18,"cut":false,"hidden":false,"merged":[[1,0,1,6],[6,3,6,4],[13,3,13,4],[0,0,0,6]]}
["RETURN TO TEMPLATE INDEX"]
["W/LAPT/4B S>N/AULT>DAVEJOHNSTON/LAP"]
[]
[null,null,null,null,null,null,null,null,"Must list correct Scheduling Entity"]
[null,null,null,null,"Physical Path",null,null,null,"associated with the physical path "]
["CA","TP","PSE","POR","POD","Sched Entities","Contract",null,"in the proper sequence"]
[null,null,null,null,null,null,null,null,"BA for the POR-POD "]
[null,"\"- - - - -\"","\"- - - - -\"","\"- - - - -\"","AU","\"- - - - -\""]
[null,"LAPT","\"- - - - -\"","AU","SCSW","WACM"]
[null,"LAPT","\"- - - - -\"","SCSW","SGW","WACM"]
[null,"LAPT","\"- - - - -\"","SGW","DJ","WACM"]
[null,"\"- - - - -\"","\"- - - - -\"","DJ","\"- - - - -\"","\"- - - - -\""]
[null,"\"- - - - -\"","\"- - - - -\"","\"- - - - -\"","\"- - - - -\"","\"- - - - -\""]
[]
[]
["Legend",null,null,null,null,"If the Transmission Customer has multiple transmission"]
["\"- - - - -\" appropriate TSIN data to be filled in by Tag Agent.",null,null,null,null,"segments purchased that are combined, then each "]
[null,null,null,null,null,"segment should be shown as new TP lines in the e-tag"]

{"sheet":"Sheet20","index":22,"n_rows":17,"n_cols":9,"rows_kept":17,"cut":false,"hidden":false,"merged":[[1,0,1,6],[6,3,6,4],[12,3,12,4],[0,0,0,6]]}
["RETURN TO TEMPLATE INDEX"]
["W/LAPT/4B S>N/AULT>STEGALLW230/LAP"]
[]
[null,null,null,null,null,null,null,null,"Must list correct Scheduling Entity"]
[null,null,null,null,"Physical Path",null,null,null,"associated with the physical path "]
["CA","TP","PSE","POR","POD","Sched Entities","Contract",null,"in the proper sequence"]
[null,null,null,null,null,null,null,null,"BA for the POR-POD "]
[null,"\"- - - - -\"","\"- - - - -\"","\"- - - - -\"","AU","\"- - - - -\""]
[null,"LAPT","\"- - - - -\"","AU","SCSW","WACM"]
[null,"LAPT","\"- - - - -\"","SCSW","SGW","WACM"]
[null,"\"- - - - -\"","\"- - - - -\"","SGW","\"- - - - -\"","\"- - - - -\""]
[null,"\"- - - - -\"","\"- - - - -\"","\"- - - - -\"","\"- - - - -\"","\"- - - - -\""]
[]
[]
["Legend",null,null,null,null,"If the Transmission Customer has multiple transmission"]
["\"- - - - -\" appropriate TSIN data to be filled in by Tag Agent.",null,null,null,null,"segments purchased that are combined, then each "]
[null,null,null,null,null,"segment should be shown as new TP lines in the e-tag"]

{"sheet":"Sheet21","index":23,"n_rows":19,"n_cols":9,"rows_kept":19,"cut":false,"hidden":false,"merged":[[1,0,1,6],[6,3,6,4],[14,3,14,4],[0,0,0,6]]}
["RETURN TO TEMPLATE INDEX"]
["W/LAPT/4B S>N/AULT>YELLOWTAILW/LAP"]
[]
[null,null,null,null,null,null,null,null,"Must list correct Scheduling Entity"]
[null,null,null,null,"Physical Path",null,null,null,"associated with the physical path "]
["CA","TP","PSE","POR","POD","Sched Entities","Contract",null,"in the proper sequence"]
[null,null,null,null,null,null,null,null,"BA for the POR-POD "]
[null,"\"- - - - -\"","\"- - - - -\"","\"- - - - -\"","AU","\"- - - - -\""]
[null,"LAPT","\"- - - - -\"","AU","SCSW","WACM"]
[null,"LAPT","\"- - - - -\"","SCSW","SGW","WACM"]
[null,"LAPT","\"- - - - -\"","SGW","DJ","WACM"]
[null,"LAPT","\"- - - - -\"","DJ","YTW","WACM"]
[null,"\"- - - - -\"","\"- - - - -\"","YTW","\"- - - - -\"","\"- - - - -\""]
[null,"\"- - - - -\"","\"- - - - -\"","\"- - - - -\"","\"- - - - -\"","\"- - - - -\""]
[]
[]
["Legend",null,null,null,null,"If the Transmission Customer has multiple transmission"]
["\"- - - - -\" appropriate TSIN data to be filled in by Tag Agent.",null,null,null,null,"segments purchased that are combined, then each "]
[null,null,null,null,null,"segment should be shown as new TP lines in the e-tag"]

{"sheet":"Sheet22","index":24,"n_rows":17,"n_cols":9,"rows_kept":17,"cut":false,"hidden":false,"merged":[[1,0,1,6],[6,3,6,4],[12,3,12,4],[0,0,0,6]]}
["RETURN TO TEMPLATE INDEX"]
["W/LAPT/4B S>N/DAVEJOHNSTON>YELLOWTAILP/LAP"]
[]
[null,null,null,null,null,null,null,null,"Must list correct Scheduling Entity"]
[null,null,null,null,"Physical Path",null,null,null,"associated with the physical path "]
["CA","TP","PSE","POR","POD","Sched Entities","Contract",null,"in the proper sequence"]
[null,null,null,null,null,null,null,null,"BA for the POR-POD "]
[null,"\"- - - - -\"","\"- - - - -\"","\"- - - - -\"","DJ","\"- - - - -\""]
[null,"LAPT","\"- - - - -\"","DJ","YTW","WACM"]
[null,"LAPT","\"- - - - -\"","YTW","YTP","PACE"]
[null,"\"- - - - -\"","\"- - - - -\"","YTP","\"- - - - -\"","\"- - - - -\""]
[null,"\"- - - - -\"","\"- - - - -\"","\"- - - - -\"","\"- - - - -\"","\"- - - - -\""]
[]
[]
["Legend",null,null,null,null,"If the Transmission Customer has multiple transmission"]
["\"- - - - -\" appropriate TSIN data to be filled in by Tag Agent.",null,null,null,null,"segments purchased that are combined, then each "]
[null,null,null,null,null,"segment should be shown as new TP lines in the e-tag"]

{"sheet":"Sheet23","index":25,"n_rows":15,"n_cols":9,"rows_kept":15,"cut":false,"hidden":false,"merged":[[1,0,1,6],[6,3,6,4],[10,3,10,4],[0,0,0,6]]}
["RETURN TO TEMPLATE INDEX"]
["W/LAPT/4B S>N/DAVEJOHNSTON>YELLOWTAILW/LAP"]
[]
[null,null,null,null,null,null,null,null,"Must list correct Scheduling Entity"]
[null,null,null,null,"Physical Path",null,null,null,"associated with the physical path "]
["CA","TP","PSE","POR","POD","Sched Entities","Contract",null,"in the proper sequence"]
[null,null,null,null,null,null,null,null,"BA for the POR-POD "]
[null,"\"- - - - -\"","\"- - - - -\"","\"- - - - -\"","DJ","\"- - - - -\""]
[null,"LAPT","\"- - - - -\"","DJ","YTW","WACM"]
[null,"\"- - - - -\"","\"- - - - -\"","YTW","\"- - - - -\"","\"- - - - -\""]
[]
[]
["Legend",null,null,null,null,"If the Transmission Customer has multiple transmission"]
["\"- - - - -\" appropriate TSIN data to be filled in by Tag Agent.",null,null,null,null,"segments purchased that are combined, then each "]
[null,null,null,null,null,"segment should be shown as new TP lines in the e-tag"]

{"sheet":"Sheet24","index":26,"n_rows":17,"n_cols":9,"rows_kept":17,"cut":false,"hidden":false,"merged":[[1,0,1,6],[6,3,6,4],[12,3,12,4],[0,0,0,6]]}
["RETURN TO TEMPLATE INDEX"]
["W/LAPT/4B S>N/HAPPYJACK>DAVEJOHNSTON/LAP"]
[]
[null,null,null,null,null,null,null,null,"Must list correct Scheduling Entity"]
[null,null,null,null,"Physical Path",null,null,null,"associated with the physical path "]
["CA","TP","PSE","POR","POD","Sched Entities","Contract",null,"in the proper sequence"]
[null,null,null,null,null,null,null,null,"BA for the POR-POD "]
[null,"\"- - - - -\"","\"- - - - -\"","\"- - - - -\"","HJ","\"- - - - -\""]
[null,"LAPT","\"- - - - -\"","HJ","ARH","WACM"]
[null,"LAPT","\"- - - - -\"","ARH","DJ","WACM"]
[null,"\"- - - - -\"","\"- - - - -\"","DJ","\"- - - - -\"","\"- - - - -\""]
[null,"\"- - - - -\"","\"- - - - -\"","\"- - - - -\"","\"- - - - -\"","\"- - - - -\""]
[]
[]
["Legend",null,null,null,null,"If the Transmission Customer has multiple transmission"]
["\"- - - - -\" appropriate TSIN data to be filled in by Tag Agent.",null,null,null,null,"segments purchased that are combined, then each "]
[null,null,null,null,null,"segment should be shown as new TP lines in the e-tag"]

{"sheet":"Sheet25","index":27,"n_rows":15,"n_cols":9,"rows_kept":15,"cut":false,"hidden":false,"merged":[[1,0,1,6],[6,3,6,4],[10,3,10,4],[0,0,0,6]]}
["RETURN TO TEMPLATE INDEX"]
["W/LAPT/4B S>N/SIDNEYW230>STEGALLW230/LAP"]
[]
[null,null,null,null,null,null,null,null,"Must list correct Scheduling Entity"]
[null,null,null,null,"Physical Path",null,null,null,"associated with the physical path "]
["CA","TP","PSE","POR","POD","Sched Entities","Contract",null,"in the proper sequence"]
[null,null,null,null,null,null,null,null,"BA for the POR-POD "]
[null,"\"- - - - -\"","\"- - - - -\"","\"- - - - -\"","SCSW","\"- - - - -\""]
[null,"LAPT","\"- - - - -\"","SCSW","SGW","WACM"]
[null,"\"- - - - -\"","\"- - - - -\"","SGW","\"- - - - -\"","\"- - - - -\""]
[]
[]
["Legend",null,null,null,null,"If the Transmission Customer has multiple transmission"]
["\"- - - - -\" appropriate TSIN data to be filled in by Tag Agent.",null,null,null,null,"segments purchased that are combined, then each "]
[null,null,null,null,null,"segment should be shown as new TP lines in the e-tag"]

{"sheet":"Sheet26","index":28,"n_rows":17,"n_cols":9,"rows_kept":17,"cut":false,"hidden":false,"merged":[[1,0,1,6],[6,3,6,4],[12,3,12,4],[0,0,0,6]]}
["RETURN TO TEMPLATE INDEX"]
["W/LAPT/4B S>N/STEGALLW230>YELLOWTAILW/LAP"]
[]
[null,null,null,null,null,null,null,null,"Must list correct Scheduling Entity"]
[null,null,null,null,"Physical Path",null,null,null,"associated with the physical path "]
["CA","TP","PSE","POR","POD","Sched Entities","Contract",null,"in the proper sequence"]
[null,null,null,null,null,null,null,null,"BA for the POR-POD "]
[null,"\"- - - - -\"","\"- - - - -\"","\"- - - - -\"","SGW","\"- - - - -\""]
[null,"LAPT","\"- - - - -\"","SGW","DJ","WACM"]
[null,"LAPT","\"- - - - -\"","DJ","YTW","WACM"]
[null,"\"- - - - -\"","\"- - - - -\"","YTW","\"- - - - -\"","\"- - - - -\""]
[null,"\"- - - - -\"","\"- - - - -\"","\"- - - - -\"","\"- - - - -\"","\"- - - - -\""]
[]
[]
["Legend",null,null,null,null,"If the Transmission Customer has multiple transmission"]
["\"- - - - -\" appropriate TSIN data to be filled in by Tag Agent.",null,null,null,null,"segments purchased that are combined, then each "]
[null,null,null,null,null,"segment should be shown as new TP lines in the e-tag"]

{"sheet":"Sheet27","index":29,"n_rows":19,"n_cols":9,"rows_kept":19,"cut":false,"hidden":false,"merged":[[1,0,1,6],[6,3,6,4],[14,3,14,4],[0,0,0,6]]}
["RETURN TO TEMPLATE INDEX"]
["W/LAPT/4B/SIDNEYE230>YELLOWTAILW/LAP"]
[]
[null,null,null,null,null,null,null,null,"Must list correct Scheduling Entity"]
[null,null,null,null,"Physical Path",null,null,null,"associated with the physical path "]
["CA","TP","PSE","POR","POD","Sched Entities","Contract",null,"in the proper sequence"]
[null,null,null,null,null,null,null,null,"BA for the POR-POD "]
[null,"\"- - - - -\"","\"- - - - -\"","\"- - - - -\"","SCSE","\"- - - - -\""]
[null,"LAPT","\"- - - - -\"","SCSE","SCSW","WACM"]
[null,"LAPT",null,"SCSW","SGW","WACM"]
[null,"LAPT","\"- - - - -\"","SGW","DJ","WACM"]
[null,"LAPT","\"- - - - -\"","DJ","YTW","WACM"]
[null,"\"- - - - -\"","\"- - - - -\"","YTW","\"- - - - -\"","\"- - - - -\""]
[null,"\"- - - - -\"","\"- - - - -\"","\"- - - - -\"","\"- - - - -\"","\"- - - - -\""]
[]
[]
["Legend",null,null,null,null,"If the Transmission Customer has multiple transmission"]
["\"- - - - -\" appropriate TSIN data to be filled in by Tag Agent.",null,null,null,null,"segments purchased that are combined, then each "]
[null,null,null,null,null,"segment should be shown as new TP lines in the e-tag"]

{"sheet":"Sheet28","index":30,"n_rows":19,"n_cols":9,"rows_kept":19,"cut":false,"hidden":false,"merged":[[1,0,1,6],[6,3,6,4],[14,3,14,4],[0,0,0,6]]}
["RETURN TO TEMPLATE INDEX"]
["W/LAPT/4B/SIDNEYW230>YELLOWTAILP/LAP"]
[]
[null,null,null,null,null,null,null,null,"Must list correct Scheduling Entity"]
[null,null,null,null,"Physical Path",null,null,null,"associated with the physical path "]
["CA","TP","PSE","POR","POD","Sched Entities","Contract",null,"in the proper sequence"]
[null,null,null,null,null,null,null,null,"BA for the POR-POD "]
[null,"\"- - - - -\"","\"- - - - -\"","\"- - - - -\"","SCSW","\"- - - - -\""]
[null,"LAPT","\"- - - - -\"","SCSW","SGW","WACM"]
[null,"LAPT","\"- - - - -\"","SGW","DJ","WACM"]
[null,"LAPT","\"- - - - -\"","DJ","YTW","WACM"]
[null,"LAPT","\"- - - - -\"","YTW","YTP","PACE"]
[null,"\"- - - - -\"","\"- - - - -\"","YTP","\"- - - - -\"","\"- - - - -\""]
[null,"\"- - - - -\"","\"- - - - -\"","\"- - - - -\"","\"- - - - -\"","\"- - - - -\""]
[]
[]
["Legend",null,null,null,null,"If the Transmission Customer has multiple transmission"]
["\"- - - - -\" appropriate TSIN data to be filled in by Tag Agent.",null,null,null,null,"segments purchased that are combined, then each "]
[null,null,null,null,null,"segment should be shown as new TP lines in the e-tag"]

{"sheet":"Sheet29","index":31,"n_rows":19,"n_cols":9,"rows_kept":19,"cut":false,"hidden":false,"merged":[[1,0,1,6],[6,3,6,4],[14,3,14,4],[0,0,0,6]]}
["RETURN TO TEMPLATE INDEX"]
["W/LAPT/4B/SIDNEYW230>YELLOWTAILW/LAP"]
[]
[null,null,null,null,null,null,null,null,"Must list correct Scheduling Entity"]
[null,null,null,null,"Physical Path",null,null,null,"associated with the physical path "]
["CA","TP","PSE","POR","POD","Sched Entities","Contract",null,"in the proper sequence"]
[null,null,null,null,null,null,null,null,"BA for the POR-POD "]
[null,"\"- - - - -\"","\"- - - - -\"","\"- - - - -\"","SCSE","\"- - - - -\""]
[null,"LAPT","\"- - - - -\"","SCSE","SCSW","WACM"]
[null,"LAPT","\"- - - - -\"","SCSW","SGW","WACM"]
[null,"LAPT","\"- - - - -\"","SGW","DJ","WACM"]
[null,"LAPT","\"- - - - -\"","DJ","YTW","WACM"]
[null,"\"- - - - -\"","\"- - - - -\""," YTW","\"- - - - -\"","\"- - - - -\""]
[null,"\"- - - - -\"","\"- - - - -\"","\"- - - - -\"","\"- - - - -\"","\"- - - - -\""]
[]
[]
["Legend",null,null,null,null,"If the Transmission Customer has multiple transmission"]
["\"- - - - -\" appropriate TSIN data to be filled in by Tag Agent.",null,null,null,null,"segments purchased that are combined, then each "]
[null,null,null,null,null,"segment should be shown as new TP lines in the e-tag"]

{"sheet":"Sheet30","index":32,"n_rows":19,"n_cols":9,"rows_kept":19,"cut":false,"hidden":false,"merged":[[1,0,1,6],[6,3,6,4],[14,3,14,4],[0,0,0,6]]}
["RETURN TO TEMPLATE INDEX"]
["W/LAPT/4B/YELLOWTAILP>SIDNEYW230/LAP"]
[]
[null,null,null,null,null,null,null,null,"Must list correct Scheduling Entity"]
[null,null,null,null,"Physical Path",null,null,null,"associated with the physical path "]
["CA","TP","PSE","POR","POD","Sched Entities","Contract",null,"in the proper sequence"]
[null,null,null,null,null,null,null,null,"BA for the POR-POD "]
[null,"\"- - - - -\"","\"- - - - -\"","\"- - - - -\"","YTP","\"- - - - -\""]
[null,"LAPT","\"- - - - -\"","YTP","YTW","PACE"]
[null,"LAPT","\"- - - - -\"","YTW","DJ","WACM"]
[null,"LAPT","\"- - - - -\"","DJ","SGW","WACM"]
[null,"LAPT","\"- - - - -\"","SGW","SCSW","WACM"]
[null,"\"- - - - -\"","\"- - - - -\"","SCSW","\"- - - - -\"","\"- - - - -\""]
[null,"\"- - - - -\"","\"- - - - -\"","\"- - - - -\"","\"- - - - -\"","\"- - - - -\""]
[]
[]
["Legend",null,null,null,null,"If the Transmission Customer has multiple transmission"]
["\"- - - - -\" appropriate TSIN data to be filled in by Tag Agent.",null,null,null,null,"segments purchased that are combined, then each "]
[null,null,null,null,null,"segment should be shown as new TP lines in the e-tag"]

{"sheet":"Sheet31","index":33,"n_rows":18,"n_cols":9,"rows_kept":18,"cut":false,"hidden":false,"merged":[[1,0,1,6],[6,3,6,4],[13,3,13,4],[0,0,0,6]]}
["RETURN TO TEMPLATE INDEX"]
["W/LAPT/4B/YELLOWTAILW>SIDNEYW230/LAP"]
[]
[null,null,null,null,null,null,null,null,"Must list correct Scheduling Entity"]
[null,null,null,null,"Physical Path",null,null,null,"associated with the physical path "]
["CA","TP","PSE","POR","POD","Sched Entities","Contract",null,"in the proper sequence"]
[null,null,null,null,null,null,null,null,"BA for the POR-POD "]
[null,"\"- - - - -\"","\"- - - - -\"","\"- - - - -\"","YTW","\"- - - - -\""]
[null,"LAPT","\"- - - - -\"","YTW","DJ","WACM"]
[null,"LAPT","\"- - - - -\"","DJ","SGW","WACM"]
[null,"LAPT","\"- - - - -\"","SGW","SCSW","WACM"]
[null,"\"- - - - -\"","\"- - - - -\"","SCSW","\"- - - - -\"","\"- - - - -\""]
[null,"\"- - - - -\"","\"- - - - -\"","\"- - - - -\"","\"- - - - -\"","\"- - - - -\""]
[]
[]
["Legend",null,null,null,null,"If the Transmission Customer has multiple transmission"]
["\"- - - - -\" appropriate TSIN data to be filled in by Tag Agent.",null,null,null,null,"segments purchased that are combined, then each "]
[null,null,null,null,null,"segment should be shown as new TP lines in the e-tag"]

{"sheet":"Sheet32","index":34,"n_rows":16,"n_cols":9,"rows_kept":16,"cut":false,"hidden":false,"merged":[[1,0,1,6],[6,3,6,4],[11,3,11,4],[0,0,0,6]]}
["RETURN TO TEMPLATE INDEX"]
["W/LAPT/7 N>S/AU>BSAN/LAP"]
[]
[null,null,null,null,null,null,null,null,"Must list correct Scheduling Entity"]
[null,null,null,null,"Physical Path",null,null,null,"associated with the physical path "]
["CA","TP","PSE","POR","POD","Sched Entities","Contract",null,"in the proper sequence"]
[null,null,null,null,null,null,null,null,"BA for the POR-POD "]
[null,"\"- - - - -\"","\"- - - - -\"","\"- - - - -\"","AU","\"- - - - -\""]
[null,"LAPT","\"- - - - -\"","AU","BSAN","WACM"]
[null,"\"- - - - -\"","\"- - - - -\"","BSAN","\"- - - - -\"","\"- - - - -\""]
[null,"\"- - - - -\"","\"- - - - -\"","\"- - - - -\"","\"- - - - -\"","\"- - - - -\""]
[]
[]
["Legend",null,null,null,null,"If the Transmission Customer has multiple transmission"]
["\"- - - - -\" appropriate TSIN data to be filled in by Tag Agent.",null,null,null,null,"segments purchased that are combined, then each "]
[null,null,null,null,null,"segment should be shown as new TP lines in the e-tag"]

{"sheet":"Sheet33","index":35,"n_rows":16,"n_cols":9,"rows_kept":16,"cut":false,"hidden":false,"merged":[[1,0,1,6],[6,3,6,4],[11,3,11,4],[0,0,0,6]]}
["RETURN TO TEMPLATE INDEX"]
["W/LAPT/7 S>N/BSAN>AU/LAP"]
[]
[null,null,null,null,null,null,null,null,"Must list correct Scheduling Entity"]
[null,null,null,null,"Physical Path",null,null,null,"associated with the physical path "]
["CA","TP","PSE","POR","POD","Sched Entities","Contract",null,"in the proper sequence"]
[null,null,null,null,null,null,null,null,"BA for the POR-POD "]
[null,"\"- - - - -\"","\"- - - - -\"","\"- - - - -\"","BSAN","\"- - - - -\""]
[null,"LAPT","\"- - - - -\"","BSAN","AU","WACM"]
[null,"\"- - - - -\"","\"- - - - -\"","AU","\"- - - - -\"","\"- - - - -\""]
[null,"\"- - - - -\"","\"- - - - -\"","\"- - - - -\"","\"- - - - -\"","\"- - - - -\""]
[]
[]
["Legend",null,null,null,null,"If the Transmission Customer has multiple transmission"]
["\"- - - - -\" appropriate TSIN data to be filled in by Tag Agent.",null,null,null,null,"segments purchased that are combined, then each "]
[null,null,null,null,null,"segment should be shown as new TP lines in the e-tag"]

{"sheet":"Sheet34","index":36,"n_rows":20,"n_cols":9,"rows_kept":20,"cut":false,"hidden":false,"merged":[[1,0,1,6],[6,3,6,4],[15,3,15,4],[0,0,0,6]]}
["RETURN TO TEMPLATE INDEX"]
["W/LAPT/DC/SIDNEYE230>YELLOWTAILP/LAP"]
[]
[null,null,null,null,null,null,null,null,"Must list correct Scheduling Entity"]
[null,null,null,null,"Physical Path",null,null,null,"associated with the physical path "]
["CA","TP","PSE","POR","POD","Sched Entities","Contract",null,"in the proper sequence"]
[null,null,null,null,null,null,null,null,"BA for the POR-POD "]
[null,"\"- - - - -\"","\"- - - - -\"","\"- - - - -\"","SCSE","\"- - - - -\""]
[null,"LAPT","\"- - - - -\"","SCSE","SCSW","WACM"]
[null,"LAPT","\"- - - - -\"","SCSW","SGW","WACM"]
[null,"LAPT","\"- - - - -\"","SGW","DJ","WACM"]
[null,"LAPT","\"- - - - -\"","DJ","YTW","WACM"]
[null,"LAPT","\"- - - - -\"","YTW","YTP","PACE"]
[null,"\"- - - - -\"","\"- - - - -\"","YTP","\"- - - - -\"","\"- - - - -\""]
[null,"\"- - - - -\"","\"- - - - -\"","\"- - - - -\"","\"- - - - -\"","\"- - - - -\""]
[]
[]
["Legend",null,null,null,null,"If the Transmission Customer has multiple transmission"]
["\"- - - - -\" appropriate TSIN data to be filled in by Tag Agent.",null,null,null,null,"segments purchased that are combined, then each "]
[null,null,null,null,null,"segment should be shown as new TP lines in the e-tag"]

{"sheet":"Sheet35","index":37,"n_rows":20,"n_cols":9,"rows_kept":20,"cut":false,"hidden":false,"merged":[[1,0,1,6],[6,3,6,4],[15,3,15,4],[0,0,0,6]]}
["RETURN TO TEMPLATE INDEX"]
["W/LAPT/DC/YELLOWTAILP>SIDNEYE230/LAP"]
[]
[null,null,null,null,null,null,null,null,"Must list correct Scheduling Entity"]
[null,null,null,null,"Physical Path",null,null,null,"associated with the physical path "]
["CA","TP","PSE","POR","POD","Sched Entities","Contract",null,"in the proper sequence"]
[null,null,null,null,null,null,null,null,"BA for the POR-POD "]
[null,"\"- - - - -\"","\"- - - - -\"","\"- - - - -\"","YTP","\"- - - - -\""]
[null,"LATP","\"- - - - -\"","YTP","YTW","PACE"]
[null,"LATP","\"- - - - -\"","YTW","DJ","WACM"]
[null,"LATP","\"- - - - -\"","DJ","SGW","WACM"]
[null,"LATP","\"- - - - -\"","SGW","SCSW","WACM"]
[null,"LATP","\"- - - - -\"","SCSW","SCSE","WACM"]
[null,"\"- - - - -\"","\"- - - - -\"","SCSE","\"- - - - -\"","\"- - - - -\""]
[null,"\"- - - - -\"","\"- - - - -\"","\"- - - - -\"","\"- - - - -\"","\"- - - - -\""]
[]
[]
["Legend",null,null,null,null,"If the Transmission Customer has multiple transmission"]
["\"- - - - -\" appropriate TSIN data to be filled in by Tag Agent.",null,null,null,null,"segments purchased that are combined, then each "]
[null,null,null,null,null,"segment should be shown as new TP lines in the e-tag"]

{"sheet":"Sheet36","index":38,"n_rows":19,"n_cols":9,"rows_kept":19,"cut":false,"hidden":false,"merged":[[1,0,1,6],[6,3,6,4],[14,3,14,4],[0,0,0,6]]}
["RETURN TO TEMPLATE INDEX"]
["W/LAPT/DC/YELLOWTAILW>SIDNEYE230/LAP"]
[]
[null,null,null,null,null,null,null,null,"Must list correct Scheduling Entity"]
[null,null,null,null,"Physical Path",null,null,null,"associated with the physical path "]
["CA","TP","PSE","POR","POD","Sched Entities","Contract",null,"in the proper sequence"]
[null,null,null,null,null,null,null,null,"BA for the POR-POD "]
[null,"\"- - - - -\"","\"- - - - -\"","\"- - - - -\"","YTW","\"- - - - -\""]
[null,"LAPT","\"- - - - -\"","YTW","DJ","WACM"]
[null,"LAPT","\"- - - - -\"","DJ","SGW","WACM"]
[null,"LAPT","\"- - - - -\"","SGW","SCSW","WACM"]
[null,"LAPT","\"- - - - -\"","SCSW","SCSE","WACM"]
[null,"\"- - - - -\"","\"- - - - -\"","SCSE","\"- - - - -\"","\"- - - - -\""]
[null,"\"- - - - -\"","\"- - - - -\"","\"- - - - -\"","\"- - - - -\"","\"- - - - -\""]
[]
[]
["Legend",null,null,null,null,"If the Transmission Customer has multiple transmission"]
["\"- - - - -\" appropriate TSIN data to be filled in by Tag Agent.",null,null,null,null,"segments purchased that are combined, then each "]
[null,null,null,null,null,"segment should be shown as new TP lines in the e-tag"]

{"sheet":"Sheet37","index":39,"n_rows":17,"n_cols":9,"rows_kept":17,"cut":false,"hidden":false,"merged":[[1,0,1,6],[6,3,6,4],[12,3,12,4],[0,0,0,6]]}
["RETURN TO TEMPLATE INDEX"]
["W/LAPT/DCTIE E>W/SIDNEYE230>AULT/LAP"]
[]
[null,null,null,null,null,null,null,null,"Must list correct Scheduling Entity"]
[null,null,null,null,"Physical Path",null,null,null,"associated with the physical path "]
["CA","TP","PSE","POR","POD","Sched Entities","Contract",null,"in the proper sequence"]
[null,null,null,null,null,null,null,null,"BA for the POR-POD "]
[null,"\"- - - - -\"","\"- - - - -\"","\"- - - - -\"","SCSE","\"- - - - -\""]
[null,"LAPT","\"- - - - -\"","SCSE","SCSW","WACM"]
[null,"LAPT","\"- - - - -\"","SCSW","AU","WACM"]
[null,"\"- - - - -\"","\"- - - - -\"","AU","\"- - - - -\"","\"- - - - -\""]
[null,"\"- - - - -\"","\"- - - - -\"","\"- - - - -\"","\"- - - - -\"","\"- - - - -\""]
[]
[]
["Legend",null,null,null,null,"If the Transmission Customer has multiple transmission"]
["\"- - - - -\" appropriate TSIN data to be filled in by Tag Agent.",null,null,null,null,"segments purchased that are combined, then each "]
[null,null,null,null,null,"segment should be shown as new TP lines in the e-tag"]

{"sheet":"Sheet38","index":40,"n_rows":18,"n_cols":9,"rows_kept":18,"cut":false,"hidden":false,"merged":[[1,0,1,6],[6,3,6,4],[13,3,13,4],[0,0,0,6]]}
["RETURN TO TEMPLATE INDEX"]
["W/LAPT/DCTIE E>W/SIDNEYE230>DAVEJOHNSTON/LAP"]
[]
[null,null,null,null,null,null,null,null,"Must list correct Scheduling Entity"]
[null,null,null,null,"Physical Path",null,null,null,"associated with the physical path "]
["CA","TP","PSE","POR","POD","Sched Entities","Contract",null,"in the proper sequence"]
[null,null,null,null,null,null,null,null,"BA for the POR-POD "]
[null,"\"- - - - -\"","\"- - - - -\"","\"- - - - -\"","SCSE","\"- - - - -\""]
[null,"LAPT","\"- - - - -\"","SCSE","SCSW","WACM"]
[null,"LAPT","\"- - - - -\"","SCSW","SGW","WACM"]
[null,"LAPT","\"- - - - -\"","SCSW","DJ","WACM"]
[null,"\"- - - - -\"","\"- - - - -\"","DJ","\"- - - - -\"","\"- - - - -\""]
[null,"\"- - - - -\"","\"- - - - -\"","\"- - - - -\"","\"- - - - -\"","\"- - - - -\""]
[]
[]
["Legend",null,null,null,null,"If the Transmission Customer has multiple transmission"]
["\"- - - - -\" appropriate TSIN data to be filled in by Tag Agent.",null,null,null,null,"segments purchased that are combined, then each "]
[null,null,null,null,null,"segment should be shown as new TP lines in the e-tag"]

{"sheet":"Sheet39","index":41,"n_rows":16,"n_cols":9,"rows_kept":16,"cut":false,"hidden":false,"merged":[[1,0,1,6],[6,3,6,4],[11,3,11,4],[0,0,0,6]]}
["RETURN TO TEMPLATE INDEX"]
["W/LAPT/DCTIE E>W/SIDNEYE230>SIDNEYW230/LAP"]
[]
[null,null,null,null,null,null,null,null,"Must list correct Scheduling Entity"]
[null,null,null,null,"Physical Path",null,null,null,"associated with the physical path "]
["CA","TP","PSE","POR","POD","Sched Entities","Contract",null,"in the proper sequence"]
[null,null,null,null,null,null,null,null,"BA for the POR-POD "]
[null,"\"- - - - -\"","\"- - - - -\"","\"- - - - -\"","SCSE","\"- - - - -\""]
[null,"LAPT","\"- - - - -\"","SCSE","SCSW","WACM"]
[null,"\"- - - - -\"","\"- - - - -\"","SCSW","\"- - - - -\"","\"- - - - -\""]
[null,"\"- - - - -\"","\"- - - - -\"","\"- - - - -\"","\"- - - - -\"","\"- - - - -\""]
[]
[]
["Legend",null,null,null,null,"If the Transmission Customer has multiple transmission"]
["\"- - - - -\" appropriate TSIN data to be filled in by Tag Agent.",null,null,null,null,"segments purchased that are combined, then each "]
[null,null,null,null,null,"segment should be shown as new TP lines in the e-tag"]

{"sheet":"Sheet40","index":42,"n_rows":17,"n_cols":9,"rows_kept":17,"cut":false,"hidden":false,"merged":[[1,0,1,6],[6,3,6,4],[12,3,12,4],[0,0,0,6]]}
["RETURN TO TEMPLATE INDEX"]
["W/LAPT/DCTIE E>W/SIDNEYE230>STEGALLW230/LAP"]
[]
[null,null,null,null,null,null,null,null,"Must list correct Scheduling Entity"]
[null,null,null,null,"Physical Path",null,null,null,"associated with the physical path "]
["CA","TP","PSE","POR","POD","Sched Entities","Contract",null,"in the proper sequence"]
[null,null,null,null,null,null,null,null,"BA for the POR-POD "]
[null,"\"- - - - -\"","\"- - - - -\"","\"- - - - -\"","SCSE","\"- - - - -\""]
[null,"LAPT","\"- - - - -\"","SCSE","SCSW","WACM"]
[null,"LAPT","\"- - - - -\"","SCSW","SGW","WACM"]
[null,"\"- - - - -\"","\"- - - - -\"","SGW","\"- - - - -\"","\"- - - - -\""]
[null,"\"- - - - -\"","\"- - - - -\"","\"- - - - -\"","\"- - - - -\"","\"- - - - -\""]
[]
[]
["Legend",null,null,null,null,"If the Transmission Customer has multiple transmission"]
["\"- - - - -\" appropriate TSIN data to be filled in by Tag Agent.",null,null,null,null,"segments purchased that are combined, then each "]
[null,null,null,null,null,"segment should be shown as new TP lines in the e-tag"]

{"sheet":"Sheet41","index":43,"n_rows":17,"n_cols":9,"rows_kept":17,"cut":false,"hidden":false,"merged":[[1,0,1,6],[6,3,6,4],[12,3,12,4],[0,0,0,6]]}
["RETURN TO TEMPLATE INDEX"]
["W/LAPT/DCTIE W>E/AULT>SIDNEYE230/LAP"]
[]
[null,null,null,null,null,null,null,null,"Must list correct Scheduling Entity"]
[null,null,null,null,"Physical Path",null,null,null,"associated with the physical path "]
["CA","TP","PSE","POR","POD","Sched Entities","Contract",null,"in the proper sequence"]
[null,null,null,null,null,null,null,null,"BA for the POR-POD "]
[null,"\"- - - - -\"","\"- - - - -\"","\"- - - - -\"","AULT","\"- - - - -\""]
[null,"LAPT","\"- - - - -\"","AULT","SCSW","WACM"]
[null,"LAPT","\"- - - - -\"","SCSW","SCSE","WACM"]
[null,"\"- - - - -\"","\"- - - - -\"","SCSE","\"- - - - -\"","\"- - - - -\""]
[null,"\"- - - - -\"","\"- - - - -\"","\"- - - - -\"","\"- - - - -\"","\"- - - - -\""]
[]
[]
["Legend",null,null,null,null,"If the Transmission Customer has multiple transmission"]
["\"- - - - -\" appropriate TSIN data to be filled in by Tag Agent.",null,null,null,null,"segments purchased that are combined, then each "]
[null,null,null,null,null,"segment should be shown as new TP lines in the e-tag"]

{"sheet":"Sheet42","index":44,"n_rows":18,"n_cols":9,"rows_kept":18,"cut":false,"hidden":false,"merged":[[6,3,6,4],[13,3,13,4],[0,0,0,6],[1,0,1,6]]}
["RETURN TO TEMPLATE INDEX"]
["W/LAPT/DCTIE W>E/DAVEJOHNSTON>SIDNEYE230/LAP"]
[]
[null,null,null,null,null,null,null,null,"Must list correct Scheduling Entity"]
[null,null,null,null,"Physical Path",null,null,null,"associated with the physical path "]
["CA","TP","PSE","POR","POD","Sched Entities","Contract",null,"in the proper sequence"]
[null,null,null,null,null,null,null,null,"BA for the POR-POD "]
[null,"\"- - - - -\"","\"- - - - -\"","\"- - - - -\"","DJ","\"- - - - -\""]
[null,"LAPT","\"- - - - -\"","DJ","SGW","WACM"]
[null,"LAPT","\"- - - - -\"","SGW","SCSW","WACM"]
[null,"LAPT","\"- - - - -\"","SCSW","SCSE","WACM"]
[null,"\"- - - - -\"","\"- - - - -\"","SCSE","\"- - - - -\"","\"- - - - -\""]
[null,"\"- - - - -\"","\"- - - - -\"","\"- - - - -\"","\"- - - - -\"","\"- - - - -\""]
[]
[]
["Legend",null,null,null,null,"If the Transmission Customer has multiple transmission"]
["\"- - - - -\" appropriate TSIN data to be filled in by Tag Agent.",null,null,null,null,"segments purchased that are combined, then each "]
[null,null,null,null,null,"segment should be shown as new TP lines in the e-tag"]

{"sheet":"Sheet43","index":45,"n_rows":16,"n_cols":9,"rows_kept":16,"cut":false,"hidden":false,"merged":[[6,3,6,4],[11,3,11,4],[0,0,0,6],[1,0,1,6]]}
["RETURN TO TEMPLATE INDEX"]
["W/LAPT/DCTIE W>E/SIDNEYW230>SIDNEYE230/LAP"]
[]
[null,null,null,null,null,null,null,null,"Must list correct Scheduling Entity"]
[null,null,null,null,"Physical Path",null,null,null,"associated with the physical path "]
["CA","TP","PSE","POR","POD","Sched Entities","Contract",null,"in the proper sequence"]
[null,null,null,null,null,null,null,null,"BA for the POR-POD "]
[null,"\"- - - - -\"","\"- - - - -\"","\"- - - - -\"","SCSE","\"- - - - -\""]
[null,"LAPT","\"- - - - -\"","SCSE","SCSW","WACM"]
[null,"\"- - - - -\"","\"- - - - -\"","SCSW","\"- - - - -\"","\"- - - - -\""]
[null,"\"- - - - -\"","\"- - - - -\"","\"- - - - -\"","\"- - - - -\"","\"- - - - -\""]
[]
[]
["Legend",null,null,null,null,"If the Transmission Customer has multiple transmission"]
["\"- - - - -\" appropriate TSIN data to be filled in by Tag Agent.",null,null,null,null,"segments purchased that are combined, then each "]
[null,null,null,null,null,"segment should be shown as new TP lines in the e-tag"]

{"sheet":"Sheet44","index":46,"n_rows":17,"n_cols":9,"rows_kept":17,"cut":false,"hidden":false,"merged":[[6,3,6,4],[12,3,12,4],[0,0,0,6],[1,0,1,6]]}
["RETURN TO TEMPLATE INDEX"]
["W/LAPT/DCTIE W>E/STEGALLW230>SIDNEYE230/LAP"]
[]
[null,null,null,null,null,null,null,null,"Must list correct Scheduling Entity"]
[null,null,null,null,"Physical Path",null,null,null,"associated with the physical path "]
["CA","TP","PSE","POR","POD","Sched Entities","Contract",null,"in the proper sequence"]
[null,null,null,null,null,null,null,null,"BA for the POR-POD "]
[null,"\"- - - - -\"","\"- - - - -\"","\"- - - - -\"","SGW","\"- - - - -\""]
[null,"LAPT","\"- - - - -\"","SGW","SCSW","WACM"]
[null,"LAPT","\"- - - - -\"","SCSW","SCSE","WACM"]
[null,"\"- - - - -\"","\"- - - - -\"","SCSE","\"- - - - -\"","\"- - - - -\""]
[null,"\"- - - - -\"","\"- - - - -\"","\"- - - - -\"","\"- - - - -\"","\"- - - - -\""]
[]
[]
["Legend",null,null,null,null,"If the Transmission Customer has multiple transmission"]
["\"- - - - -\" appropriate TSIN data to be filled in by Tag Agent.",null,null,null,null,"segments purchased that are combined, then each "]
[null,null,null,null,null,"segment should be shown as new TP lines in the e-tag"]

{"sheet":"Sheet45","index":47,"n_rows":16,"n_cols":9,"rows_kept":16,"cut":false,"hidden":false,"merged":[[6,3,6,4],[11,3,11,4],[0,0,0,6],[1,0,1,6]]}
["RETURN TO TEMPLATE INDEX"]
["W/LAPT/E>E/SCSW>SCSW/LAP"]
[]
[null,null,null,null,null,null,null,null,"Must list correct Scheduling Entity"]
[null,null,null,null,"Physical Path",null,null,null,"associated with the physical path "]
["CA","TP","PSE","POR","POD","Sched Entities","Contract",null,"in the proper sequence"]
[null,null,null,null,null,null,null,null,"BA for the POR-POD "]
[null,"\"- - - - -\"","\"- - - - -\"","\"- - - - -\"","SCSW","\"- - - - -\""]
[null,"LAPT","\"- - - - -\"","SCSW","SCSW","WACM"]
[null,"\"- - - - -\"","\"- - - - -\"","SCSW","\"- - - - -\"","\"- - - - -\""]
[null,"\"- - - - -\"","\"- - - - -\"","\"- - - - -\"","\"- - - - -\"","\"- - - - -\""]
[]
[]
["Legend",null,null,null,null,"If the Transmission Customer has multiple transmission"]
["\"- - - - -\" appropriate TSIN data to be filled in by Tag Agent.",null,null,null,null,"segments purchased that are combined, then each "]
[null,null,null,null,null,"segment should be shown as new TP lines in the e-tag"]

{"sheet":"Sheet46","index":48,"n_rows":16,"n_cols":9,"rows_kept":16,"cut":false,"hidden":false,"merged":[[6,3,6,4],[11,3,11,4],[0,0,0,6],[1,0,1,6]]}
["RETURN TO TEMPLATE INDEX"]
["W/LAPT/E>W/HAYDEN>BLUERIVER/LAP"]
[]
[null,null,null,null,null,null,null,null,"Must list correct Scheduling Entity"]
[null,null,null,null,"Physical Path",null,null,null,"associated with the physical path "]
["CA","TP","PSE","POR","POD","Sched Entities","Contract",null,"in the proper sequence"]
[null,null,null,null,null,null,null,null,"BA for the POR-POD "]
[null,"\"- - - - -\"","\"- - - - -\"","\"- - - - -\"","HDN","\"- - - - -\""]
[null,"LAPT","\"- - - - -\"","HDN","BLUE","PSCO"]
[null,"\"- - - - -\"","\"- - - - -\"","BLUE","\"- - - - -\"","\"- - - - -\""]
[null,"\"- - - - -\"","\"- - - - -\"","\"- - - - -\"","\"- - - - -\"","\"- - - - -\""]
[]
[]
["Legend",null,null,null,null,"If the Transmission Customer has multiple transmission"]
["\"- - - - -\" appropriate TSIN data to be filled in by Tag Agent.",null,null,null,null,"segments purchased that are combined, then each "]
[null,null,null,null,null,"segment should be shown as new TP lines in the e-tag"]

{"sheet":"Sheet47","index":49,"n_rows":16,"n_cols":9,"rows_kept":16,"cut":false,"hidden":false,"merged":[[6,3,6,4],[11,3,11,4],[0,0,0,6],[1,0,1,6]]}
["RETURN TO TEMPLATE INDEX"]
["W/LAPT/E>W/STEGALLW230>ARCHER/LAP"]
[]
[null,null,null,null,null,null,null,null,"Must list correct Scheduling Entity"]
[null,null,null,null,"Physical Path",null,null,null,"associated with the physical path "]
["CA","TP","PSE","POR","POD","Sched Entities","Contract",null,"in the proper sequence"]
[null,null,null,null,null,null,null,null,"CA for the POR-POD "]
[null,"\"- - - - -\"","\"- - - - -\"","\"- - - - -\"","SGW","\"- - - - -\""]
[null,"LAPT","\"- - - - -\"","SGW","ARH","WACM"]
[null,"\"- - - - -\"","\"- - - - -\"","ARH",null,"\"- - - - -\""]
[null,"\"- - - - -\"","\"- - - - -\"","\"- - - - -\"","\"- - - - -\"","\"- - - - -\""]
[]
[]
["Legend",null,null,null,null,"If the Transmission Customer has multiple transmission"]
["\"- - - - -\" appropriate TSIN data to be filled in by Tag Agent.",null,null,null,null,"segments purchased that are combined, then each "]
[null,null,null,null,null,"segment should be shown as new TP lines in the e-tag"]

{"sheet":"Sheet49","index":50,"n_rows":16,"n_cols":9,"rows_kept":16,"cut":false,"hidden":false,"merged":[[6,3,6,4],[11,3,11,4],[0,0,0,6],[1,0,1,6]]}
["RETURN TO TEMPLATE INDEX"]
["W/LAPT/N>N/MM115>DJ/LAP"]
[]
[null,null,null,null,null,null,null,null,"Must list correct Scheduling Entity"]
[null,null,null,null,"Physical Path",null,null,null,"associated with the physical path "]
["CA","TP","PSE","POR","POD","Sched Entities","Contract",null,"in the proper sequence"]
[null,null,null,null,null,null,null,null,"CA for the POR-POD "]
[null,"\"- - - - -\"","\"- - - - -\"","\"- - - - -\"","MM115","\"- - - - -\""]
[null,"LAPT","\"- - - - -\"","MM115","DJ","WACM"]
[null,"\"- - - - -\"","\"- - - - -\"","DJ",null,"\"- - - - -\""]
[null,"\"- - - - -\"","\"- - - - -\"","\"- - - - -\"","\"- - - - -\"","\"- - - - -\""]
[]
[]
["Legend",null,null,null,null,"If the Transmission Customer has multiple transmission"]
["\"- - - - -\" appropriate TSIN data to be filled in by Tag Agent.",null,null,null,null,"segments purchased that are combined, then each "]
[null,null,null,null,null,"segment should be shown as new TP lines in the e-tag"]

{"sheet":"Sheet50","index":51,"n_rows":17,"n_cols":9,"rows_kept":17,"cut":false,"hidden":false,"merged":[[6,3,6,4],[12,3,12,4],[0,0,0,6],[1,0,1,6]]}
["RETURN TO TEMPLATE INDEX"]
["W/LAPT/N>N/YT115>YTP/LAP"]
[]
[null,null,null,null,null,null,null,null,"Must list correct Scheduling Entity"]
[null,null,null,null,"Physical Path",null,null,null,"associated with the physical path "]
["CA","TP","PSE","POR","POD","Sched Entities","Contract",null,"in the proper sequence"]
[null,null,null,null,null,null,null,null,"CA for the POR-POD "]
[null,"\"- - - - -\"","\"- - - - -\"","\"- - - - -\"","YT115","\"- - - - -\""]
[null,"LAPT","\"- - - - -\"","YT115","YTW","WACM"]
[null,"LAPT","\"- - - - -\"","YTW","YTP","WACM"]
[null,"\"- - - - -\"","\"- - - - -\"","YTP","\"- - - - -\"","\"- - - - -\""]
[null,"\"- - - - -\"","\"- - - - -\"","\"- - - - -\"","\"- - - - -\"","\"- - - - -\""]
[]
[]
["Legend",null,null,null,null,"If the Transmission Customer has multiple transmission"]
["\"- - - - -\" appropriate TSIN data to be filled in by Tag Agent.",null,null,null,null,"segments purchased that are combined, then each "]
[null,null,null,null,null,"segment should be shown as new TP lines in the e-tag"]

{"sheet":"Sheet51","index":52,"n_rows":16,"n_cols":9,"rows_kept":16,"cut":false,"hidden":false,"merged":[[6,3,6,4],[11,3,11,4],[0,0,0,6],[1,0,1,6]]}
["RETURN TO TEMPLATE INDEX"]
["W/LAPT/N>N/YT115>YTW/LAP"]
[]
[null,null,null,null,null,null,null,null,"Must list correct Scheduling Entity"]
[null,null,null,null,"Physical Path",null,null,null,"associated with the physical path "]
["CA","TP","PSE","POR","POD","Sched Entities","Contract",null,"in the proper sequence"]
[null,null,null,null,null,null,null,null,"CA for the POR-POD "]
[null,"\"- - - - -\"","\"- - - - -\"","\"- - - - -\"","YT115","\"- - - - -\""]
[null,"LAPT","\"- - - - -\"","YT115","YTP","WACM"]
[null,"\"- - - - -\"","\"- - - - -\"","YTP","\"- - - - -\"","\"- - - - -\""]
[null,"\"- - - - -\"","\"- - - - -\"","\"- - - - -\"","\"- - - - -\"","\"- - - - -\""]
[]
[]
["Legend",null,null,null,null,"If the Transmission Customer has multiple transmission"]
["\"- - - - -\" appropriate TSIN data to be filled in by Tag Agent.",null,null,null,null,"segments purchased that are combined, then each "]
[null,null,null,null,null,"segment should be shown as new TP lines in the e-tag"]

{"sheet":"Sheet52","index":53,"n_rows":16,"n_cols":9,"rows_kept":16,"cut":false,"hidden":false,"merged":[[6,3,6,4],[11,3,11,4],[0,0,0,6],[1,0,1,6]]}
["RETURN TO TEMPLATE INDEX"]
["W/LAPT/N>S/ARCHER>AULT/LAP"]
[]
[null,null,null,null,null,null,null,null,"Must list correct Scheduling Entity"]
[null,null,null,null,"Physical Path",null,null,null,"associated with the physical path "]
["CA","TP","PSE","POR","POD","Sched Entities","Contract",null,"in the proper sequence"]
[null,null,null,null,null,null,null,null,"CA for the POR-POD "]
[null,"\"- - - - -\"","\"- - - - -\"","\"- - - - -\"","ARH","\"- - - - -\""]
[null,"LAPT","\"- - - - -\"","ARH","AU","WACM"]
[null,"\"- - - - -\"","\"- - - - -\"","AU","\"- - - - -\"","\"- - - - -\""]
[null,"\"- - - - -\"","\"- - - - -\"","\"- - - - -\"","\"- - - - -\"","\"- - - - -\""]
[]
[]
["Legend",null,null,null,null,"If the Transmission Customer has multiple transmission"]
["\"- - - - -\" appropriate TSIN data to be filled in by Tag Agent.",null,null,null,null,"segments purchased that are combined, then each "]
[null,null,null,null,null,"segment should be shown as new TP lines in the e-tag"]

{"sheet":"Sheet54","index":54,"n_rows":16,"n_cols":9,"rows_kept":16,"cut":false,"hidden":false,"merged":[[6,3,6,4],[11,3,11,4],[0,0,0,6],[1,0,1,6]]}
["RETURN TO TEMPLATE INDEX"]
["W/LAPT/N>S/DAVEJOHNSTON>ARCHER/LAP"]
[]
[null,null,null,null,null,null,null,null,"Must list correct Scheduling Entity"]
[null,null,null,null,"Physical Path",null,null,null,"associated with the physical path "]
["CA","TP","PSE","POR","POD","Sched Entities","Contract",null,"in the proper sequence"]
[null,null,null,null,null,null,null,null,"CA for the POR-POD "]
[null,"\"- - - - -\"","\"- - - - -\"","\"- - - - -\"","DJ","\"- - - - -\""]
[null,"LAPT","\"- - - - -\"","DJ","ARH","WACM"]
[null,"\"- - - - -\"","\"- - - - -\"","ARH","\"- - - - -\"","\"- - - - -\""]
[null,"\"- - - - -\"","\"- - - - -\"","\"- - - - -\"","\"- - - - -\"","\"- - - - -\""]
[]
[]
["Legend",null,null,null,null,"If the Transmission Customer has multiple transmission"]
["\"- - - - -\" appropriate TSIN data to be filled in by Tag Agent.",null,null,null,null,"segments purchased that are combined, then each "]
[null,null,null,null,null,"segment should be shown as new TP lines in the e-tag"]

{"sheet":"Sheet55","index":55,"n_rows":16,"n_cols":9,"rows_kept":16,"cut":false,"hidden":false,"merged":[[6,3,6,4],[11,3,11,4],[0,0,0,6],[1,0,1,6]]}
["RETURN TO TEMPLATE INDEX"]
["W/LAPT/N>S/DAVEJOHNSTON>STEGALLW230/LAP"]
[]
[null,null,null,null,null,null,null,null,"Must list correct Scheduling Entity"]
[null,null,null,null,"Physical Path",null,null,null,"associated with the physical path "]
["CA","TP","PSE","POR","POD","Sched Entities","Contract",null,"in the proper sequence"]
[null,null,null,null,null,null,null,null,"CA for the POR-POD "]
[null,"\"- - - - -\"","\"- - - - -\"","\"- - - - -\"","DJ","\"- - - - -\""]
[null,"LAPT","\"- - - - -\"","DJ","SGW","WACM"]
[null,"\"- - - - -\"","\"- - - - -\"","SGW","\"- - - - -\"","\"- - - - -\""]
[null,"\"- - - - -\"","\"- - - - -\"","\"- - - - -\"","\"- - - - -\"","\"- - - - -\""]
[]
[]
["Legend",null,null,null,null,"If the Transmission Customer has multiple transmission"]
["\"- - - - -\" appropriate TSIN data to be filled in by Tag Agent.",null,null,null,null,"segments purchased that are combined, then each "]
[null,null,null,null,null,"segment should be shown as new TP lines in the e-tag"]

{"sheet":"Sheet56","index":56,"n_rows":16,"n_cols":9,"rows_kept":16,"cut":false,"hidden":false,"merged":[[6,3,6,4],[11,3,11,4],[0,0,0,6],[1,0,1,6]]}
["RETURN TO TEMPLATE INDEX"]
["W/LAPT/N>S/DJ>DJ/LAP"]
[]
[null,null,null,null,null,null,null,null,"Must list correct Scheduling Entity"]
[null,null,null,null,"Physical Path",null,null,null,"associated with the physical path "]
["CA","TP","PSE","POR","POD","Sched Entities","Contract",null,"in the proper sequence"]
[null,null,null,null,null,null,null,null,"CA for the POR-POD "]
[null,"\"- - - - -\"","\"- - - - -\"","\"- - - - -\"","DJ","\"- - - - -\""]
[null,"LAPT","\"- - - - -\"","DJ","DJ","WACM"]
[null,"\"- - - - -\"","\"- - - - -\"","DJ","\"- - - - -\"","\"- - - - -\""]
[null,"\"- - - - -\"","\"- - - - -\"","\"- - - - -\"","\"- - - - -\"","\"- - - - -\""]
[]
[]
["Legend",null,null,null,null,"If the Transmission Customer has multiple transmission"]
["\"- - - - -\" appropriate TSIN data to be filled in by Tag Agent.",null,null,null,null,"segments purchased that are combined, then each "]
[null,null,null,null,null,"segment should be shown as new TP lines in the e-tag"]

{"sheet":"Sheet57","index":57,"n_rows":17,"n_cols":9,"rows_kept":17,"cut":false,"hidden":false,"merged":[[6,3,6,4],[12,3,12,4],[0,0,0,6],[1,0,1,6]]}
["RETURN TO TEMPLATE INDEX"]
["W/LAPT/N>S/DJ>SGW>ARH/LAP"]
[]
[null,null,null,null,null,null,null,null,"Must list correct Scheduling Entity"]
[null,null,null,null,"Physical Path",null,null,null,"associated with the physical path "]
["CA","TP","PSE","POR","POD","Sched Entities","Contract",null,"in the proper sequence"]
[null,null,null,null,null,null,null,null,"CA for the POR-POD "]
[null,"\"- - - - -\"","\"- - - - -\"","\"- - - - -\"","DJ","\"- - - - -\""]
[null,"LAPT","\"- - - - -\"","DJ","SGW","WACM"]
[null,"LAPT","\"- - - - -\"","SGW","ARH","WACM"]
[null,"- - - - -",null,"ARH","\"- - - - -\"","\"- - - - -\""]
[null,"\"- - - - -\"","\"- - - - -\"","\"- - - - -\""]
[]
[]
["Legend",null,null,null,null,"If the Transmission Customer has multiple transmission"]
["\"- - - - -\" appropriate TSIN data to be filled in by Tag Agent.",null,null,null,null,"segments purchased that are combined, then each "]
[null,null,null,null,null,"segment should be shown as new TP lines in the e-tag"]

{"sheet":"Sheet58","index":58,"n_rows":17,"n_cols":9,"rows_kept":17,"cut":false,"hidden":false,"merged":[[6,3,6,4],[12,3,12,4],[0,0,0,6],[1,0,1,6]]}
["RETURN TO TEMPLATE INDEX"]
["W/LAPT/N>S/MM115>SGW/LAP"]
[]
[null,null,null,null,null,null,null,null,"Must list correct Scheduling Entity"]
[null,null,null,null,"Physical Path",null,null,null,"associated with the physical path "]
["CA","TP","PSE","POR","POD","Sched Entities","Contract",null,"in the proper sequence"]
[null,null,null,null,null,null,null,null,"CA for the POR-POD "]
[null,"\"- - - - -\"","\"- - - - -\"","\"- - - - -\"","MM115","\"- - - - -\""]
[null,"LAPT","\"- - - - -\"","MM115","DJ","WACM"]
[null,"LAPT","\"- - - - -\"","DJ","SGW","WACM"]
[null,"\"- - - - -\"","\"- - - - -\"","SGW","\"- - - - -\"","\"- - - - -\""]
[null,"\"- - - - -\"","\"- - - - -\"","\"- - - - -\"","\"- - - - -\"","\"- - - - -\""]
[]
[]
["Legend",null,null,null,null,"If the Transmission Customer has multiple transmission"]
["\"- - - - -\" appropriate TSIN data to be filled in by Tag Agent.",null,null,null,null,"segments purchased that are combined, then each "]
[null,null,null,null,null,"segment should be shown as new TP lines in the e-tag"]

{"sheet":"Sheet60","index":59,"n_rows":16,"n_cols":9,"rows_kept":16,"cut":false,"hidden":false,"merged":[[6,3,6,4],[11,3,11,4],[0,0,0,6],[1,0,1,6]]}
["RETURN TO TEMPLATE INDEX"]
["W/LAPT/N>S/YELLOWTAILP>YELLOWTAILW/LAP"]
[]
[null,null,null,null,null,null,null,null,"Must list correct Scheduling Entity"]
[null,null,null,null,"Physical Path",null,null,null,"associated with the physical path "]
["CA","TP","PSE","POR","POD","Sched Entities","Contract",null,"in the proper sequence"]
[null,null,null,null,null,null,null,null,"CA for the POR-POD "]
[null,"\"- - - - -\"","\"- - - - -\"","\"- - - - -\"","YTP","\"- - - - -\""]
[null,"LAPT","\"- - - - -\"","YTP","YTW","PACE"]
[null,"\"- - - - -\"","\"- - - - -\"","YTW","\"- - - - -\"","\"- - - - -\""]
[null,"\"- - - - -\"","\"- - - - -\"","\"- - - - -\"","\"- - - - -\"","\"- - - - -\""]
[]
[]
["Legend",null,null,null,null,"If the Transmission Customer has multiple transmission"]
["\"- - - - -\" appropriate TSIN data to be filled in by Tag Agent.",null,null,null,null,"segments purchased that are combined, then each "]
[null,null,null,null,null,"segment should be shown as new TP lines in the e-tag"]

{"sheet":"Sheet61","index":60,"n_rows":17,"n_cols":9,"rows_kept":17,"cut":false,"hidden":false,"merged":[[6,3,6,4],[12,3,12,4],[0,0,0,6],[1,0,1,6]]}
["RETURN TO TEMPLATE INDEX"]
["W/LAPT/S>N/AU115>ARH/LAP"]
[]
[null,null,null,null,null,null,null,null,"Must list correct Scheduling Entity"]
[null,null,null,null,"Physical Path",null,null,null,"associated with the physical path "]
["CA","TP","PSE","POR","POD","Sched Entities","Contract",null,"in the proper sequence"]
[null,null,null,null,null,null,null,null,"CA for the POR-POD "]
[null,"\"- - - - -\"","\"- - - - -\"","\"- - - - -\"","AU115","\"- - - - -\""]
[null,"LAPT","\"- - - - -\"","AU115","AU","WACM"]
[null,"LAPT","\"- - - - -\"","AU","ARH","WACM"]
[null,"\"- - - - -\"","\"- - - - -\"","ARH","\"- - - - -\"","\"- - - - -\""]
[null,"\"- - - - -\"","\"- - - - -\"","\"- - - - -\"","\"- - - - -\"","\"- - - - -\""]
[]
[]
["Legend",null,null,null,null,"If the Transmission Customer has multiple transmission"]
["\"- - - - -\" appropriate TSIN data to be filled in by Tag Agent.",null,null,null,null,"segments purchased that are combined, then each "]
[null,null,null,null,null,"segment should be shown as new TP lines in the e-tag"]

{"sheet":"Sheet62","index":61,"n_rows":18,"n_cols":9,"rows_kept":18,"cut":false,"hidden":false,"merged":[[6,3,6,4],[13,3,13,4],[0,0,0,6],[1,0,1,6]]}
["RETURN TO TEMPLATE INDEX"]
["W/LAPT/S>N/AU115>SGW/LAP"]
[]
[null,null,null,null,null,null,null,null,"Must list correct Scheduling Entity"]
[null,null,null,null,"Physical Path",null,null,null,"associated with the physical path "]
["CA","TP","PSE","POR","POD","Sched Entities","Contract",null,"in the proper sequence"]
[null,null,null,null,null,null,null,null,"CA for the POR-POD "]
[null,"\"- - - - -\"","\"- - - - -\"","\"- - - - -\"","AU115","\"- - - - -\""]
[null,"LAPT","\"- - - - -\"","AU115","AU","WACM"]
[null,"LAPT","\"- - - - -\"","AU","SCSW","WACM"]
[null,"LAPT","\"- - - - -\"","SCSW","SGW","WACM"]
[null,"\"- - - - -\"","\"- - - - -\"","SGW","\"- - - - -\"","\"- - - - -\""]
[null,"\"- - - - -\"","\"- - - - -\"","\"- - - - -\"","\"- - - - -\"","\"- - - - -\""]
[]
[]
["Legend",null,null,null,null,"If the Transmission Customer has multiple transmission"]
["\"- - - - -\" appropriate TSIN data to be filled in by Tag Agent.",null,null,null,null,"segments purchased that are combined, then each "]
[null,null,null,null,null,"segment should be shown as new TP lines in the e-tag"]

{"sheet":"Sheet63","index":62,"n_rows":17,"n_cols":9,"rows_kept":17,"cut":false,"hidden":false,"merged":[[6,3,6,4],[12,3,12,4],[0,0,0,6],[1,0,1,6]]}
["RETURN TO TEMPLATE INDEX"]
["W/LAPT/S>N/SIDNEYW230>DAVEJOHNSTON/LAP"]
[]
[null,null,null,null,null,null,null,null,"Must list correct Scheduling Entity"]
[null,null,null,null,"Physical Path",null,null,null,"associated with the physical path "]
["CA","TP","PSE","POR","POD","Sched Entities","Contract",null,"in the proper sequence"]
[null,null,null,null,null,null,null,null,"CA for the POR-POD "]
[null,"\"- - - - -\"","\"- - - - -\"","\"- - - - -\"","SCSW","\"- - - - -\""]
[null,"LAPT","\"- - - - -\"","SCSW","SGW","WACM"]
[null,"LAPT","\"- - - - -\"","SGW","DJ","WACM"]
[null,"\"- - - - -\"","\"- - - - -\"","DJ","\"- - - - -\"","\"- - - - -\""]
[null,"\"- - - - -\"","\"- - - - -\"","\"- - - - -\"","\"- - - - -\"","\"- - - - -\""]
[]
[]
["Legend",null,null,null,null,"If the Transmission Customer has multiple transmission"]
["\"- - - - -\" appropriate TSIN data to be filled in by Tag Agent.",null,null,null,null,"segments purchased that are combined, then each "]
[null,null,null,null,null,"segment should be shown as new TP lines in the e-tag"]

{"sheet":"Sheet64","index":63,"n_rows":16,"n_cols":9,"rows_kept":16,"cut":false,"hidden":false,"merged":[[6,3,6,4],[11,3,11,4],[0,0,0,6],[1,0,1,6]]}
["RETURN TO TEMPLATE INDEX"]
["W/LAPT/S>N/STEGALLW230>DAVEJOHNSTON/LAP"]
[]
[null,null,null,null,null,null,null,null,"Must list correct Scheduling Entity"]
[null,null,null,null,"Physical Path",null,null,null,"associated with the physical path "]
["CA","TP","PSE","POR","POD","Sched Entities","Contract",null,"in the proper sequence"]
[null,null,null,null,null,null,null,null,"CA for the POR-POD "]
[null,"\"- - - - -\"","\"- - - - -\"","\"- - - - -\"","SGW","\"- - - - -\""]
[null,"LAPT","\"- - - - -\"","SGW","DJ","WACM"]
[null,"\"- - - - -\"","\"- - - - -\"","DJ","\"- - - - -\"","\"- - - - -\""]
[null,"\"- - - - -\"","\"- - - - -\"","\"- - - - -\"","\"- - - - -\"","\"- - - - -\""]
[]
[]
["Legend",null,null,null,null,"If the Transmission Customer has multiple transmission"]
["\"- - - - -\" appropriate TSIN data to be filled in by Tag Agent.",null,null,null,null,"segments purchased that are combined, then each "]
[null,null,null,null,null,"segment should be shown as new TP lines in the e-tag"]

{"sheet":"Sheet65","index":64,"n_rows":16,"n_cols":9,"rows_kept":16,"cut":false,"hidden":false,"merged":[[6,3,6,4],[11,3,11,4],[0,0,0,6],[1,0,1,6]]}
["RETURN TO TEMPLATE INDEX"]
["W/LAPT/S>N/YELLOWTAILW>YELLOWTAILP/LAP"]
[]
[null,null,null,null,null,null,null,null,"Must list correct Scheduling Entity"]
[null,null,null,null,"Physical Path",null,null,null,"associated with the physical path "]
["CA","TP","PSE","POR","POD","Sched Entities","Contract",null,"in the proper sequence"]
[null,null,null,null,null,null,null,null,"CA for the POR-POD "]
[null,"\"- - - - -\"","\"- - - - -\"","\"- - - - -\"","YTW","\"- - - - -\""]
[null,"LAPT","\"- - - - -\"","YTW","YTP","PACE"]
[null,"\"- - - - -\"","\"- - - - -\"","YTP","\"- - - - -\"","\"- - - - -\""]
[null,"\"- - - - -\"","\"- - - - -\"","\"- - - - -\"","\"- - - - -\"","\"- - - - -\""]
[]
[]
["Legend",null,null,null,null,"If the Transmission Customer has multiple transmission"]
["\"- - - - -\" appropriate TSIN data to be filled in by Tag Agent.",null,null,null,null,"segments purchased that are combined, then each "]
[null,null,null,null,null,"segment should be shown as new TP lines in the e-tag"]

{"sheet":"Sheet66","index":65,"n_rows":16,"n_cols":9,"rows_kept":16,"cut":false,"hidden":false,"merged":[[6,3,6,4],[11,3,11,4],[0,0,0,6],[1,0,1,6]]}
["RETURN TO TEMPLATE INDEX"]
["W/LAPT/S>S/AU115>AU/LAP"]
[]
[null,null,null,null,null,null,null,null,"Must list correct Scheduling Entity"]
[null,null,null,null,"Physical Path",null,null,null,"associated with the physical path "]
["CA","TP","PSE","POR","POD","Sched Entities","Contract",null,"in the proper sequence"]
[null,null,null,null,null,null,null,null,"CA for the POR-POD "]
[null,"\"- - - - -\"","\"- - - - -\"","\"- - - - -\"","AU115","\"- - - - -\""]
[null,"LAPT","\"- - - - -\"","AU115","AU","WACM"]
[null,"\"- - - - -\"","\"- - - - -\"","AU","\"- - - - -\"","\"- - - - -\""]
[null,"\"- - - - -\"","\"- - - - -\"","\"- - - - -\"","\"- - - - -\"","\"- - - - -\""]
[]
[]
["Legend",null,null,null,null,"If the Transmission Customer has multiple transmission"]
["\"- - - - -\" appropriate TSIN data to be filled in by Tag Agent.",null,null,null,null,"segments purchased that are combined, then each "]
[null,null,null,null,null,"segment should be shown as new TP lines in the e-tag"]

{"sheet":"Sheet67","index":66,"n_rows":17,"n_cols":9,"rows_kept":17,"cut":false,"hidden":false,"merged":[[6,3,6,4],[12,3,12,4],[0,0,0,6],[1,0,1,6]]}
["RETURN TO TEMPLATE INDEX"]
["W/LAPT/TOT3N>S/HAPPYJACK>AULT/LAP"]
[]
[null,null,null,null,null,null,null,null,"Must list correct Scheduling Entity"]
[null,null,null,null,"Physical Path",null,null,null,"associated with the physical path "]
["CA","TP","PSE","POR","POD","Sched Entities","Contract",null,"in the proper sequence"]
[null,null,null,null,null,null,null,null,"CA for the POR-POD "]
[null,"\"- - - - -\"","\"- - - - -\"","\"- - - - -\"","HJ","\"- - - - -\""]
[null,"LAPT","\"- - - - -\"","HJ","ARH","WACM"]
[null,"LAPT","\"- - - - -\"","ARH","AU","WACM"]
[null,"\"- - - - -\"","\"- - - - -\"","AU","\"- - - - -\"","\"- - - - -\""]
[null,"\"- - - - -\"","\"- - - - -\"","\"- - - - -\"","\"- - - - -\"","\"- - - - -\""]
[]
[]
["Legend",null,null,null,null,"If the Transmission Customer has multiple transmission"]
["\"- - - - -\" appropriate TSIN data to be filled in by Tag Agent.",null,null,null,null,"segments purchased that are combined, then each "]
[null,null,null,null,null,"segment should be shown as new TP lines in the e-tag"]

{"sheet":"Sheet68","index":67,"n_rows":17,"n_cols":9,"rows_kept":17,"cut":false,"hidden":false,"merged":[[6,3,6,4],[12,3,12,4],[0,0,0,6],[1,0,1,6]]}
["RETURN TO TEMPLATE INDEX"]
["W/LAPT/N>S/SGW>ARH>AU/LAP"]
[]
[null,null,null,null,null,null,null,null,"Must list correct Scheduling Entity"]
[null,null,null,null,"Physical Path",null,null,null,"associated with the physical path "]
["CA","TP","PSE","POR","POD","Sched Entities","Contract",null,"in the proper sequence"]
[null,null,null,null,null,null,null,null,"CA for the POR-POD "]
[null,"\"- - - - -\"","\"- - - - -\"","\"- - - - -\"","SGW","\"- - - - -\""]
[null,"LAPT","\"- - - - -\"","SGW","ARH","WACM"]
[null,"LAPT","\"- - - - -\"","ARH","AU","WACM"]
[null,"\"- - - - -\"","\"- - - - -\"","AU","\"- - - - -\"","\"- - - - -\""]
[null,"\"- - - - -\"","\"- - - - -\"","\"- - - - -\"","\"- - - - -\"","\"- - - - -\""]
[]
[]
["Legend",null,null,null,null,"If the Transmission Customer has multiple transmission"]
["\"- - - - -\" appropriate TSIN data to be filled in by Tag Agent.",null,null,null,null,"segments purchased that are combined, then each "]
[null,null,null,null,null,"segment should be shown as new TP lines in the e-tag"]

{"sheet":"Sheet69","index":68,"n_rows":17,"n_cols":9,"rows_kept":17,"cut":false,"hidden":false,"merged":[[6,3,6,4],[12,3,12,4],[0,0,0,6],[1,0,1,6]]}
["RETURN TO TEMPLATE INDEX"]
["W/LAPT/TOT3NS/VIAARCHER/LAP"]
[]
[null,null,null,null,null,null,null,null,"Must list correct Scheduling Entity"]
[null,null,null,null,"Physical Path",null,null,null,"associated with the physical path "]
["CA","TP","PSE","POR","POD","Sched Entities","Contract",null,"in the proper sequence"]
[null,null,null,null,null,null,null,null,"CA for the POR-POD "]
[null,"\"- - - - -\"","\"- - - - -\"","\"- - - - -\"","DJ","\"- - - - -\""]
[null,"LAPT","\"- - - - -\"","DJ","ARH","WACM"]
[null,"LAPT","\"- - - - -\"","ARH","AU","WACM"]
[null,"\"- - - - -\"","\"- - - - -\"","AU","\"- - - - -\"","\"- - - - -\""]
[null,"\"- - - - -\"","\"- - - - -\"","\"- - - - -\"","\"- - - - -\"","\"- - - - -\""]
[]
[]
["Legend",null,null,null,null,"If the Transmission Customer has multiple transmission"]
["\"- - - - -\" appropriate TSIN data to be filled in by Tag Agent.",null,null,null,null,"segments purchased that are combined, then each "]
[null,null,null,null,null,"segment should be shown as new TP lines in the e-tag"]

{"sheet":"Sheet70","index":69,"n_rows":16,"n_cols":9,"rows_kept":16,"cut":false,"hidden":false,"merged":[[6,3,6,4],[11,3,11,4],[0,0,0,6],[1,0,1,6]]}
["RETURN TO TEMPLATE INDEX"]
["W/LAPT/S>N/ARH>DJ/LAP"]
[]
[null,null,null,null,null,null,null,null,"Must list correct Scheduling Entity"]
[null,null,null,null,"Physical Path",null,null,null,"associated with the physical path "]
["CA","TP","PSE","POR","POD","Sched Entities","Contract",null,"in the proper sequence"]
[null,null,null,null,null,null,null,null,"CA for the POR-POD "]
[null,"\"- - - - -\"","\"- - - - -\"","\"- - - - -\"","ARH","\"- - - - -\""]
[null,"LAPT","\"- - - - -\"","ARH","DJ","WACM"]
[null,"\"- - - - -\"","\"- - - - -\"","DJ","\"- - - - -\"","\"- - - - -\""]
[null,"\"- - - - -\"","\"- - - - -\"","\"- - - - -\"","\"- - - - -\"","\"- - - - -\""]
[]
[]
["Legend",null,null,null,null,"If the Transmission Customer has multiple transmission"]
["\"- - - - -\" appropriate TSIN data to be filled in by Tag Agent.",null,null,null,null,"segments purchased that are combined, then each "]
[null,null,null,null,null,"segment should be shown as new TP lines in the e-tag"]

{"sheet":"Sheet71","index":70,"n_rows":16,"n_cols":9,"rows_kept":16,"cut":false,"hidden":false,"merged":[[6,3,6,4],[11,3,11,4],[0,0,0,6],[1,0,1,6]]}
["RETURN TO TEMPLATE INDEX"]
["W/LAPT/S>N/ARH>SGW/LAP"]
[]
[null,null,null,null,null,null,null,null,"Must list correct Scheduling Entity"]
[null,null,null,null,"Physical Path",null,null,null,"associated with the physical path "]
["CA","TP","PSE","POR","POD","Sched Entities","Contract",null,"in the proper sequence"]
[null,null,null,null,null,null,null,null,"CA for the POR-POD "]
[null,"\"- - - - -\"","\"- - - - -\"","\"- - - - -\"","ARH","\"- - - - -\""]
[null,"LAPT","\"- - - - -\"","ARH","SGW","WACM"]
[null,"\"- - - - -\"","\"- - - - -\"","SGW","\"- - - - -\"","\"- - - - -\""]
[null,"\"- - - - -\"","\"- - - - -\"","\"- - - - -\"","\"- - - - -\"","\"- - - - -\""]
[]
[]
["Legend",null,null,null,null,"If the Transmission Customer has multiple transmission"]
["\"- - - - -\" appropriate TSIN data to be filled in by Tag Agent.",null,null,null,null,"segments purchased that are combined, then each "]
[null,null,null,null,null,"segment should be shown as new TP lines in the e-tag"]

{"sheet":"Sheet72","index":71,"n_rows":19,"n_cols":9,"rows_kept":19,"cut":false,"hidden":false,"merged":[[6,3,6,4],[14,3,14,4],[0,0,0,6],[1,0,1,6]]}
["RETURN TO TEMPLATE INDEX"]
["W/LAPT/E>W/SCSE>DJ/LAP"]
[]
[null,null,null,null,null,null,null,null,"Must list correct Scheduling Entity"]
[null,null,null,null,"Physical Path",null,null,null,"associated with the physical path "]
["CA","TP","PSE","POR","POD","Sched Entities","Contract",null,"in the proper sequence"]
[null,null,null,null,null,null,null,null,"CA for the POR-POD "]
[null,"\"- - - - -\"","\"- - - - -\"","\"- - - - -\"","SCSE","\"- - - - -\""]
[null,"LAPT","\"- - - - -\"","SCSE","SCSW","WACM"]
[null,"LAPT","\"- - - - -\"","SCSW","SGW","WACM"]
[null,"LAPT","\"- - - - -\"","SGW","ARH","WACM"]
[null,"LAPT","\"- - - - -\"","ARH","DJ","WACM"]
[null,"\"- - - - -\"","\"- - - - -\"","DJ","\"- - - - -\"","\"- - - - -\""]
[null,"\"- - - - -\"","\"- - - - -\"","\"- - - - -\"","\"- - - - -\"","\"- - - - -\""]
[]
[]
["Legend",null,null,null,null,"If the Transmission Customer has multiple transmission"]
["\"- - - - -\" appropriate TSIN data to be filled in by Tag Agent.",null,null,null,null,"segments purchased that are combined, then each "]
[null,null,null,null,null,"segment should be shown as new TP lines in the e-tag"]

{"sheet":"Sheet73","index":72,"n_rows":19,"n_cols":9,"rows_kept":19,"cut":false,"hidden":false,"merged":[[6,3,6,4],[14,3,14,4],[0,0,0,6],[1,0,1,6]]}
["RETURN TO TEMPLATE INDEX"]
["W/LAPT/E>W/SCSE>DJ VIA AU/LAP"]
[]
[null,null,null,null,null,null,null,null,"Must list correct Scheduling Entity"]
[null,null,null,null,"Physical Path",null,null,null,"associated with the physical path "]
["CA","TP","PSE","POR","POD","Sched Entities","Contract",null,"in the proper sequence"]
[null,null,null,null,null,null,null,null,"CA for the POR-POD "]
[null,"\"- - - - -\"","\"- - - - -\"","\"- - - - -\"","SCSE","\"- - - - -\""]
[null,"LAPT","\"- - - - -\"","SCSE","SCSW","WACM"]
[null,"LAPT","\"- - - - -\"","SCSW","AU","WACM"]
[null,"LAPT","\"- - - - -\"","AU","ARH","WACM"]
[null,"LAPT","\"- - - - -\"","ARH","DJ","WACM"]
[null,"\"- - - - -\"","\"- - - - -\"","DJ","\"- - - - -\"","\"- - - - -\""]
[null,"\"- - - - -\"","\"- - - - -\"","\"- - - - -\"","\"- - - - -\"","\"- - - - -\""]
[]
[]
["Legend",null,null,null,null,"If the Transmission Customer has multiple transmission"]
["\"- - - - -\" appropriate TSIN data to be filled in by Tag Agent.",null,null,null,null,"segments purchased that are combined, then each "]
[null,null,null,null,null,"segment should be shown as new TP lines in the e-tag"]

{"sheet":"Sheet74","index":73,"n_rows":17,"n_cols":9,"rows_kept":17,"cut":false,"hidden":false,"merged":[[6,3,6,4],[12,3,12,4],[0,0,0,6],[1,0,1,6]]}
["RETURN TO TEMPLATE INDEX"]
["W/LAPT/3 N/AU>DJ/LAP"]
[]
[null,null,null,null,null,null,null,null,"Must list correct Scheduling Entity"]
[null,null,null,null,"Physical Path",null,null,null,"associated with the physical path "]
["CA","TP","PSE","POR","POD","Sched Entities","Contract",null,"in the proper sequence"]
[null,null,null,null,null,null,null,null,"CA for the POR-POD "]
[null,"\"- - - - -\"","\"- - - - -\"","\"- - - - -\"","AU","\"- - - - -\""]
[null,"LAPT","\"- - - - -\"","AU","ARH","WACM"]
[null,"LAPT","\"- - - - -\"","ARH","DJ","WACM"]
[null,"\"- - - - -\"","\"- - - - -\"","DJ","\"- - - - -\"","\"- - - - -\""]
[null,"\"- - - - -\"","\"- - - - -\"","\"- - - - -\"","\"- - - - -\"","\"- - - - -\""]
[]
[]
["Legend",null,null,null,null,"If the Transmission Customer has multiple transmission"]
["\"- - - - -\" appropriate TSIN data to be filled in by Tag Agent.",null,null,null,null,"segments purchased that are combined, then each "]
[null,null,null,null,null,"segment should be shown as new TP lines in the e-tag"]

{"sheet":"Sheet75","index":74,"n_rows":16,"n_cols":9,"rows_kept":16,"cut":false,"hidden":false,"merged":[[6,3,6,4],[11,3,11,4],[0,0,0,6],[1,0,1,6]]}
["RETURN TO TEMPLATE INDEX"]
["E/LAPT/W>E/SIDNEY>LAPNITS/LAP"]
[]
[null,null,null,null,null,null,null,null,"Must list correct Scheduling Entity"]
[null,null,null,null,"Physical Path",null,null,null,"associated with the physical path "]
["CA","TP","PSE","POR","POD","Sched Entities","Contract",null,"in the proper sequence"]
[null,null,null,null,null,null,null,null,"CA for the POR-POD "]
[null,"\"- - - - -\"","\"- - - - -\"","\"- - - - -\"","SIDNEY","\"- - - - -\""]
[null,"LAPT","\"- - - - -\"","SIDNEY","LAPNITS","WACM"]
[null,"\"- - - - -\"","\"- - - - -\"","LAPNITS","\"- - - - -\"","\"- - - - -\""]
[null,"\"- - - - -\"","\"- - - - -\"","\"- - - - -\"","\"- - - - -\"","\"- - - - -\""]
[]
[]
["Legend",null,null,null,null,"If the Transmission Customer has multiple transmission"]
["\"- - - - -\" appropriate TSIN data to be filled in by Tag Agent.",null,null,null,null,"segments purchased that are combined, then each "]
[null,null,null,null,null,"segment should be shown as new TP lines in the e-tag"]

{"sheet":"Sheet76","index":75,"n_rows":16,"n_cols":9,"rows_kept":16,"cut":false,"hidden":false,"merged":[[6,3,6,4],[11,3,11,4],[0,0,0,6],[1,0,1,6]]}
["RETURN TO TEMPLATE INDEX"]
["W/LAPT/TOT3S>N/NYUM>SCSW/LAP"]
[]
[null,null,null,null,null,null,null,null,"Must list correct Scheduling Entity"]
[null,null,null,null,"Physical Path",null,null,null,"associated with the physical path "]
["CA","TP","PSE","POR","POD","Sched Entities","Contract",null,"in the proper sequence"]
[null,null,null,null,null,null,null,null,"CA for the POR-POD "]
[null,"\"- - - - -\"","\"- - - - -\"","\"- - - - -\"","NYUM","\"- - - - -\""]
[null,"LAPT","\"- - - - -\"","NYUM","SCSW","WACM"]
[null,"\"- - - - -\"","\"- - - - -\"","SCSW","\"- - - - -\"","\"- - - - -\""]
[null,"\"- - - - -\"","\"- - - - -\"","\"- - - - -\"","\"- - - - -\"","\"- - - - -\""]
[]
[]
["Legend",null,null,null,null,"If the Transmission Customer has multiple transmission"]
["\"- - - - -\" appropriate TSIN data to be filled in by Tag Agent.",null,null,null,null,"segments purchased that are combined, then each "]
[null,null,null,null,null,"segment should be shown as new TP lines in the e-tag"]

{"sheet":"Sheet77","index":76,"n_rows":17,"n_cols":9,"rows_kept":17,"cut":false,"hidden":false,"merged":[[6,3,6,4],[12,3,12,4],[0,0,0,6],[1,0,1,6]]}
["RETURN TO TEMPLATE INDEX"]
["W/LAPT/TOT3S>N/NYUM>SGW/LAP"]
[]
[null,null,null,null,null,null,null,null,"Must list correct Scheduling Entity"]
[null,null,null,null,"Physical Path",null,null,null,"associated with the physical path "]
["CA","TP","PSE","POR","POD","Sched Entities","Contract",null,"in the proper sequence"]
[null,null,null,null,null,null,null,null,"CA for the POR-POD "]
[null,"\"- - - - -\"","\"- - - - -\"","\"- - - - -\"","NYUM","\"- - - - -\""]
[null,"LAPT","\"- - - - -\"","NYUM","SCSW","WACM"]
[null,"LAPT","\"- - - - -\"","SCSW","SGW","WACM"]
[null,"\"- - - - -\"","\"- - - - -\"","SGW","\"- - - - -\"","\"- - - - -\""]
[null,"\"- - - - -\"","\"- - - - -\"","\"- - - - -\"","\"- - - - -\"","\"- - - - -\""]
[]
[]
["Legend",null,null,null,null,"If the Transmission Customer has multiple transmission"]
["\"- - - - -\" appropriate TSIN data to be filled in by Tag Agent.",null,null,null,null,"segments purchased that are combined, then each "]
[null,null,null,null,null,"segment should be shown as new TP lines in the e-tag"]

{"sheet":"Sheet78","index":77,"n_rows":18,"n_cols":9,"rows_kept":18,"cut":false,"hidden":false,"merged":[[6,3,6,4],[13,3,13,4],[0,0,0,6],[1,0,1,6]]}
["RETURN TO TEMPLATE INDEX"]
["W/LAPT/TOT3S>N/NYUM>DJ/LAP"]
[]
[null,null,null,null,null,null,null,null,"Must list correct Scheduling Entity"]
[null,null,null,null,"Physical Path",null,null,null,"associated with the physical path "]
["CA","TP","PSE","POR","POD","Sched Entities","Contract",null,"in the proper sequence"]
[null,null,null,null,null,null,null,null,"CA for the POR-POD "]
[null,"\"- - - - -\"","\"- - - - -\"","\"- - - - -\"","NYUM","\"- - - - -\""]
[null,"LAPT","\"- - - - -\"","NYUM","SCSW","WACM"]
[null,"LAPT","\"- - - - -\"","SCSW","SGW","WACM"]
[null,"LAPT","\"- - - - -\"","SGW","DJ","WACM"]
[null,"\"- - - - -\"","\"- - - - -\"","DJ","\"- - - - -\"","\"- - - - -\""]
[null,"\"- - - - -\"","\"- - - - -\"","\"- - - - -\"","\"- - - - -\"","\"- - - - -\""]
[]
[]
["Legend",null,null,null,null,"If the Transmission Customer has multiple transmission"]
["\"- - - - -\" appropriate TSIN data to be filled in by Tag Agent.",null,null,null,null,"segments purchased that are combined, then each "]
[null,null,null,null,null,"segment should be shown as new TP lines in the e-tag"]

{"sheet":"Sheet79","index":78,"n_rows":18,"n_cols":9,"rows_kept":18,"cut":false,"hidden":false,"merged":[[6,3,6,4],[13,3,13,4],[0,0,0,6],[1,0,1,6]]}
["RETURN TO TEMPLATE INDEX"]
["W/LAPT/TOT3S>N/NYUM>ARH/LAP"]
[]
[null,null,null,null,null,null,null,null,"Must list correct Scheduling Entity"]
[null,null,null,null,"Physical Path",null,null,null,"associated with the physical path "]
["CA","TP","PSE","POR","POD","Sched Entities","Contract",null,"in the proper sequence"]
[null,null,null,null,null,null,null,null,"CA for the POR-POD "]
[null,"\"- - - - -\"","\"- - - - -\"","\"- - - - -\"","NYUM","\"- - - - -\""]
[null,"LAPT","\"- - - - -\"","NYUM","SCSW","WACM"]
[null,"WALC","\"- - - - -\"","SCSW","SGW","WALC"]
[null,"WALC","\"- - - - -\"","SGW","ARH","WALC"]
[null,"\"- - - - -\"","\"- - - - -\"","ARH","\"- - - - -\"","\"- - - - -\""]
[null,"\"- - - - -\"","\"- - - - -\"","\"- - - - -\"","\"- - - - -\"","\"- - - - -\""]
[]
[]
["Legend",null,null,null,null,"If the Transmission Customer has multiple transmission"]
["\"- - - - -\" appropriate TSIN data to be filled in by Tag Agent.",null,null,null,null,"segments purchased that are combined, then each "]
[null,null,null,null,null,"segment should be shown as new TP lines in the e-tag"]

{"sheet":"Sheet80","index":79,"n_rows":19,"n_cols":9,"rows_kept":19,"cut":false,"hidden":false,"merged":[[6,3,6,4],[14,3,14,4],[0,0,0,6],[1,0,1,6]]}
["RETURN TO TEMPLATE INDEX"]
["W/LAPT/TOT3N>S/NYUM>AU/LAP"]
[]
[null,null,null,null,null,null,null,null,"Must list correct Scheduling Entity"]
[null,null,null,null,"Physical Path",null,null,null,"associated with the physical path "]
["CA","TP","PSE","POR","POD","Sched Entities","Contract",null,"in the proper sequence"]
[null,null,null,null,null,null,null,null,"CA for the POR-POD "]
[null,"\"- - - - -\"","\"- - - - -\"","\"- - - - -\"","NYUM","\"- - - - -\""]
[null,"LAPT","\"- - - - -\"","NYUM","SCSW","WACM"]
[null,"LAPT","\"- - - - -\"","SCSW","SGW","WACM"]
[null,"LAPT","\"- - - - -\"","SGW","ARH","WACM"]
[null,"LAPT","\"- - - - -\"","ARH","AU","WACM"]
[null,"\"- - - - -\"","\"- - - - -\"","AU","\"- - - - -\"","\"- - - - -\""]
[null,"\"- - - - -\"","\"- - - - -\"","\"- - - - -\"","\"- - - - -\"","\"- - - - -\""]
[]
[]
["Legend",null,null,null,null,"If the Transmission Customer has multiple transmission"]
["\"- - - - -\" appropriate TSIN data to be filled in by Tag Agent.",null,null,null,null,"segments purchased that are combined, then each "]
[null,null,null,null,null,"segment should be shown as new TP lines in the e-tag"]

{"sheet":"Sheet81","index":80,"n_rows":18,"n_cols":9,"rows_kept":18,"cut":false,"hidden":false,"merged":[[6,3,6,4],[13,3,13,4],[0,0,0,6],[1,0,1,6]]}
["RETURN TO TEMPLATE INDEX"]
["W/LAPT/TOT3N>S/ARH>NYUM/LAP"]
[]
[null,null,null,null,null,null,null,null,"Must list correct Scheduling Entity"]
[null,null,null,null,"Physical Path",null,null,null,"associated with the physical path "]
["CA","TP","PSE","POR","POD","Sched Entities","Contract",null,"in the proper sequence"]
[null,null,null,null,null,null,null,null,"CA for the POR-POD "]
[null,"\"- - - - -\"","\"- - - - -\"","\"- - - - -\"","ARH","\"- - - - -\""]
[null,"LAPT","\"- - - - -\"","ARH","SGW","WACM"]
[null,"LAPT","\"- - - - -\"","SGW","SCSW","WACM"]
[null,"LAPT","\"- - - - -\"","SCSW","NYUM","WACM"]
[null,"\"- - - - -\"","\"- - - - -\"","NYUM","\"- - - - -\"","\"- - - - -\""]
[null,"\"- - - - -\"","\"- - - - -\"","\"- - - - -\"","\"- - - - -\"","\"- - - - -\""]
[]
[]
["Legend",null,null,null,null,"If the Transmission Customer has multiple transmission"]
["\"- - - - -\" appropriate TSIN data to be filled in by Tag Agent.",null,null,null,null,"segments purchased that are combined, then each "]
[null,null,null,null,null,"segment should be shown as new TP lines in the e-tag"]

{"sheet":"Sheet82","index":81,"n_rows":16,"n_cols":9,"rows_kept":16,"cut":false,"hidden":false,"merged":[[6,3,6,4],[11,3,11,4],[0,0,0,6],[1,0,1,6]]}
["RETURN TO TEMPLATE INDEX"]
["W/LAPT/TOT3N>S/SCSW>AU/LAP"]
[]
[null,null,null,null,null,null,null,null,"Must list correct Scheduling Entity"]
[null,null,null,null,"Physical Path",null,null,null,"associated with the physical path "]
["CA","TP","PSE","POR","POD","Sched Entities","Contract",null,"in the proper sequence"]
[null,null,null,null,null,null,null,null,"CA for the POR-POD "]
[null,"\"- - - - -\"","\"- - - - -\"","\"- - - - -\"","SCSW","\"- - - - -\""]
[null,"LPAT","\"- - - - -\"","SCSW","AU","WACM"]
[null,"\"- - - - -\"","\"- - - - -\"","AU","\"- - - - -\"","\"- - - - -\""]
[null,"\"- - - - -\"","\"- - - - -\"","\"- - - - -\"","\"- - - - -\"","\"- - - - -\""]
[]
[]
["Legend",null,null,null,null,"If the Transmission Customer has multiple transmission"]
["\"- - - - -\" appropriate TSIN data to be filled in by Tag Agent.",null,null,null,null,"segments purchased that are combined, then each "]
[null,null,null,null,null,"segment should be shown as new TP lines in the e-tag"]

{"sheet":"Sheet83","index":82,"n_rows":16,"n_cols":9,"rows_kept":16,"cut":false,"hidden":false,"merged":[[6,3,6,4],[11,3,11,4],[0,0,0,6],[1,0,1,6]]}
["RETURN TO TEMPLATE INDEX"]
["W/LAPT/TOT3N>S/SCSW>NYUM/LAP"]
[]
[null,null,null,null,null,null,null,null,"Must list correct Scheduling Entity"]
[null,null,null,null,"Physical Path",null,null,null,"associated with the physical path "]
["CA","TP","PSE","POR","POD","Sched Entities","Contract",null,"in the proper sequence"]
[null,null,null,null,null,null,null,null,"CA for the POR-POD "]
[null,"\"- - - - -\"","\"- - - - -\"","\"- - - - -\"","SCSW","\"- - - - -\""]
[null,"LAPT","\"- - - - -\"","SCSW","NYUM","WACM"]
[null,"\"- - - - -\"","\"- - - - -\"","NYUM","\"- - - - -\"","\"- - - - -\""]
[null,"\"- - - - -\"","\"- - - - -\"","\"- - - - -\"","\"- - - - -\"","\"- - - - -\""]
[]
[]
["Legend",null,null,null,null,"If the Transmission Customer has multiple transmission"]
["\"- - - - -\" appropriate TSIN data to be filled in by Tag Agent.",null,null,null,null,"segments purchased that are combined, then each "]
[null,null,null,null,null,"segment should be shown as new TP lines in the e-tag"]

{"sheet":"Sheet84","index":83,"n_rows":17,"n_cols":9,"rows_kept":17,"cut":false,"hidden":false,"merged":[[6,3,6,4],[12,3,12,4],[0,0,0,6],[1,0,1,6]]}
["RETURN TO TEMPLATE INDEX"]
["W/LAPT/TOT3N>S/AU>NYUM/LAP"]
[]
[null,null,null,null,null,null,null,null,"Must list correct Scheduling Entity"]
[null,null,null,null,"Physical Path",null,null,null,"associated with the physical path "]
["CA","TP","PSE","POR","POD","Sched Entities","Contract",null,"in the proper sequence"]
[null,null,null,null,null,null,null,null,"CA for the POR-POD "]
[null,"\"- - - - -\"","\"- - - - -\"","\"- - - - -\"","AU","\"- - - - -\""]
[null,"LAPT","\"- - - - -\"","AU","SCSW","WACM"]
[null,"LAPT","\"- - - - -\"","SCSW","NYUM","WACM"]
[null,"\"- - - - -\"","\"- - - - -\"","NYUM","\"- - - - -\"","\"- - - - -\""]
[null,"\"- - - - -\"","\"- - - - -\"","\"- - - - -\"","\"- - - - -\"","\"- - - - -\""]
[]
[]
["Legend",null,null,null,null,"If the Transmission Customer has multiple transmission"]
["\"- - - - -\" appropriate TSIN data to be filled in by Tag Agent.",null,null,null,null,"segments purchased that are combined, then each "]
[null,null,null,null,null,"segment should be shown as new TP lines in the e-tag"]

{"sheet":"Sheet85","index":84,"n_rows":18,"n_cols":9,"rows_kept":18,"cut":false,"hidden":false,"merged":[[6,3,6,4],[13,3,13,4],[0,0,0,6],[1,0,1,6]]}
["RETURN TO TEMPLATE INDEX"]
["W/LAPT/TOT3N>S/DJ>NYUM/LAP"]
[]
[null,null,null,null,null,null,null,null,"Must list correct Scheduling Entity"]
[null,null,null,null,"Physical Path",null,null,null,"associated with the physical path "]
["CA","TP","PSE","POR","POD","Sched Entities","Contract",null,"in the proper sequence"]
[null,null,null,null,null,null,null,null,"CA for the POR-POD "]
[null,"\"- - - - -\"","\"- - - - -\"","\"- - - - -\"","DJ","\"- - - - -\""]
[null,"LAPT","\"- - - - -\"","DJ","SGW","WACM"]
[null,"LAPT","\"- - - - -\"","SGW","SCSW","WACM"]
[null,"LAPT","\"- - - - -\"","SCSW","NYUM","WACM"]
[null,"\"- - - - -\"","\"- - - - -\"","NYUM","\"- - - - -\"","\"- - - - -\""]
[null,"\"- - - - -\"","\"- - - - -\"","\"- - - - -\"","\"- - - - -\"","\"- - - - -\""]
[]
[]
["Legend",null,null,null,null,"If the Transmission Customer has multiple transmission"]
["\"- - - - -\" appropriate TSIN data to be filled in by Tag Agent.",null,null,null,null,"segments purchased that are combined, then each "]
[null,null,null,null,null,"segment should be shown as new TP lines in the e-tag"]

{"sheet":"Sheet86","index":85,"n_rows":17,"n_cols":9,"rows_kept":17,"cut":false,"hidden":false,"merged":[[6,3,6,4],[12,3,12,4],[0,0,0,6],[1,0,1,6]]}
["RETURN TO TEMPLATE INDEX"]
["W/LAPT/TOT3N>S/SGW>NYUM/LAP"]
[]
[null,null,null,null,null,null,null,null,"Must list correct Scheduling Entity"]
[null,null,null,null,"Physical Path",null,null,null,"associated with the physical path "]
["CA","TP","PSE","POR","POD","Sched Entities","Contract",null,"in the proper sequence"]
[null,null,null,null,null,null,null,null,"CA for the POR-POD "]
[null,"\"- - - - -\"","\"- - - - -\"","\"- - - - -\"","SGW","\"- - - - -\""]
[null,"LAPT","\"- - - - -\"","SGW","SCSW","WACM"]
[null,"LAPT","\"- - - - -\"","SCSW","NYUM","WACM"]
[null,"\"- - - - -\"","\"- - - - -\"","NYUM","\"- - - - -\"","\"- - - - -\""]
[null,"\"- - - - -\"","\"- - - - -\"","\"- - - - -\"","\"- - - - -\"","\"- - - - -\""]
[]
[]
["Legend",null,null,null,null,"If the Transmission Customer has multiple transmission"]
["\"- - - - -\" appropriate TSIN data to be filled in by Tag Agent.",null,null,null,null,"segments purchased that are combined, then each "]
[null,null,null,null,null,"segment should be shown as new TP lines in the e-tag"]

{"sheet":"Sheet87","index":86,"n_rows":17,"n_cols":9,"rows_kept":17,"cut":false,"hidden":false,"merged":[[6,3,6,4],[12,3,12,4],[0,0,0,6],[1,0,1,6]]}
["RETURN TO TEMPLATE INDEX"]
["W/LAPT/N>S/YT115>DJ/LAP"]
[]
[null,null,null,null,null,null,null,null,"Must list correct Scheduling Entity"]
[null,null,null,null,"Physical Path",null,null,null,"associated with the physical path "]
["CA","TP","PSE","POR","POD","Sched Entities","Contract",null,"in the proper sequence"]
[null,null,null,null,null,null,null,null,"CA for the POR-POD "]
[null,"\"- - - - -\"","\"- - - - -\"","\"- - - - -\"","YT115","\"- - - - -\""]
[null,"LAPT","\"- - - - -\"","YT115","YTW","WACM"]
[null,"LAPT","\"- - - - -\"","YTW","DJ","WACM"]
[null,"\"- - - - -\"","\"- - - - -\"","DJ","\"- - - - -\"","\"- - - - -\""]
[null,"\"- - - - -\"","\"- - - - -\"","\"- - - - -\"","\"- - - - -\"","\"- - - - -\""]
[]
[]
["Legend",null,null,null,null,"If the Transmission Customer has multiple transmission"]
["\"- - - - -\" appropriate TSIN data to be filled in by Tag Agent.",null,null,null,null,"segments purchased that are combined, then each "]
[null,null,null,null,null,"segment should be shown as new TP lines in the e-tag"]

{"sheet":"Sheet88","index":87,"n_rows":19,"n_cols":9,"rows_kept":19,"cut":false,"hidden":false,"merged":[[6,3,6,4],[14,3,14,4],[0,0,0,6],[1,0,1,6]]}
["RETURN TO TEMPLATE INDEX"]
["W/LAPT/N>S/YT115>AU/LAP"]
[]
[null,null,null,null,null,null,null,null,"Must list correct Scheduling Entity"]
[null,null,null,null,"Physical Path",null,null,null,"associated with the physical path "]
["CA","TP","PSE","POR","POD","Sched Entities","Contract",null,"in the proper sequence"]
[null,null,null,null,null,null,null,null,"CA for the POR-POD "]
[null,"\"- - - - -\"","\"- - - - -\"","\"- - - - -\"","YT115","\"- - - - -\""]
[null,"LAPT","\"- - - - -\"","YT115","YTW","WACM"]
[null,"LAPT","\"- - - - -\"","YTW","DJ","WACM"]
[null,"LAPT","\"- - - - -\"","DJ","ARH","WACM"]
[null,"LAPT","\"- - - - -\"","ARH","AU","WACM"]
[null,"\"- - - - -\"","\"- - - - -\"","AU","\"- - - - -\"","\"- - - - -\""]
[null,"\"- - - - -\"","\"- - - - -\"","\"- - - - -\"","\"- - - - -\"","\"- - - - -\""]
[]
[]
["Legend",null,null,null,null,"If the Transmission Customer has multiple transmission"]
["\"- - - - -\" appropriate TSIN data to be filled in by Tag Agent.",null,null,null,null,"segments purchased that are combined, then each "]
[null,null,null,null,null,"segment should be shown as new TP lines in the e-tag"]

{"sheet":"Sheet89","index":88,"n_rows":18,"n_cols":9,"rows_kept":18,"cut":false,"hidden":false,"merged":[[6,3,6,4],[13,3,13,4],[0,0,0,6],[1,0,1,6]]}
["RETURN TO TEMPLATE INDEX"]
["W/LAPT/N>S/YT115>SGW/LAP"]
[]
[null,null,null,null,null,null,null,null,"Must list correct Scheduling Entity"]
[null,null,null,null,"Physical Path",null,null,null,"associated with the physical path "]
["CA","TP","PSE","POR","POD","Sched Entities","Contract",null,"in the proper sequence"]
[null,null,null,null,null,null,null,null,"CA for the POR-POD "]
[null,"\"- - - - -\"","\"- - - - -\"","\"- - - - -\"","YT115","\"- - - - -\""]
[null,"LAPT","\"- - - - -\"","YT115","YTW","WACM"]
[null,"LAPT","\"- - - - -\"","YTW","DJ","WACM"]
[null,"LAPT","\"- - - - -\"","DJ","SGW","WACM"]
[null,"\"- - - - -\"","\"- - - - -\"","SGW","\"- - - - -\"","\"- - - - -\""]
[null,"\"- - - - -\"","\"- - - - -\"","\"- - - - -\"","\"- - - - -\"","\"- - - - -\""]
[]
[]
["Legend",null,null,null,null,"If the Transmission Customer has multiple transmission"]
["\"- - - - -\" appropriate TSIN data to be filled in by Tag Agent.",null,null,null,null,"segments purchased that are combined, then each "]
[null,null,null,null,null,"segment should be shown as new TP lines in the e-tag"]

{"sheet":"Sheet90","index":89,"n_rows":19,"n_cols":9,"rows_kept":19,"cut":false,"hidden":false,"merged":[[6,3,6,4],[14,3,14,4],[0,0,0,6],[1,0,1,6]]}
["RETURN TO TEMPLATE INDEX"]
["W/LAPT/N>S/YT115>SCSW/LAP"]
[]
[null,null,null,null,null,null,null,null,"Must list correct Scheduling Entity"]
[null,null,null,null,"Physical Path",null,null,null,"associated with the physical path "]
["CA","TP","PSE","POR","POD","Sched Entities","Contract",null,"in the proper sequence"]
[null,null,null,null,null,null,null,null,"CA for the POR-POD "]
[null,"\"- - - - -\"","\"- - - - -\"","\"- - - - -\"","YT115","\"- - - - -\""]
[null,"LAPT","\"- - - - -\"","YT115","YTW","WACM"]
[null,"LAPT","\"- - - - -\"","YTW","DJ","WACM"]
[null,"LAPT","\"- - - - -\"","DJ","SGW","WACM"]
[null,"LAPT","\"- - - - -\"","SGW","SCSW","WACM"]
[null,"\"- - - - -\"","\"- - - - -\"","SCSW","\"- - - - -\"","\"- - - - -\""]
[null,"\"- - - - -\"","\"- - - - -\"","\"- - - - -\"","\"- - - - -\"","\"- - - - -\""]
[]
[]
["Legend",null,null,null,null,"If the Transmission Customer has multiple transmission"]
["\"- - - - -\" appropriate TSIN data to be filled in by Tag Agent.",null,null,null,null,"segments purchased that are combined, then each "]
[null,null,null,null,null,"segment should be shown as new TP lines in the e-tag"]

{"sheet":"Sheet91","index":90,"n_rows":20,"n_cols":9,"rows_kept":20,"cut":false,"hidden":false,"merged":[[6,3,6,4],[15,3,15,4],[0,0,0,6],[1,0,1,6]]}
["RETURN TO TEMPLATE INDEX"]
["W/LAPT/N>S/YT115>SCSE/LAP"]
[]
[null,null,null,null,null,null,null,null,"Must list correct Scheduling Entity"]
[null,null,null,null,"Physical Path",null,null,null,"associated with the physical path "]
["CA","TP","PSE","POR","POD","Sched Entities","Contract",null,"in the proper sequence"]
[null,null,null,null,null,null,null,null,"CA for the POR-POD "]
[null,"\"- - - - -\"","\"- - - - -\"","\"- - - - -\"","YT115","\"- - - - -\""]
[null,"LAPT","\"- - - - -\"","YT115","YTW","WACM"]
[null,"LAPT","\"- - - - -\"","YTW","DJ","WACM"]
[null,"LAPT","\"- - - - -\"","DJ","SGW","WACM"]
[null,"LAPT","\"- - - - -\"","SGW","SCSW","WACM"]
[null,"LAPT","\"- - - - -\"","SCSW","SCSE","WACM"]
[null,"\"- - - - -\"","\"- - - - -\"","SCSE","\"- - - - -\"","\"- - - - -\""]
[null,"\"- - - - -\"","\"- - - - -\"","\"- - - - -\"","\"- - - - -\"","\"- - - - -\""]
[]
[]
["Legend",null,null,null,null,"If the Transmission Customer has multiple transmission"]
["\"- - - - -\" appropriate TSIN data to be filled in by Tag Agent.",null,null,null,null,"segments purchased that are combined, then each "]
[null,null,null,null,null,"segment should be shown as new TP lines in the e-tag"]

{"sheet":"Sheet92","index":91,"n_rows":20,"n_cols":9,"rows_kept":20,"cut":false,"hidden":false,"merged":[[6,3,6,4],[15,3,15,4],[0,0,0,6],[1,0,1,6]]}
["RETURN TO TEMPLATE INDEX"]
["W/LAPT/N>S/YT115>NYUM/LAP"]
[]
[null,null,null,null,null,null,null,null,"Must list correct Scheduling Entity"]
[null,null,null,null,"Physical Path",null,null,null,"associated with the physical path "]
["CA","TP","PSE","POR","POD","Sched Entities","Contract",null,"in the proper sequence"]
[null,null,null,null,null,null,null,null,"CA for the POR-POD "]
[null,"\"- - - - -\"","\"- - - - -\"","\"- - - - -\"","YT115","\"- - - - -\""]
[null,"LAPT","\"- - - - -\"","YT115","YTW","WACM"]
[null,"LAPT","\"- - - - -\"","YTW","DJ","WACM"]
[null,"LAPT","\"- - - - -\"","DJ","SGW","WACM"]
[null,"LAPT","\"- - - - -\"","SGW","SCSW","WACM"]
[null,"LAPT","\"- - - - -\"","SCSW","NYUM","WACM"]
[null,"\"- - - - -\"","\"- - - - -\"","NYUM","\"- - - - -\"","\"- - - - -\""]
[null,"\"- - - - -\"","\"- - - - -\"","\"- - - - -\"","\"- - - - -\"","\"- - - - -\""]
[]
[]
["Legend",null,null,null,null,"If the Transmission Customer has multiple transmission"]
["\"- - - - -\" appropriate TSIN data to be filled in by Tag Agent.",null,null,null,null,"segments purchased that are combined, then each "]
[null,null,null,null,null,"segment should be shown as new TP lines in the e-tag"]

{"sheet":"Sheet93","index":92,"n_rows":20,"n_cols":9,"rows_kept":20,"cut":false,"hidden":false,"merged":[[6,3,6,4],[15,3,15,4],[0,0,0,6],[1,0,1,6]]}
["RETURN TO TEMPLATE INDEX"]
["W/LAPT/N>S/YT115>BSAN/LAP"]
[]
[null,null,null,null,null,null,null,null,"Must list correct Scheduling Entity"]
[null,null,null,null,"Physical Path",null,null,null,"associated with the physical path "]
["CA","TP","PSE","POR","POD","Sched Entities","Contract",null,"in the proper sequence"]
[null,null,null,null,null,null,null,null,"CA for the POR-POD "]
[null,"\"- - - - -\"","\"- - - - -\"","\"- - - - -\"","YT115","\"- - - - -\""]
[null,"LAPT","\"- - - - -\"","YT115","YTW","WACM"]
[null,"LAPT","\"- - - - -\"","YTW","DJ","WACM"]
[null,"LAPT","\"- - - - -\"","DJ","ARH","WACM"]
[null,"LAPT","\"- - - - -\"","ARH","AU","WACM"]
[null,"LAPT","\"- - - - -\"","AU","BSAN","WACM"]
[null,"\"- - - - -\"","\"- - - - -\"","BSAN","\"- - - - -\"","\"- - - - -\""]
[null,"\"- - - - -\"","\"- - - - -\"","\"- - - - -\"","\"- - - - -\"","\"- - - - -\""]
[]
[]
["Legend",null,null,null,null,"If the Transmission Customer has multiple transmission"]
["\"- - - - -\" appropriate TSIN data to be filled in by Tag Agent.",null,null,null,null,"segments purchased that are combined, then each "]
[null,null,null,null,null,"segment should be shown as new TP lines in the e-tag"]

{"sheet":"Sheet94","index":93,"n_rows":17,"n_cols":9,"rows_kept":17,"cut":false,"hidden":false,"merged":[[6,3,6,4],[12,3,12,4],[0,0,0,6],[1,0,1,6]]}
["RETURN TO TEMPLATE INDEX"]
["W/LAPT/DCTIE W>E/AU115>SCSW/LAP"]
[]
[null,null,null,null,null,null,null,null,"Must list correct Scheduling Entity"]
[null,null,null,null,"Physical Path",null,null,null,"associated with the physical path "]
["CA","TP","PSE","POR","POD","Sched Entities","Contract",null,"in the proper sequence"]
[null,null,null,null,null,null,null,null,"CA for the POR-POD "]
[null,"\"- - - - -\"","\"- - - - -\"","\"- - - - -\"","AU115","\"- - - - -\""]
[null,"LAPT","\"- - - - -\"","AU115","AU","WACM"]
[null,"LAPT","\"- - - - -\"","AU115","SCSW","WACM"]
[null,"\"- - - - -\"","\"- - - - -\"","SCSW","\"- - - - -\"","\"- - - - -\""]
[null,"\"- - - - -\"","\"- - - - -\"","\"- - - - -\"","\"- - - - -\"","\"- - - - -\""]
[]
[]
["Legend",null,null,null,null,"If the Transmission Customer has multiple transmission"]
["\"- - - - -\" appropriate TSIN data to be filled in by Tag Agent.",null,null,null,null,"segments purchased that are combined, then each "]
[null,null,null,null,null,"segment should be shown as new TP lines in the e-tag"]

{"sheet":"Sheet95","index":94,"n_rows":18,"n_cols":9,"rows_kept":18,"cut":false,"hidden":false,"merged":[[6,3,6,4],[13,3,13,4],[0,0,0,6],[1,0,1,6]]}
["RETURN TO TEMPLATE INDEX"]
["W/LAPT/DCTIE W>E/MM115>SCSW/LAP"]
[]
[null,null,null,null,null,null,null,null,"Must list correct Scheduling Entity"]
[null,null,null,null,"Physical Path",null,null,null,"associated with the physical path "]
["CA","TP","PSE","POR","POD","Sched Entities","Contract",null,"in the proper sequence"]
[null,null,null,null,null,null,null,null,"CA for the POR-POD "]
[null,"\"- - - - -\"","\"- - - - -\"","\"- - - - -\"","MM115","\"- - - - -\""]
[null,"LAPT","\"- - - - -\"","MM115","DJ","WACM"]
[null,"LAPT","\"- - - - -\"","DJ","SGW","WACM"]
[null,"LAPT","\"- - - - -\"","SGW","SCSW","WACM"]
[null,"\"- - - - -\"","\"- - - - -\"","SCSW","\"- - - - -\"","\"- - - - -\""]
[null,"\"- - - - -\"","\"- - - - -\"","\"- - - - -\"","\"- - - - -\"","\"- - - - -\""]
[]
[]
["Legend",null,null,null,null,"If the Transmission Customer has multiple transmission"]
["\"- - - - -\" appropriate TSIN data to be filled in by Tag Agent.",null,null,null,null,"segments purchased that are combined, then each "]
[null,null,null,null,null,"segment should be shown as new TP lines in the e-tag"]

{"sheet":"Sheet96","index":95,"n_rows":18,"n_cols":9,"rows_kept":18,"cut":false,"hidden":false,"merged":[[6,3,6,4],[13,3,13,4],[0,0,0,6],[1,0,1,6]]}
["RETURN TO TEMPLATE INDEX"]
["W/LAPT/DCTIE W>E/AU115>SCSE/LAP"]
[]
[null,null,null,null,null,null,null,null,"Must list correct Scheduling Entity"]
[null,null,null,null,"Physical Path",null,null,null,"associated with the physical path "]
["CA","TP","PSE","POR","POD","Sched Entities","Contract",null,"in the proper sequence"]
[null,null,null,null,null,null,null,null,"CA for the POR-POD "]
[null,"\"- - - - -\"","\"- - - - -\"","\"- - - - -\"","AU115","\"- - - - -\""]
[null,"LAPT","\"- - - - -\"","AU115","AU","WACM"]
[null,"LAPT","\"- - - - -\"","AU","SCSW","WACM"]
[null,"LAPT","\"- - - - -\"","SCSW","SCSE","WACM"]
[null,"\"- - - - -\"","\"- - - - -\"","SCSE","\"- - - - -\"","\"- - - - -\""]
[null,"\"- - - - -\"","\"- - - - -\"","\"- - - - -\"","\"- - - - -\"","\"- - - - -\""]
[]
[]
["Legend",null,null,null,null,"If the Transmission Customer has multiple transmission"]
["\"- - - - -\" appropriate TSIN data to be filled in by Tag Agent.",null,null,null,null,"segments purchased that are combined, then each "]
[null,null,null,null,null,"segment should be shown as new TP lines in the e-tag"]